﻿Directorate,Service,Division,Responsible Unit,Expense Type,Payment Date,Trans No,Net Amount,Supplier Name 
Adults Services,Adult Social Care,Older People (Aged 65 or over) including Older Mental Ill,Older People Commissioning,Social Care - Residential Care,01/07/2015,3451895,"2,828.75",Broadening Choices For Older People (Brookvale Care Home) 
Adults Services,Adult Social Care,Older People (Aged 65 or over) including Older Mental Ill,Older People Commissioning,Social Care - Residential Care,01/07/2015,3451895,-556.54,Broadening Choices For Older People (Brookvale Care Home) 
Adults Services,Adult Social Care,Older People (Aged 65 or over) including Older Mental Ill,Strategic Commissioning,Social Care - MSG Prevention Health & Wellbeing,01/07/2015,3451905,"2,500.00",Ability Bow 
Adults Services,Adult Social Care,Older People (Aged 65 or over) including Older Mental Ill,Strategic Commissioning,Social Care - MSG Prevention Health & Wellbeing,01/07/2015,3451906,"1,875.00",Praxis Community Project 
Adults Services,Adult Social Care,Older People (Aged 65 or over) including Older Mental Ill,Strategic Commissioning,Social Care - MSG Prevention Health & Wellbeing,01/07/2015,3451907,"2,500.00",Ability Bow 
Adults Services,Adult Social Care,Older People (Aged 65 or over) including Older Mental Ill,Strategic Commissioning,Social Care - MSG Prevention Health & Wellbeing,01/07/2015,3451908,"1,875.00",Praxis Community Project 
Adults Services,Public Health,Smoking and Tobacco,Public Health Team - 2,Payments to Private Contractors - Other Contractors,01/07/2015,3453095,748.23,Day Lewis Plc 
Adults Services,Public Health,Smoking and Tobacco,Public Health Team - 2,Payments to Private Contractors - Other Contractors,01/07/2015,3453106,869.08,ABC Pharmacy 715 
Adults Services,Public Health,Smoking and Tobacco,Public Health Team - 2,Payments to Private Contractors - Other Contractors,01/07/2015,3453108,520.7,Guardian Pharmacy t/a Lansbury Chemist 
Adults Services,Public Health,Smoking and Tobacco,Public Health Team - 2,Payments to Private Contractors - Other Contractors,01/07/2015,3453109,702.23,Guardian Pharmacy t/a Lansbury Chemist 
Adults Services,Public Health,Smoking and Tobacco,Public Health Team - 2,Payments to Private Contractors - Other Contractors,01/07/2015,3453116,513.63,Ali's Pharmacy 
Adults Services,Public Health,Smoking and Tobacco,Public Health Team - 2,Payments to Private Contractors - Other Contractors,01/07/2015,3453120,511.43,Chapel Pharmacy 
Adults Services,Public Health,Smoking and Tobacco,Public Health Team - 2,Payments to Private Contractors - Other Contractors,01/07/2015,3453121,718.18,Boots UK Ltd Store 782 
Adults Services,Public Health,Smoking and Tobacco,Public Health Team - 2,Payments to Private Contractors - Other Contractors,01/07/2015,3453122,"1,625.00",Forward Pharmacy 
Adults Services,Public Health,Smoking and Tobacco,Public Health Team - 2,Payments to Private Contractors - Other Contractors,01/07/2015,3453138,"2,209.15",AR Parmar Ltd 
Adults Services,Public Health,Smoking and Tobacco,Public Health Team - 2,Payments to Private Contractors - Other Contractors,01/07/2015,3453140,655.61,Jaypharm Chemist 
Adults Services,Public Health,Smoking and Tobacco,Public Health Team - 2,Payments to Private Contractors - Other Contractors,01/07/2015,3453158,"1,179.30",Green Light Pharmacy Hannaford 
Adults Services,Public Health,Smoking and Tobacco,Public Health Team - 2,Payments to Private Contractors - Other Contractors,01/07/2015,3453159,"1,626.38",Green Light Pharmacy Hannaford 
Adults Services,Public Health,Smoking and Tobacco,Public Health Team - 2,Payments to Private Contractors - Other Contractors,01/07/2015,3453542,693.63,BARKANTINE PHARMACY 
Adults Services,Adult Social Care,Older People (Aged 65 or over) including Older Mental Ill,Learning Dis Commissioning,Social Care - Day Care,01/07/2015,3456181,"1,083.89",CLACTON FAMILY TRUST 
Adults Services,Adult Social Care,Older People (Aged 65 or over) including Older Mental Ill,Fides Care,Healthy & Safety Supplies,01/07/2015,3456790,755,Praetorian Disposable Products Ltd 
Adults Services,Adult Social Care,Older People (Aged 65 or over) including Older Mental Ill,Learning Dis Commissioning,Social Care - Day Care,01/07/2015,3459206,941.1,HOFFMANN FOUNDATION FOR AUTISM 
Adults Services,Adult Social Care,Older People (Aged 65 or over) including Older Mental Ill,Older People Commissioning,Social Care - Nursing Care,01/07/2015,3462181,"1,601.49",SWISS COTTAGE - Roseberry Care Centres 
Adults Services,Adult Social Care,Older People (Aged 65 or over) including Older Mental Ill,Older People Commissioning,Social Care - Residential Care,01/07/2015,3462270,"2,228.57",Cheriton Residential Care Home 
Adults Services,Adult Social Care,Older People (Aged 65 or over) including Older Mental Ill,Older People Commissioning,Social Care - Residential Care,01/07/2015,3462857,"1,538.57",Hillside Care Home 
Adults Services,Adult Social Care,Older People (Aged 65 or over) including Older Mental Ill,Older People Commissioning,Social Care - Residential Care,01/07/2015,3462917,"2,313.90",ABBELEIGH HOUSE 
Adults Services,Adult Social Care,Older People (Aged 65 or over) including Older Mental Ill,Older People Commissioning,Social Care - Nursing Care,01/07/2015,3462920,"2,130.90",Bakers Court Nursing Home 
Adults Services,Adult Social Care,Older People (Aged 65 or over) including Older Mental Ill,Older People Commissioning,Social Care - Residential Care,01/07/2015,3462921,"2,076.64",Bakers Court Nursing Home 
Adults Services,Adult Social Care,Older People (Aged 65 or over) including Older Mental Ill,Older People Commissioning,Social Care - Residential Care,01/07/2015,3462922,"3,214.28",Scimitar Care Hotels PLC 
Adults Services,Adult Social Care,Older People (Aged 65 or over) including Older Mental Ill,Older People Commissioning,Social Care - Residential Care,01/07/2015,3462922,-894.9,Scimitar Care Hotels PLC 
Adults Services,Adult Social Care,Older People (Aged 65 or over) including Older Mental Ill,Older People Commissioning,Social Care - Nursing Care,01/07/2015,3462925,"3,123.86",Catchpole Court Care Home 
Adults Services,Adult Social Care,Older People (Aged 65 or over) including Older Mental Ill,Older People Commissioning,Social Care - Nursing Care,01/07/2015,3463038,"4,453.33",Heathlands Care Home 
Adults Services,Adult Social Care,Older People (Aged 65 or over) including Older Mental Ill,Older People Commissioning,Social Care - Nursing Care,01/07/2015,3463039,"3,596.19",Heathlands Care Home 
Adults Services,Adult Social Care,Older People (Aged 65 or over) including Older Mental Ill,Older People Commissioning,Social Care - Nursing Care,01/07/2015,3463055,"2,805.51",CARE UK COMMUNITY PARTNERSHIPS LTD 
Adults Services,Adult Social Care,Older People (Aged 65 or over) including Older Mental Ill,Older People Commissioning,Social Care - Nursing Care,01/07/2015,3463065,"2,310.47",Ladyville Lodge Care Home (part of Four Seasons Health Care Ltd 
Adults Services,Adult Social Care,Older People (Aged 65 or over) including Older Mental Ill,Older People Commissioning,Social Care - Nursing Care,01/07/2015,3463379,"2,485.71",BUPA CARE HOMES 
Adults Services,Adult Social Care,Older People (Aged 65 or over) including Older Mental Ill,Older People Commissioning,Client Contributions for Social Care - Nursing Care,01/07/2015,3463379,-598.5,BUPA CARE HOMES 
Adults Services,No Service Specified,No Division Specified,TCES - Prescriptions,Community Equipment  Supplies - Aids and Appliances,01/07/2015,3464978,964.15,BARKANTINE PHARMACY 
Adults Services,No Service Specified,No Division Specified,TCES - Prescriptions,Community Equipment  Supplies - Aids and Appliances,01/07/2015,3464988,"1,085.69",CUBITT TOWN PHARMACY 
Adults Services,No Service Specified,No Division Specified,TCES - Prescriptions,Community Equipment  Supplies - Aids and Appliances,01/07/2015,3465120,"1,411.76",MEDICHEM PHARMACY T/A BRIGHT BRIDGE LTD 
Adults Services,No Service Specified,No Division Specified,TCES - Prescriptions,Community Equipment  Supplies - Aids and Appliances,01/07/2015,3465121,"1,456.25",MEDICHEM PHARMACY T/A BRIGHT BRIDGE LTD 
Adults Services,Public Health,Smoking and Tobacco,Public Health Team - 2,Third Party Payments - Voluntary Associations,01/07/2015,3465274,"13,320.00",Positive East 
Adults Services,Adult Social Care,Older People (Aged 65 or over) including Older Mental Ill,Learning Dis Commissioning,Social Care - Day Care,01/07/2015,3466369,"2,166.63",VIBRANCE 
Adults Services,Adult Social Care,Older People (Aged 65 or over) including Older Mental Ill,Learning Dis Commissioning,Social Care - Day Care,01/07/2015,3466370,"1,416.08",VIBRANCE 
Adults Services,Adult Social Care,Older People (Aged 65 or over) including Older Mental Ill,Learning Dis Commissioning,Social Care - Day Care,01/07/2015,3466371,"3,003.00",VIBRANCE 
Adults Services,Adult Social Care,Older People (Aged 65 or over) including Older Mental Ill,Learning Dis Commissioning,Social Care - Day Care,01/07/2015,3466372,"1,692.00",VIBRANCE 
Adults Services,Adult Social Care,Older People (Aged 65 or over) including Older Mental Ill,Learning Dis Commissioning,Social Care - Day Care,01/07/2015,3466373,"2,760.00",VIBRANCE 
Adults Services,Adult Social Care,Older People (Aged 65 or over) including Older Mental Ill,Learning Dis Commissioning,Social Care - Day Care,01/07/2015,3466374,"2,679.00",VIBRANCE 
Adults Services,Adult Social Care,Older People (Aged 65 or over) including Older Mental Ill,Learning Dis Commissioning,Social Care - Day Care,01/07/2015,3466375,"2,928.00",VIBRANCE 
Adults Services,Adult Social Care,Older People (Aged 65 or over) including Older Mental Ill,Learning Dis Commissioning,Social Care - Day Care,01/07/2015,3466376,"2,928.00",VIBRANCE 
Adults Services,Adult Social Care,Older People (Aged 65 or over) including Older Mental Ill,Learning Dis Commissioning,Social Care - Day Care,01/07/2015,3466377,"1,750.00",VIBRANCE 
Adults Services,Adult Social Care,Older People (Aged 65 or over) including Older Mental Ill,Learning Dis Commissioning,Social Care - Personal Budgets - Non-Trad Service,01/07/2015,3466378,"1,449.00",VIBRANCE 
Adults Services,Adult Social Care,Older People (Aged 65 or over) including Older Mental Ill,Learning Dis Commissioning,Social Care - Day Care,01/07/2015,3466379,"1,528.00",VIBRANCE 
Adults Services,Adult Social Care,Older People (Aged 65 or over) including Older Mental Ill,Mental Health Commissioning,Social Care - Supported Accommodation,01/07/2015,3466380,"2,121.43",HAROLD LODGE 
Adults Services,Adult Social Care,Older People (Aged 65 or over) including Older Mental Ill,Physical Dis Commissioning,Social Care - Nursing Care,01/07/2015,3466384,"3,792.86",BARCHESTER HEALTHCARE 
Adults Services,Adult Social Care,Older People (Aged 65 or over) including Older Mental Ill,Mental Health Commissioning,Social Care - Supported Accommodation,01/07/2015,3466385,"2,121.43",HAROLD LODGE 
Adults Services,Adult Social Care,Older People (Aged 65 or over) including Older Mental Ill,Older People Commissioning,Social Care - Homecare,01/07/2015,3466398,510.3,Mantra Recruitment 
Adults Services,Adult Social Care,Older People (Aged 65 or over) including Older Mental Ill,Physical Dis Commissioning,Social Care - Homecare,01/07/2015,3466409,680.4,Mantra Recruitment 
Adults Services,Adult Social Care,Older People (Aged 65 or over) including Older Mental Ill,Older People Commissioning,Social Care - Homecare,01/07/2015,3466413,619.65,Mantra Recruitment 
Adults Services,Adult Social Care,Older People (Aged 65 or over) including Older Mental Ill,Older People Commissioning,Social Care - Homecare,01/07/2015,3466431,586.56,ATHLONE CARE LTD 
Adults Services,Adult Social Care,Older People (Aged 65 or over) including Older Mental Ill,Physical Dis Commissioning,Social Care - Day Care,01/07/2015,3466433,894.8,HEADWAY EAST LONDON 
Adults Services,Adult Social Care,Older People (Aged 65 or over) including Older Mental Ill,Physical Dis Commissioning,Social Care - Day Care,01/07/2015,3466435,686.8,HEADWAY EAST LONDON 
Adults Services,Adult Social Care,Older People (Aged 65 or over) including Older Mental Ill,Physical Dis Commissioning,Social Care - Day Care,01/07/2015,3466437,686.8,HEADWAY EAST LONDON 
Adults Services,Adult Social Care,Older People (Aged 65 or over) including Older Mental Ill,Physical Dis Commissioning,Social Care - Day Care,01/07/2015,3466438,686.8,HEADWAY EAST LONDON 
Adults Services,Adult Social Care,Older People (Aged 65 or over) including Older Mental Ill,Physical Dis Commissioning,Social Care - Day Care,01/07/2015,3466439,"1,011.12",HEADWAY EAST LONDON 
Adults Services,Adult Social Care,Older People (Aged 65 or over) including Older Mental Ill,Physical Dis Commissioning,Social Care - Day Care,01/07/2015,3466441,"1,011.12",HEADWAY EAST LONDON 
Adults Services,Adult Social Care,Older People (Aged 65 or over) including Older Mental Ill,Older People Commissioning,Social Care - Homecare,01/07/2015,3466447,509.12,ATHLONE CARE LTD 
Adults Services,Adult Social Care,Older People (Aged 65 or over) including Older Mental Ill,Older People Commissioning,Social Care - Homecare,01/07/2015,3466448,555.02,ATHLONE CARE LTD 
Adults Services,Adult Social Care,Older People (Aged 65 or over) including Older Mental Ill,Physical Dis Commissioning,Social Care - Homecare,01/07/2015,3466450,"2,934.06",ATHLONE CARE LTD 
Adults Services,Adult Social Care,Older People (Aged 65 or over) including Older Mental Ill,Physical Dis Commissioning,Social Care - Homecare,01/07/2015,3466451,"1,615.42",ATHLONE CARE LTD 
Adults Services,Adult Social Care,Older People (Aged 65 or over) including Older Mental Ill,Older People Commissioning,Social Care - Homecare,01/07/2015,3466456,775.53,ATHLONE CARE LTD 
Adults Services,Adult Social Care,Older People (Aged 65 or over) including Older Mental Ill,Older People Commissioning,Social Care - Homecare,01/07/2015,3466458,586.57,ATHLONE CARE LTD 
Adults Services,Adult Social Care,Older People (Aged 65 or over) including Older Mental Ill,Mental Health Commissioning,Social Care - Nursing Care,01/07/2015,3466470,"3,162.86",Twinglobe Care Homes Ltd 
Adults Services,Adult Social Care,Older People (Aged 65 or over) including Older Mental Ill,Mental Health Commissioning,Social Care - Prevention & Support,01/07/2015,3466471,"2,142.86",Sign Health 
Adults Services,Adult Social Care,Older People (Aged 65 or over) including Older Mental Ill,Physical Dis Commissioning,Social Care - Prevention & Support,01/07/2015,3466472,"2,142.86",Sign Health 
Adults Services,Adult Social Care,Older People (Aged 65 or over) including Older Mental Ill,Mental Health Commissioning,Social Care - Supported Accommodation,01/07/2015,3466473,"3,409.20",Sign Health 
Adults Services,Adult Social Care,Older People (Aged 65 or over) including Older Mental Ill,Physical Dis Commissioning,Social Care - Help to Live at Home,01/07/2015,3466474,"3,409.20",Sign Health 
Adults Services,Adult Social Care,Older People (Aged 65 or over) including Older Mental Ill,Physical Dis Commissioning,Social Care - Residential Care,01/07/2015,3466475,"9,222.41",CHRISTCHURCH COURT 
Adults Services,Adult Social Care,Older People (Aged 65 or over) including Older Mental Ill,Mental Health Commissioning,Social Care - Prevention & Support,01/07/2015,3466476,980,City Inn Express Limited 
Adults Services,Adult Social Care,Older People (Aged 65 or over) including Older Mental Ill,Mental Health Commissioning,Social Care - Prevention & Support,01/07/2015,3466477,980,City Inn Express Limited 
Adults Services,Adult Social Care,Older People (Aged 65 or over) including Older Mental Ill,Mental Health Commissioning,Social Care - Prevention & Support,01/07/2015,3466478,980,City Inn Express Limited 
Adults Services,Adult Social Care,Older People (Aged 65 or over) including Older Mental Ill,Mental Health Commissioning,Social Care - Prevention & Support,01/07/2015,3466479,980,City Inn Express Limited 
Adults Services,Adult Social Care,Older People (Aged 65 or over) including Older Mental Ill,Mental Health Commissioning,Social Care - Prevention & Support,01/07/2015,3466480,980,City Inn Express Limited 
Adults Services,Adult Social Care,Older People (Aged 65 or over) including Older Mental Ill,Mental Health Commissioning,Social Care - Prevention & Support,01/07/2015,3466481,980,City Inn Express Limited 
Adults Services,Adult Social Care,Older People (Aged 65 or over) including Older Mental Ill,Mental Health Commissioning,Social Care - Prevention & Support,01/07/2015,3466482,980,City Inn Express Limited 
Adults Services,Adult Social Care,Older People (Aged 65 or over) including Older Mental Ill,Mental Health Commissioning,Social Care - Prevention & Support,01/07/2015,3466483,980,City Inn Express Limited 
Adults Services,Adult Social Care,Older People (Aged 65 or over) including Older Mental Ill,Mental Health Commissioning,Social Care - Prevention & Support,01/07/2015,3466484,980,City Inn Express Limited 
Adults Services,Adult Social Care,Older People (Aged 65 or over) including Older Mental Ill,Mental Health Commissioning,Social Care - Prevention & Support,01/07/2015,3466485,980,City Inn Express Limited 
Adults Services,Adult Social Care,Older People (Aged 65 or over) including Older Mental Ill,Mental Health Commissioning,Social Care - Prevention & Support,01/07/2015,3466486,980,City Inn Express Limited 
Adults Services,Adult Social Care,Older People (Aged 65 or over) including Older Mental Ill,Mental Health Commissioning,Social Care - Prevention & Support,01/07/2015,3466487,980,City Inn Express Limited 
Adults Services,Adult Social Care,Older People (Aged 65 or over) including Older Mental Ill,Mental Health Commissioning,Social Care - Prevention & Support,01/07/2015,3466488,980,City Inn Express Limited 
Adults Services,Adult Social Care,Older People (Aged 65 or over) including Older Mental Ill,Learning Dis Commissioning,Social Care - Day Care,01/07/2015,3466504,978.75,YOUR CHOICE (BARNET) LTD 
Adults Services,Adult Social Care,Older People (Aged 65 or over) including Older Mental Ill,Physical Dis Commissioning,Social Care - Homecare,01/07/2015,3466505,"2,126.32",Carewatch Newham Ltd 
Adults Services,Adult Social Care,Older People (Aged 65 or over) including Older Mental Ill,Older People Commissioning,Social Care - Homecare,01/07/2015,3466506,"1,146.36",Carewatch Newham Ltd 
Adults Services,Adult Social Care,Older People (Aged 65 or over) including Older Mental Ill,Physical Dis Commissioning,Social Care - Homecare,01/07/2015,3466507,"1,107.97",Carewatch Newham Ltd 
Adults Services,Adult Social Care,Older People (Aged 65 or over) including Older Mental Ill,Older People Commissioning,Social Care - Homecare,01/07/2015,3466508,587.16,Carewatch Newham Ltd 
Adults Services,Adult Social Care,Older People (Aged 65 or over) including Older Mental Ill,Mental Health Commissioning,Social Care - Homecare,01/07/2015,3466509,782.88,Carewatch Newham Ltd 
Adults Services,Adult Social Care,Older People (Aged 65 or over) including Older Mental Ill,Older People Commissioning,Social Care - Homecare,01/07/2015,3466517,"1,160.34",Carewatch Newham Ltd 
Adults Services,Adult Social Care,Older People (Aged 65 or over) including Older Mental Ill,Older People Commissioning,Social Care - Homecare,01/07/2015,3466521,573.32,Carewatch Newham Ltd 
Adults Services,Adult Social Care,Older People (Aged 65 or over) including Older Mental Ill,Older People Commissioning,Social Care - Homecare,01/07/2015,3466529,971.61,Carewatch Newham Ltd 
Adults Services,Adult Social Care,Older People (Aged 65 or over) including Older Mental Ill,Older People Commissioning,Social Care - Homecare,01/07/2015,3466535,838.8,Carewatch Newham Ltd 
Adults Services,Adult Social Care,Older People (Aged 65 or over) including Older Mental Ill,Older People Commissioning,Social Care - Homecare,01/07/2015,3466538,789.87,Carewatch Newham Ltd 
Adults Services,Adult Social Care,Older People (Aged 65 or over) including Older Mental Ill,Older People Commissioning,Social Care - Homecare,01/07/2015,3466539,818.11,Carewatch Newham Ltd 
Adults Services,Adult Social Care,Older People (Aged 65 or over) including Older Mental Ill,Physical Dis Commissioning,Social Care - Homecare,01/07/2015,3466540,985.59,Carewatch Newham Ltd 
Adults Services,Adult Social Care,Older People (Aged 65 or over) including Older Mental Ill,Older People Commissioning,Social Care - Homecare,01/07/2015,3466549,796.88,Carewatch Newham Ltd 
Adults Services,Adult Social Care,Older People (Aged 65 or over) including Older Mental Ill,Older People Commissioning,Social Care - Homecare,01/07/2015,3466553,510.34,Carewatch Newham Ltd 
Adults Services,Adult Social Care,Older People (Aged 65 or over) including Older Mental Ill,Physical Dis Commissioning,Social Care - Homecare,01/07/2015,3466554,"2,126.32",Carewatch Newham Ltd 
Adults Services,Adult Social Care,Older People (Aged 65 or over) including Older Mental Ill,Older People Commissioning,Social Care - Homecare,01/07/2015,3466555,"1,090.44",Carewatch Newham Ltd 
Adults Services,Adult Social Care,Older People (Aged 65 or over) including Older Mental Ill,Physical Dis Commissioning,Social Care - Homecare,01/07/2015,3466556,"1,013.56",Carewatch Newham Ltd 
Adults Services,Adult Social Care,Older People (Aged 65 or over) including Older Mental Ill,Older People Commissioning,Social Care - Homecare,01/07/2015,3466557,587.16,Carewatch Newham Ltd 
Adults Services,Adult Social Care,Older People (Aged 65 or over) including Older Mental Ill,Mental Health Commissioning,Social Care - Homecare,01/07/2015,3466558,517.26,Carewatch Newham Ltd 
Adults Services,Adult Social Care,Older People (Aged 65 or over) including Older Mental Ill,Older People Commissioning,Social Care - Homecare,01/07/2015,3466568,573.32,Carewatch Newham Ltd 
Adults Services,Adult Social Care,Older People (Aged 65 or over) including Older Mental Ill,Older People Commissioning,Social Care - Homecare,01/07/2015,3466572,538.3,Carewatch Newham Ltd 
Adults Services,Adult Social Care,Older People (Aged 65 or over) including Older Mental Ill,Older People Commissioning,Social Care - Homecare,01/07/2015,3466575,978.6,Carewatch Newham Ltd 
Adults Services,Adult Social Care,Older People (Aged 65 or over) including Older Mental Ill,Older People Commissioning,Social Care - Homecare,01/07/2015,3466580,838.8,Carewatch Newham Ltd 
Adults Services,Adult Social Care,Older People (Aged 65 or over) including Older Mental Ill,Physical Dis Commissioning,Social Care - Homecare,01/07/2015,3466585,"1,048.50",Carewatch Newham Ltd 
Adults Services,Adult Social Care,Older People (Aged 65 or over) including Older Mental Ill,Older People Commissioning,Social Care - Homecare,01/07/2015,3466594,754.94,Carewatch Newham Ltd 
Adults Services,Adult Social Care,Older People (Aged 65 or over) including Older Mental Ill,Older People Commissioning,Social Care - Homecare,01/07/2015,3466598,510.34,Carewatch Newham Ltd 
Adults Services,Adult Social Care,Older People (Aged 65 or over) including Older Mental Ill,Older People Commissioning,Social Care - Homecare,01/07/2015,3466617,610.68,Excelcare (Home Care Division) LTD 
Adults Services,Adult Social Care,Older People (Aged 65 or over) including Older Mental Ill,Older People Commissioning,Social Care - Homecare,01/07/2015,3466622,542.42,Excelcare (Home Care Division) LTD 
Adults Services,Adult Social Care,Older People (Aged 65 or over) including Older Mental Ill,Learning Dis Commissioning,Social Care - Personal Budgets - Non-Trad Service,01/07/2015,3466624,698.4,MEARS CARE LTD 
Adults Services,Adult Social Care,Older People (Aged 65 or over) including Older Mental Ill,Learning Dis Commissioning,Social Care - Personal Budgets - Non-Trad Service,01/07/2015,3466625,"1,738.89",MEARS CARE LTD 
Adults Services,Adult Social Care,Older People (Aged 65 or over) including Older Mental Ill,Learning Dis Commissioning,Social Care - Homecare,01/07/2015,3466627,"2,590.20",MEARS CARE LTD 
Adults Services,Adult Social Care,Older People (Aged 65 or over) including Older Mental Ill,Learning Dis Commissioning,Social Care - Personal Budgets - Non-Trad Service,01/07/2015,3466630,"1,743.33",MEARS CARE LTD 
Adults Services,Adult Social Care,Older People (Aged 65 or over) including Older Mental Ill,Learning Dis Commissioning,Social Care - Homecare,01/07/2015,3466632,"2,599.80",MEARS CARE LTD 
Adults Services,Adult Social Care,Older People (Aged 65 or over) including Older Mental Ill,Older People Commissioning,Social Care - Residential Care,01/07/2015,3466636,"2,856.43",QUANTUM CARE LTD 
Adults Services,Adult Social Care,Older People (Aged 65 or over) including Older Mental Ill,Older People Commissioning,Social Care - Residential Care,01/07/2015,3466637,"2,764.29",QUANTUM CARE LTD 
Adults Services,Adult Social Care,Older People (Aged 65 or over) including Older Mental Ill,Older People Commissioning,Social Care - Residential Care,01/07/2015,3466638,"2,856.43",QUANTUM CARE LTD 
Adults Services,Adult Social Care,Older People (Aged 65 or over) including Older Mental Ill,Older People Commissioning,Social Care - Personal Budgets - Cash,01/07/2015,3466641,"-6,630.36",DAVID HOWARD LTD CLIENT ACCOUNT 
Adults Services,Adult Social Care,Older People (Aged 65 or over) including Older Mental Ill,Learning Dis Commissioning,Social Care - Residential Care,01/07/2015,3466651,"3,740.40",FUTURE LIFE LTD 
Adults Services,Adult Social Care,Older People (Aged 65 or over) including Older Mental Ill,Learning Dis Commissioning,Client Contributions for Social Care - Residential Care,01/07/2015,3466651,"16,312.48",FUTURE LIFE LTD 
Adults Services,Adult Social Care,Older People (Aged 65 or over) including Older Mental Ill,Learning Dis Commissioning,Social Care - Residential Care,01/07/2015,3466652,"5,907.68",ANGEL SUPPORT LIVING LTD 
Adults Services,Adult Social Care,Older People (Aged 65 or over) including Older Mental Ill,Mental Health Commissioning,Social Care - Residential Care,01/07/2015,3466653,"9,767.14",SHANTI HEALTHCARE LTD 
Adults Services,Adult Social Care,Older People (Aged 65 or over) including Older Mental Ill,Mental Health Commissioning,Social Care - Residential Care,01/07/2015,3466654,650,ST MICHAELS LODGE T/A SHAKTHI HEALTHCARE LIMITED 
Adults Services,Adult Social Care,Older People (Aged 65 or over) including Older Mental Ill,Learning Dis Commissioning,Social Care - Personal Budgets - Cash,01/07/2015,3466656,"5,206.68",DAVID HOWARD LTD CLIENT ACCOUNT 
Adults Services,Adult Social Care,Older People (Aged 65 or over) including Older Mental Ill,Older People Commissioning,Social Care - Personal Budgets - Cash,01/07/2015,3466657,"3,679.34",D D PAYROLL SERVICES 
Adults Services,Adult Social Care,Older People (Aged 65 or over) including Older Mental Ill,Older People Commissioning,Social Care - Homecare,01/07/2015,3466662,551,SEVACARE UK LTD 
Adults Services,Adult Social Care,Older People (Aged 65 or over) including Older Mental Ill,Older People Commissioning,Social Care - Homecare,01/07/2015,3466670,"1,116.50",SEVACARE UK LTD 
Adults Services,Adult Social Care,Older People (Aged 65 or over) including Older Mental Ill,Older People Commissioning,Social Care - Homecare,01/07/2015,3466673,"1,116.50",SEVACARE UK LTD 
Adults Services,Adult Social Care,Older People (Aged 65 or over) including Older Mental Ill,Older People Commissioning,Social Care - Homecare,01/07/2015,3466678,804.75,SEVACARE UK LTD 
Adults Services,Adult Social Care,Older People (Aged 65 or over) including Older Mental Ill,Older People Commissioning,Social Care - Personal Budgets - Non-Trad Service,01/07/2015,3466688,"1,087.50",SEVACARE UK LTD 
Adults Services,Adult Social Care,Older People (Aged 65 or over) including Older Mental Ill,Older People Commissioning,Social Care - Homecare,01/07/2015,3466689,507.5,SEVACARE UK LTD 
Adults Services,Adult Social Care,Older People (Aged 65 or over) including Older Mental Ill,Older People Commissioning,Social Care - Homecare,01/07/2015,3466703,"1,015.00",SEVACARE UK LTD 
Adults Services,Adult Social Care,Older People (Aged 65 or over) including Older Mental Ill,Older People Commissioning,Social Care - Homecare,01/07/2015,3466711,565.5,SEVACARE UK LTD 
Adults Services,Adult Social Care,Older People (Aged 65 or over) including Older Mental Ill,Older People Commissioning,Social Care - Homecare,01/07/2015,3466718,507.5,SEVACARE UK LTD 
Adults Services,Adult Social Care,Older People (Aged 65 or over) including Older Mental Ill,Older People Commissioning,Social Care - Homecare,01/07/2015,3466724,913.5,SEVACARE UK LTD 
Adults Services,Adult Social Care,Older People (Aged 65 or over) including Older Mental Ill,Physical Dis Commissioning,Social Care - Homecare,01/07/2015,3466728,507.5,SEVACARE UK LTD 
Adults Services,Adult Social Care,Older People (Aged 65 or over) including Older Mental Ill,Physical Dis Commissioning,Social Care - Homecare,01/07/2015,3466732,"1,616.75",SEVACARE UK LTD 
Adults Services,Adult Social Care,Older People (Aged 65 or over) including Older Mental Ill,Older People Commissioning,Social Care - Homecare,01/07/2015,3466739,522,SEVACARE UK LTD 
Adults Services,Adult Social Care,Older People (Aged 65 or over) including Older Mental Ill,Mental Health Commissioning,Social Care - Homecare,01/07/2015,3466765,812,SEVACARE UK LTD 
Adults Services,Adult Social Care,Older People (Aged 65 or over) including Older Mental Ill,Older People Commissioning,Social Care - Homecare,01/07/2015,3466768,572.75,SEVACARE UK LTD 
Adults Services,Adult Social Care,Older People (Aged 65 or over) including Older Mental Ill,Older People Commissioning,Social Care - Homecare,01/07/2015,3466774,551,SEVACARE UK LTD 
Adults Services,Adult Social Care,Older People (Aged 65 or over) including Older Mental Ill,Older People Commissioning,Social Care - Homecare,01/07/2015,3466782,601.75,SEVACARE UK LTD 
Adults Services,Adult Social Care,Older People (Aged 65 or over) including Older Mental Ill,Older People Commissioning,Social Care - Homecare,01/07/2015,3466785,"1,116.50",SEVACARE UK LTD 
Adults Services,Adult Social Care,Older People (Aged 65 or over) including Older Mental Ill,Older People Commissioning,Social Care - Personal Budgets - Non-Trad Service,01/07/2015,3466800,"1,087.50",SEVACARE UK LTD 
Adults Services,Adult Social Care,Older People (Aged 65 or over) including Older Mental Ill,Older People Commissioning,Social Care - Homecare,01/07/2015,3466814,"1,015.00",SEVACARE UK LTD 
Adults Services,Adult Social Care,Older People (Aged 65 or over) including Older Mental Ill,Older People Commissioning,Social Care - Homecare,01/07/2015,3466820,565.5,SEVACARE UK LTD 
Adults Services,Adult Social Care,Older People (Aged 65 or over) including Older Mental Ill,Older People Commissioning,Social Care - Homecare,01/07/2015,3466827,507.5,SEVACARE UK LTD 
Adults Services,Adult Social Care,Older People (Aged 65 or over) including Older Mental Ill,Older People Commissioning,Social Care - Homecare,01/07/2015,3466832,899,SEVACARE UK LTD 
Adults Services,Adult Social Care,Older People (Aged 65 or over) including Older Mental Ill,Physical Dis Commissioning,Social Care - Homecare,01/07/2015,3466836,507.5,SEVACARE UK LTD 
Adults Services,Adult Social Care,Older People (Aged 65 or over) including Older Mental Ill,Physical Dis Commissioning,Social Care - Homecare,01/07/2015,3466840,"1,616.75",SEVACARE UK LTD 
Adults Services,Adult Social Care,Older People (Aged 65 or over) including Older Mental Ill,Older People Commissioning,Social Care - Homecare,01/07/2015,3466847,522,SEVACARE UK LTD 
Adults Services,Adult Social Care,Older People (Aged 65 or over) including Older Mental Ill,Older People Commissioning,Social Care - Homecare,01/07/2015,3466864,565.5,SEVACARE UK LTD 
Adults Services,Adult Social Care,Older People (Aged 65 or over) including Older Mental Ill,Older People Commissioning,Social Care - Homecare,01/07/2015,3466868,507.5,SEVACARE UK LTD 
Adults Services,Adult Social Care,Older People (Aged 65 or over) including Older Mental Ill,Older People Commissioning,Social Care - Homecare,01/07/2015,3466874,572.75,SEVACARE UK LTD 
Adults Services,Adult Social Care,Older People (Aged 65 or over) including Older Mental Ill,Learning Dis Commissioning,Social Care - Personal Budgets - Non-Trad Service,01/07/2015,3466875,"1,820.07",MEARS CARE LTD 
Adults Services,Adult Social Care,Older People (Aged 65 or over) including Older Mental Ill,Older People Commissioning,Social Care - Homecare,01/07/2015,3466886,"1,042.25",Oasis Care & Training Agency 
Adults Services,Adult Social Care,Older People (Aged 65 or over) including Older Mental Ill,Learning Dis Commissioning,Social Care - Homecare,01/07/2015,3466893,864,Oasis Care & Training Agency 
Adults Services,Adult Social Care,Older People (Aged 65 or over) including Older Mental Ill,Learning Dis Commissioning,Social Care - Homecare,01/07/2015,3466896,762.75,Oasis Care & Training Agency 
Adults Services,Adult Social Care,Older People (Aged 65 or over) including Older Mental Ill,Older People Commissioning,Social Care - Homecare,01/07/2015,3466897,"1,741.50",Oasis Care & Training Agency 
Adults Services,Adult Social Care,Older People (Aged 65 or over) including Older Mental Ill,Physical Dis Commissioning,Social Care - Homecare,01/07/2015,3466898,580.5,Oasis Care & Training Agency 
Adults Services,Adult Social Care,Older People (Aged 65 or over) including Older Mental Ill,Older People Commissioning,Social Care - Homecare,01/07/2015,3466899,513,Oasis Care & Training Agency 
Adults Services,Adult Social Care,Older People (Aged 65 or over) including Older Mental Ill,Older People Commissioning,Social Care - Homecare,01/07/2015,3466924,877.52,REDSPOT HOMECARE(CONTRACTS) LTD 
Adults Services,Adult Social Care,Older People (Aged 65 or over) including Older Mental Ill,Older People Commissioning,Social Care - Homecare,01/07/2015,3466925,615.73,REDSPOT HOMECARE(CONTRACTS) LTD 
Adults Services,Adult Social Care,Older People (Aged 65 or over) including Older Mental Ill,Older People Commissioning,Social Care - Homecare,01/07/2015,3466926,514.06,REDSPOT HOMECARE(CONTRACTS) LTD 
Adults Services,Adult Social Care,Older People (Aged 65 or over) including Older Mental Ill,Older People Commissioning,Social Care - Homecare,01/07/2015,3466928,714.86,REDSPOT HOMECARE(CONTRACTS) LTD 
Adults Services,Adult Social Care,Older People (Aged 65 or over) including Older Mental Ill,Physical Dis Commissioning,Social Care - Personal Budgets - Non-Trad Service,01/07/2015,3466929,"1,030.65",REDSPOT HOMECARE(CONTRACTS) LTD 
Adults Services,Adult Social Care,Older People (Aged 65 or over) including Older Mental Ill,Older People Commissioning,Social Care - Homecare,01/07/2015,3466934,537.41,REDSPOT HOMECARE(CONTRACTS) LTD 
Adults Services,Adult Social Care,Older People (Aged 65 or over) including Older Mental Ill,Physical Dis Commissioning,Social Care - Homecare,01/07/2015,3466936,545.19,REDSPOT HOMECARE(CONTRACTS) LTD 
Adults Services,Adult Social Care,Older People (Aged 65 or over) including Older Mental Ill,Older People Commissioning,Social Care - Homecare,01/07/2015,3466942,636.06,REDSPOT HOMECARE(CONTRACTS) LTD 
Adults Services,Adult Social Care,Older People (Aged 65 or over) including Older Mental Ill,Older People Commissioning,Social Care - Homecare,01/07/2015,3466945,"1,065.28",REDSPOT HOMECARE(CONTRACTS) LTD 
Adults Services,Adult Social Care,Older People (Aged 65 or over) including Older Mental Ill,Physical Dis Commissioning,Social Care - Homecare,01/07/2015,3466952,817.79,REDSPOT HOMECARE(CONTRACTS) LTD 
Adults Services,Adult Social Care,Older People (Aged 65 or over) including Older Mental Ill,Older People Commissioning,Social Care - Homecare,01/07/2015,3466964,858.45,REDSPOT HOMECARE(CONTRACTS) LTD 
Adults Services,Adult Social Care,Older People (Aged 65 or over) including Older Mental Ill,Older People Commissioning,Social Care - Homecare,01/07/2015,3466978,612.59,REDSPOT HOMECARE(CONTRACTS) LTD 
Adults Services,Adult Social Care,Older People (Aged 65 or over) including Older Mental Ill,Older People Commissioning,Social Care - Homecare,01/07/2015,3466979,587.61,REDSPOT HOMECARE(CONTRACTS) LTD 
Adults Services,Adult Social Care,Older People (Aged 65 or over) including Older Mental Ill,Mental Health Commissioning,Social Care - Supported Accommodation,01/07/2015,3466981,"2,435.71",ANGEL SUPPORT LIVING LTD 
Adults Services,Adult Social Care,Older People (Aged 65 or over) including Older Mental Ill,Mental Health Commissioning,Social Care - Supported Accommodation,01/07/2015,3466982,"2,357.14",ANGEL SUPPORT LIVING LTD 
Adults Services,Adult Social Care,Older People (Aged 65 or over) including Older Mental Ill,Physical Dis Commissioning,Social Care - Residential Care,01/07/2015,3466984,"3,145.71",HEALTH & HOME LTD (ALEXANDER HOUSE) 
Adults Services,Adult Social Care,Older People (Aged 65 or over) including Older Mental Ill,Older People Commissioning,Social Care - Residential Care,01/07/2015,3466985,"1,941.90",ASHBOURNE HEALTHCARE 
Adults Services,Adult Social Care,Older People (Aged 65 or over) including Older Mental Ill,Older People Commissioning,Social Care - Residential Care,01/07/2015,3466985,-592.11,ASHBOURNE HEALTHCARE 
Adults Services,Adult Social Care,Older People (Aged 65 or over) including Older Mental Ill,Physical Dis Commissioning,Social Care - Residential Care,01/07/2015,3466986,"1,898.70",BLAIR HOUSE 
Adults Services,Adult Social Care,Older People (Aged 65 or over) including Older Mental Ill,Learning Dis Commissioning,Social Care - Homecare,01/07/2015,3466988,"2,044.00",COMMUNITY CARE CONSORTIUM 
Adults Services,Adult Social Care,Older People (Aged 65 or over) including Older Mental Ill,Older People Commissioning,Social Care - Homecare,01/07/2015,3466989,"1,898.00",COMMUNITY CARE CONSORTIUM 
Adults Services,Adult Social Care,Older People (Aged 65 or over) including Older Mental Ill,Older People Commissioning,Social Care - Personal Budgets - Non-Trad Service,01/07/2015,3466990,"1,547.60",COMMUNITY CARE CONSORTIUM 
Adults Services,Adult Social Care,Older People (Aged 65 or over) including Older Mental Ill,Older People Commissioning,Social Care - Homecare,01/07/2015,3466991,"1,533.00",COMMUNITY CARE CONSORTIUM 
Adults Services,Adult Social Care,Older People (Aged 65 or over) including Older Mental Ill,Mental Health Commissioning,Social Care - Personal Budgets - Non-Trad Service,01/07/2015,3466992,"1,226.40",COMMUNITY CARE CONSORTIUM 
Adults Services,Adult Social Care,Older People (Aged 65 or over) including Older Mental Ill,Learning Dis Commissioning,Social Care - Homecare,01/07/2015,3466993,"1,022.00",COMMUNITY CARE CONSORTIUM 
Adults Services,Adult Social Care,Older People (Aged 65 or over) including Older Mental Ill,Older People Commissioning,Social Care - Homecare,01/07/2015,3466994,992.8,COMMUNITY CARE CONSORTIUM 
Adults Services,Adult Social Care,Older People (Aged 65 or over) including Older Mental Ill,Learning Dis Commissioning,Social Care - Homecare,01/07/2015,3466995,978.2,COMMUNITY CARE CONSORTIUM 
Adults Services,Adult Social Care,Older People (Aged 65 or over) including Older Mental Ill,Older People Commissioning,Social Care - Homecare,01/07/2015,3466996,817.6,COMMUNITY CARE CONSORTIUM 
Adults Services,Adult Social Care,Older People (Aged 65 or over) including Older Mental Ill,Older People Commissioning,Social Care - Homecare,01/07/2015,3466997,781.1,COMMUNITY CARE CONSORTIUM 
Adults Services,Adult Social Care,Older People (Aged 65 or over) including Older Mental Ill,Physical Dis Commissioning,Social Care - Homecare,01/07/2015,3466998,737.3,COMMUNITY CARE CONSORTIUM 
Adults Services,Adult Social Care,Older People (Aged 65 or over) including Older Mental Ill,Learning Dis Commissioning,Social Care - Homecare,01/07/2015,3466999,730,COMMUNITY CARE CONSORTIUM 
Adults Services,Adult Social Care,Older People (Aged 65 or over) including Older Mental Ill,Learning Dis Commissioning,Social Care - Homecare,01/07/2015,3467000,700.8,COMMUNITY CARE CONSORTIUM 
Adults Services,Adult Social Care,Older People (Aged 65 or over) including Older Mental Ill,Older People Commissioning,Social Care - Homecare,01/07/2015,3467001,649.7,COMMUNITY CARE CONSORTIUM 
Adults Services,Adult Social Care,Older People (Aged 65 or over) including Older Mental Ill,Learning Dis Commissioning,Social Care - Homecare,01/07/2015,3467002,613.2,COMMUNITY CARE CONSORTIUM 
Adults Services,Adult Social Care,Older People (Aged 65 or over) including Older Mental Ill,Learning Dis Commissioning,Social Care - Personal Budgets - Non-Trad Service,01/07/2015,3467003,613.2,COMMUNITY CARE CONSORTIUM 
Adults Services,Adult Social Care,Older People (Aged 65 or over) including Older Mental Ill,Learning Dis Commissioning,Social Care - Homecare,01/07/2015,3467004,598.6,COMMUNITY CARE CONSORTIUM 
Adults Services,Adult Social Care,Older People (Aged 65 or over) including Older Mental Ill,Physical Dis Commissioning,Social Care - Homecare,01/07/2015,3467005,598.6,COMMUNITY CARE CONSORTIUM 
Adults Services,Adult Social Care,Older People (Aged 65 or over) including Older Mental Ill,Learning Dis Commissioning,Social Care - Homecare,01/07/2015,3467006,584,COMMUNITY CARE CONSORTIUM 
Adults Services,Adult Social Care,Older People (Aged 65 or over) including Older Mental Ill,Learning Dis Commissioning,Social Care - Homecare,01/07/2015,3467007,584,COMMUNITY CARE CONSORTIUM 
Adults Services,Adult Social Care,Older People (Aged 65 or over) including Older Mental Ill,Physical Dis Commissioning,Social Care - Homecare,01/07/2015,3467008,576.7,COMMUNITY CARE CONSORTIUM 
Adults Services,Adult Social Care,Older People (Aged 65 or over) including Older Mental Ill,Older People Commissioning,Social Care - Homecare,01/07/2015,3467011,525.6,COMMUNITY CARE CONSORTIUM 
Adults Services,Adult Social Care,Older People (Aged 65 or over) including Older Mental Ill,Learning Dis Commissioning,Social Care - Homecare,01/07/2015,3467012,525.6,COMMUNITY CARE CONSORTIUM 
Adults Services,Adult Social Care,Older People (Aged 65 or over) including Older Mental Ill,Mental Health Commissioning,Social Care - Prevention & Support,01/07/2015,3467070,"1,025.00",Alma Attic Ltd T/A Glorydale Inn 
Adults Services,Adult Social Care,Older People (Aged 65 or over) including Older Mental Ill,Learning Dis Commissioning,Social Care - Personal Budgets - Non-Trad Service,01/07/2015,3467071,"1,323.14",Tower Project 
Adults Services,Adult Social Care,Older People (Aged 65 or over) including Older Mental Ill,Learning Dis Commissioning,Social Care - Personal Budgets - Non-Trad Service,01/07/2015,3467072,"1,228.63",Tower Project 
Adults Services,Adult Social Care,Older People (Aged 65 or over) including Older Mental Ill,Learning Dis Commissioning,Social Care - Personal Budgets - Non-Trad Service,01/07/2015,3467073,"1,134.12",Tower Project 
Adults Services,Adult Social Care,Older People (Aged 65 or over) including Older Mental Ill,Learning Dis Commissioning,Social Care - Day Care,01/07/2015,3467074,"1,228.63",Tower Project 
Adults Services,Adult Social Care,Older People (Aged 65 or over) including Older Mental Ill,Learning Dis Commissioning,Social Care - Day Care,01/07/2015,3467075,"1,134.12",Tower Project 
Adults Services,Adult Social Care,Older People (Aged 65 or over) including Older Mental Ill,Learning Dis Commissioning,Social Care - Day Care,01/07/2015,3467076,850.59,Tower Project 
Adults Services,Adult Social Care,Older People (Aged 65 or over) including Older Mental Ill,Learning Dis Commissioning,Social Care - Day Care,01/07/2015,3467077,"1,323.14",Tower Project 
Adults Services,Adult Social Care,Older People (Aged 65 or over) including Older Mental Ill,Learning Dis Commissioning,Social Care - Day Care,01/07/2015,3467078,"1,134.12",Tower Project 
Adults Services,Adult Social Care,Older People (Aged 65 or over) including Older Mental Ill,Learning Dis Commissioning,Social Care - Day Care,01/07/2015,3467079,"1,134.12",Tower Project 
Adults Services,Adult Social Care,Older People (Aged 65 or over) including Older Mental Ill,Mental Health Commissioning,Social Care - Prevention & Support,01/07/2015,3467080,"1,500.00",Alma Attic Ltd T/A Glorydale Inn 
Adults Services,Adult Social Care,Older People (Aged 65 or over) including Older Mental Ill,Physical Dis Commissioning,Social Care - Personal Budgets - Non-Trad Service,01/07/2015,3467082,"4,705.44",MiHOMECARE LIMITED 
Adults Services,Adult Social Care,Older People (Aged 65 or over) including Older Mental Ill,Learning Dis Commissioning,Social Care - Homecare,01/07/2015,3467083,"3,863.83",MiHOMECARE LIMITED 
Adults Services,Adult Social Care,Older People (Aged 65 or over) including Older Mental Ill,Older People Commissioning,Social Care - Nursing Care,01/07/2015,3467092,"2,315.19",HAWKINGE HOUSE LTD 
Adults Services,Adult Social Care,Older People (Aged 65 or over) including Older Mental Ill,Mental Health Commissioning,Social Care - Nursing Care,01/07/2015,3467093,"4,234.28",SANCTUARY CARE LTD 
Adults Services,Adult Social Care,Older People (Aged 65 or over) including Older Mental Ill,Mental Health Commissioning,Social Care - Residential Care,01/07/2015,3467093,-531.21,SANCTUARY CARE LTD 
Adults Services,Adult Social Care,Older People (Aged 65 or over) including Older Mental Ill,Mental Health Commissioning,Social Care - Nursing Care,01/07/2015,3467094,"2,346.26",SANCTUARY CARE LTD 
Adults Services,Adult Social Care,Older People (Aged 65 or over) including Older Mental Ill,Older People Commissioning,Social Care - Homecare,01/07/2015,3467096,784.02,CIRCLE SUPPORT CONSORTIUM 
Adults Services,Adult Social Care,Older People (Aged 65 or over) including Older Mental Ill,Mental Health Commissioning,Social Care - Homecare,01/07/2015,3467099,507.5,CIRCLE SUPPORT CONSORTIUM 
Adults Services,Adult Social Care,Older People (Aged 65 or over) including Older Mental Ill,Older People Commissioning,Social Care - Homecare,01/07/2015,3467104,870,CIRCLE SUPPORT CONSORTIUM 
Adults Services,Adult Social Care,Older People (Aged 65 or over) including Older Mental Ill,Older People Commissioning,Social Care - Homecare,01/07/2015,3467109,681.5,CIRCLE SUPPORT CONSORTIUM 
Adults Services,Adult Social Care,Older People (Aged 65 or over) including Older Mental Ill,Older People Commissioning,Social Care - Homecare,01/07/2015,3467113,529.25,CIRCLE SUPPORT CONSORTIUM 
Adults Services,Adult Social Care,Older People (Aged 65 or over) including Older Mental Ill,Older People Commissioning,Social Care - Homecare,01/07/2015,3467118,638,CIRCLE SUPPORT CONSORTIUM 
Adults Services,Adult Social Care,Older People (Aged 65 or over) including Older Mental Ill,Older People Commissioning,Social Care - Homecare,01/07/2015,3467122,840,CIRCLE SUPPORT CONSORTIUM 
Adults Services,Adult Social Care,Older People (Aged 65 or over) including Older Mental Ill,Older People Commissioning,Social Care - Homecare,01/07/2015,3467125,658,CIRCLE SUPPORT CONSORTIUM 
Adults Services,Adult Social Care,Older People (Aged 65 or over) including Older Mental Ill,Older People Commissioning,Social Care - Homecare,01/07/2015,3467127,511,CIRCLE SUPPORT CONSORTIUM 
Adults Services,Adult Social Care,Older People (Aged 65 or over) including Older Mental Ill,Older People Commissioning,Social Care - Homecare,01/07/2015,3467131,616,CIRCLE SUPPORT CONSORTIUM 
Adults Services,Adult Social Care,Older People (Aged 65 or over) including Older Mental Ill,Mental Health Commissioning,Social Care - Residential Care,01/07/2015,3467133,"2,729.14",AVANTE CARE & SUPPORT 
Adults Services,Adult Social Care,Older People (Aged 65 or over) including Older Mental Ill,Learning Dis Commissioning,Social Care - Prevention & Support,01/07/2015,3467135,"1,100.00",Plaza London Hotel 
Adults Services,Adult Social Care,Older People (Aged 65 or over) including Older Mental Ill,Physical Dis Commissioning,Social Care - Nursing Care,01/07/2015,3467136,"3,853.33",LIFE STYLE CARE (2011) PLC 
Adults Services,Adult Social Care,Older People (Aged 65 or over) including Older Mental Ill,Learning Dis Commissioning,Social Care - Homecare,01/07/2015,3467137,586.5,APASENTH 
Adults Services,Adult Social Care,Older People (Aged 65 or over) including Older Mental Ill,Learning Dis Commissioning,Social Care - Residential Care,01/07/2015,3467138,"6,600.00",FAIRKYTES 
Adults Services,Adult Social Care,Older People (Aged 65 or over) including Older Mental Ill,Physical Dis Commissioning,Social Care - Residential Care,01/07/2015,3467147,"5,888.61",HEALTH & HOME LTD (ALEXANDER HOUSE) 
Adults Services,Adult Social Care,Older People (Aged 65 or over) including Older Mental Ill,Mental Health Commissioning,Social Care - Supported Accommodation,01/07/2015,3467149,663.96,Look Ahead Care & Support Ltd 
Adults Services,Adult Social Care,Older People (Aged 65 or over) including Older Mental Ill,Learning Dis Commissioning,Social Care - Homecare,01/07/2015,3467151,799.54,East Thames Group Ltd 
Adults Services,Adult Social Care,Older People (Aged 65 or over) including Older Mental Ill,Physical Dis Commissioning,Social Care - Residential Care,01/07/2015,3467153,"5,695.71",THE NATIONAL SOCIETY FOR EPILEPSY 
Adults Services,Adult Social Care,Older People (Aged 65 or over) including Older Mental Ill,Older People Commissioning,Social Care - Homecare,01/07/2015,3467155,638,CIRCLE SUPPORT CONSORTIUM 
Adults Services,Adult Social Care,Older People (Aged 65 or over) including Older Mental Ill,Learning Dis Commissioning,Social Care - Personal Budgets - Non-Trad Service,01/07/2015,3467157,"1,462.50",QALB Centre Short Break Services 
Adults Services,Adult Social Care,Older People (Aged 65 or over) including Older Mental Ill,Older People Commissioning,Social Care - Nursing Care,01/07/2015,3467158,"2,542.67",Sunhill Court 
Adults Services,Adult Social Care,Older People (Aged 65 or over) including Older Mental Ill,Older People Commissioning,Social Care - Homecare,01/07/2015,3467166,"3,393.89",SANCTUARY HOME CARE LIMITED 
Adults Services,Adult Social Care,Older People (Aged 65 or over) including Older Mental Ill,Physical Dis Commissioning,Social Care - Homecare,01/07/2015,3467190,727.26,SANCTUARY HOME CARE LIMITED 
Adults Services,Adult Social Care,Older People (Aged 65 or over) including Older Mental Ill,Older People Commissioning,Social Care - Homecare,01/07/2015,3467195,"3,393.88",SANCTUARY HOME CARE LIMITED 
Adults Services,Adult Social Care,Older People (Aged 65 or over) including Older Mental Ill,Older People Commissioning,Social Care - Homecare,01/07/2015,3467202,"1,283.40",SANCTUARY HOME CARE LIMITED 
Adults Services,Adult Social Care,Older People (Aged 65 or over) including Older Mental Ill,Older People Commissioning,Social Care - Homecare,01/07/2015,3467209,677.36,SANCTUARY HOME CARE LIMITED 
Adults Services,Adult Social Care,Older People (Aged 65 or over) including Older Mental Ill,Older People Commissioning,Social Care - Homecare,01/07/2015,3467224,"1,055.24",SANCTUARY HOME CARE LIMITED 
Adults Services,Adult Social Care,Older People (Aged 65 or over) including Older Mental Ill,Older People Commissioning,Social Care - Homecare,01/07/2015,3467225,613.2,SANCTUARY HOME CARE LIMITED 
Adults Services,Adult Social Care,Older People (Aged 65 or over) including Older Mental Ill,Older People Commissioning,Social Care - Homecare,01/07/2015,3467239,598.94,SANCTUARY HOME CARE LIMITED 
Adults Services,Adult Social Care,Older People (Aged 65 or over) including Older Mental Ill,Older People Commissioning,Social Care - Homecare,01/07/2015,3467253,648.84,SANCTUARY HOME CARE LIMITED 
Adults Services,Adult Social Care,Older People (Aged 65 or over) including Older Mental Ill,Physical Dis Commissioning,Social Care - Homecare,01/07/2015,3467259,784.3,SANCTUARY HOME CARE LIMITED 
Adults Services,Adult Social Care,Older People (Aged 65 or over) including Older Mental Ill,Older People Commissioning,Social Care - Homecare,01/07/2015,3467270,"1,645.88",Soma Healthcare Ltd 
Adults Services,Adult Social Care,Older People (Aged 65 or over) including Older Mental Ill,Older People Commissioning,Social Care - Homecare,01/07/2015,3467282,527.25,Soma Healthcare Ltd 
Adults Services,Adult Social Care,Older People (Aged 65 or over) including Older Mental Ill,Older People Commissioning,Social Care - Homecare,01/07/2015,3467292,505.88,Soma Healthcare Ltd 
Adults Services,Adult Social Care,Older People (Aged 65 or over) including Older Mental Ill,Older People Commissioning,Social Care - Homecare,01/07/2015,3467294,"1,788.38",Soma Healthcare Ltd 
Adults Services,Adult Social Care,Older People (Aged 65 or over) including Older Mental Ill,Older People Commissioning,Social Care - Homecare,01/07/2015,3467326,"1,380.91",Soma Healthcare Ltd 
Adults Services,Adult Social Care,Older People (Aged 65 or over) including Older Mental Ill,Learning Dis Commissioning,Social Care - Homecare,01/07/2015,3467327,861.39,Soma Healthcare Ltd 
Adults Services,Adult Social Care,Older People (Aged 65 or over) including Older Mental Ill,Older People Commissioning,Social Care - Homecare,01/07/2015,3467329,619.14,Soma Healthcare Ltd 
Adults Services,Adult Social Care,Older People (Aged 65 or over) including Older Mental Ill,Physical Dis Commissioning,Social Care - Homecare,01/07/2015,3467332,629.96,Soma Healthcare Ltd 
Adults Services,Adult Social Care,Older People (Aged 65 or over) including Older Mental Ill,Older People Commissioning,Social Care - Homecare,01/07/2015,3467337,765.09,Soma Healthcare Ltd 
Adults Services,Adult Social Care,Older People (Aged 65 or over) including Older Mental Ill,Mental Health Commissioning,Social Care - Personal Budgets - Non-Trad Service,01/07/2015,3467338,541.5,Soma Healthcare Ltd 
Adults Services,Adult Social Care,Older People (Aged 65 or over) including Older Mental Ill,Older People Commissioning,Social Care - Personal Budgets - Non-Trad Service,01/07/2015,3467344,904.03,Soma Healthcare Ltd 
Adults Services,Adult Social Care,Older People (Aged 65 or over) including Older Mental Ill,Mental Health Commissioning,Social Care - Residential Care,01/07/2015,3467346,"3,214.28",Thanet Healthcare Ltd 
Adults Services,Education Services,Services to Young People and Other Community Learners,YCL Small Grants,Third Party Payments - Voluntary Associations,01/07/2015,3467502,833.33,GOLDEN MOON YOUTH PROJECT 
Adults Services,Adult Social Care,Older People (Aged 65 or over) including Older Mental Ill,Physical Dis Commissioning,Social Care - Homecare,03/07/2015,3455400,910,London Care PLC 
Adults Services,Adult Social Care,Older People (Aged 65 or over) including Older Mental Ill,Learning Dis Commissioning,Social Care - Help to Live at Home,03/07/2015,3456440,"5,678.00",Church House 
Adults Services,Adult Social Care,Older People (Aged 65 or over) including Older Mental Ill,Learning Dis Commissioning,Social Care - Homecare,03/07/2015,3456619,"2,679.60",Outward Housing 
Adults Services,Adult Social Care,Older People (Aged 65 or over) including Older Mental Ill,Learning Dis Commissioning,Social Care - Homecare,03/07/2015,3456621,612.48,Outward Housing 
Adults Services,Adult Social Care,Older People (Aged 65 or over) including Older Mental Ill,Learning Dis Commissioning,Social Care - Homecare,03/07/2015,3456623,"1,224.96",Outward Housing 
Adults Services,Adult Social Care,Older People (Aged 65 or over) including Older Mental Ill,Learning Dis Commissioning,Social Care - Homecare,03/07/2015,3456624,"1,454.64",Outward Housing 
Adults Services,Adult Social Care,Older People (Aged 65 or over) including Older Mental Ill,Learning Dis Commissioning,Social Care - Homecare,03/07/2015,3456626,765.6,Outward Housing 
Adults Services,Adult Social Care,Older People (Aged 65 or over) including Older Mental Ill,Learning Dis Commissioning,Social Care - Homecare,03/07/2015,3456629,"1,071.84",Outward Housing 
Adults Services,Adult Social Care,Older People (Aged 65 or over) including Older Mental Ill,Learning Dis Commissioning,Social Care - Homecare,03/07/2015,3456630,765.6,Outward Housing 
Adults Services,Adult Social Care,Older People (Aged 65 or over) including Older Mental Ill,Learning Dis Commissioning,Social Care - Homecare,03/07/2015,3456632,689.04,Outward Housing 
Adults Services,Adult Social Care,Older People (Aged 65 or over) including Older Mental Ill,Learning Dis Commissioning,Social Care - Residential Care,03/07/2015,3456639,"8,096.70",Outward Housing 
Adults Services,Adult Social Care,Older People (Aged 65 or over) including Older Mental Ill,Learning Dis Commissioning,Social Care - Residential Care,03/07/2015,3456641,"8,366.59",Outward Housing 
Adults Services,Adult Social Care,Older People (Aged 65 or over) including Older Mental Ill,Mental Health Commissioning,Social Care - Supported Accommodation,03/07/2015,3459233,"2,121.43",RIVERSIDE HOUSE PROJECT 
Adults Services,Adult Social Care,Older People (Aged 65 or over) including Older Mental Ill,Mental Health Commissioning,Social Care - Supported Accommodation,03/07/2015,3459234,"2,192.14",RIVERSIDE HOUSE PROJECT 
Adults Services,Adult Social Care,Older People (Aged 65 or over) including Older Mental Ill,Learning Dis Commissioning,Social Care - Residential Care,03/07/2015,3459433,"25,796.49",MENCAP 
Adults Services,Adult Social Care,Older People (Aged 65 or over) including Older Mental Ill,Mental Health Commissioning,Social Care - Day Care,03/07/2015,3460159,680,The Bromley by Bow Centre 
Adults Services,Adult Social Care,Older People (Aged 65 or over) including Older Mental Ill,Learning Dis Commissioning,Social Care - Day Care,03/07/2015,3460160,"1,144.00",The Bromley by Bow Centre 
Adults Services,Adult Social Care,Older People (Aged 65 or over) including Older Mental Ill,Learning Dis Commissioning,Social Care - Day Care,03/07/2015,3460161,876,The Bromley by Bow Centre 
Adults Services,Adult Social Care,Older People (Aged 65 or over) including Older Mental Ill,Learning Dis Commissioning,Social Care - Day Care,03/07/2015,3460163,704,The Bromley by Bow Centre 
Adults Services,Adult Social Care,Older People (Aged 65 or over) including Older Mental Ill,Learning Dis Commissioning,Social Care - Day Care,03/07/2015,3460167,"1,174.60",The Bromley by Bow Centre 
Adults Services,Adult Social Care,Older People (Aged 65 or over) including Older Mental Ill,Learning Dis Commissioning,Social Care - Day Care,03/07/2015,3460169,727.52,The Bromley by Bow Centre 
Adults Services,Adult Social Care,Older People (Aged 65 or over) including Older Mental Ill,Learning Dis Commissioning,Social Care - Day Care,03/07/2015,3460175,"2,499.00",The Bromley by Bow Centre 
Adults Services,Adult Social Care,Older People (Aged 65 or over) including Older Mental Ill,Older People Commissioning,Social Care - Homecare,03/07/2015,3460458,676.17,POSITIVE CARE LINK 
Adults Services,Adult Social Care,Older People (Aged 65 or over) including Older Mental Ill,Learning Dis Commissioning,Social Care - Residential Care,03/07/2015,3464699,"7,507.93",THE JOHN TOWNSEND TRUST 
Adults Services,Public Health,Smoking and Tobacco,Public Health Team - 2,Payments to Private Contractors - Other Contractors,03/07/2015,3465253,"1,305.14",Perimart t/a BRITANNIA PHARMACY 
Adults Services,Public Health,Smoking and Tobacco,Public Health Team - 2,Payments to Private Contractors - Other Contractors,03/07/2015,3465259,638.61,Forward Pharmacy 
Adults Services,Public Health,Smoking and Tobacco,Public Health Team - 2,Payments to Private Contractors - Other Contractors,03/07/2015,3465260,632.47,Guardian Pharmacy t/a Nash Chemist 
Adults Services,Public Health,Smoking and Tobacco,Public Health Team - 2,Payments to Private Contractors - Other Contractors,03/07/2015,3465263,526.94,Pristine Health t/a Bell Pharmacy Bow 
Adults Services,Public Health,Smoking and Tobacco,Public Health Team - 2,Payments to Private Contractors - Other Contractors,03/07/2015,3465269,545.06,Boots UK Ltd Store 700 
Adults Services,No Service Specified,No Division Specified,Community Equipment Store,Educational/Training Supplies - Resources,03/07/2015,3465915,756,Caretech UK Ltd 
Adults Services,Adult Social Care,Older People (Aged 65 or over) including Older Mental Ill,Mental Health Commissioning,Social Care - Supported Accommodation,03/07/2015,3466382,"2,121.43",RIVERSIDE HOUSE PROJECT 
Adults Services,Adult Social Care,Older People (Aged 65 or over) including Older Mental Ill,Physical Dis Commissioning,Social Care - Residential Care,03/07/2015,3466635,"3,642.86",OULTON PARK CARE CENTRE 
Adults Services,Adult Social Care,Older People (Aged 65 or over) including Older Mental Ill,Learning Dis Commissioning,Social Care - Homecare,03/07/2015,3467351,"1,837.44",Outward Housing 
Adults Services,Public Health,Children 519 Public Health Programmes,Public Health Team 1,Third Party Payments - Voluntary Associations,03/07/2015,3467426,"68,750.00",Osmani Trust 
Adults Services,Public Health,Miscellaneous Public Health Services,Public Health - Director,Agency Staff,06/07/2015,3444338,"5,000.00",Harvey Nash PLC 
Adults Services,Public Health,Miscellaneous Public Health Services,Public Health - Director,Agency Staff,06/07/2015,3444372,"2,755.40",Harvey Nash PLC 
Adults Services,Adult Social Care,Older People (Aged 65 or over) including Older Mental Ill,Learning Dis Commissioning,Social Care - Homecare,06/07/2015,3456642,966.6,Outward Housing 
Adults Services,Adult Social Care,Older People (Aged 65 or over) including Older Mental Ill,Learning Dis Commissioning,Social Care - Homecare,06/07/2015,3456643,"1,020.24",Outward Housing 
Adults Services,Adult Social Care,Older People (Aged 65 or over) including Older Mental Ill,Learning Dis Commissioning,Social Care - Day Care,06/07/2015,3464687,912.1,ROSELOCK LTD 
Adults Services,Public Health,Smoking and Tobacco,Public Health Team - 2,Payments to Private Contractors - Other Contractors,06/07/2015,3465249,"1,466.30",Boots UK Ltd Store 728 
Adults Services,Public Health,Smoking and Tobacco,Public Health Team - 2,Payments to Private Contractors - Other Contractors,06/07/2015,3465270,"1,747.23",MRS T PIANOV T/A MAYORS CHEMIST 
Adults Services,Public Health,Smoking and Tobacco,Public Health Team - 2,Third Party Payments - Voluntary Associations,06/07/2015,3465273,"56,519.00",Positive East 
Adults Services,No Service Specified,No Division Specified,TCES - Prescriptions,Community Equipment  Supplies - Aids and Appliances,06/07/2015,3465536,"1,870.53",REDLAND HEALTHCARE LTD 
Adults Services,Adult Social Care,Older People (Aged 65 or over) including Older Mental Ill,Physical Dis Commissioning,Social Care - Nursing Care,06/07/2015,3467134,"3,000.00",TOPCARE LTD 
Adults Services,Adult Social Care,Older People (Aged 65 or over) including Older Mental Ill,Learning Dis Commissioning,Social Care - Residential Care,06/07/2015,3467150,"4,178.65",ROSELOCK LTD 
Adults Services,Adult Social Care,Older People (Aged 65 or over) including Older Mental Ill,Older People Commissioning,Social Care - Residential Care,08/07/2015,3460261,"3,882.44",Royal Institute for Deaf People 
Adults Services,Adult Social Care,Adults Aged Under 65 with Mental Health Needs,"Service User Liaison Team		",Computing - Purchase of Software,08/07/2015,3460737,"1,454.94",Specialist Computer Centres PLC 
Adults Services,Adult Social Care,Older People (Aged 65 or over) including Older Mental Ill,Older People Commissioning,Social Care - Residential Care,08/07/2015,3466646,"-1,019.65",RUNWOOD HOMES PLC 
Adults Services,Adult Social Care,Older People (Aged 65 or over) including Older Mental Ill,Learning Dis Commissioning,Social Care - Personal Budgets - Non-Trad Service,08/07/2015,3469711,875,VIBRANCE 
Adults Services,Adult Social Care,Older People (Aged 65 or over) including Older Mental Ill,Learning Dis Commissioning,Social Care - Personal Budgets - Non-Trad Service,08/07/2015,3469714,728,THE MAP SQUAD 
Adults Services,Adult Social Care,Older People (Aged 65 or over) including Older Mental Ill,Older People Commissioning,Social Care - Residential Care,08/07/2015,3469716,"3,291.57",J M CAREHOMES LIMITED 
Adults Services,Adult Social Care,Older People (Aged 65 or over) including Older Mental Ill,Older People Commissioning,Social Care - Residential Care,08/07/2015,3469717,"3,007.71",WEST LONDON MISSION SOCIAL WORK ACCOUNT 
Adults Services,Adult Social Care,Older People (Aged 65 or over) including Older Mental Ill,Older People Commissioning,Social Care - Residential Care,08/07/2015,3469717,-531.21,WEST LONDON MISSION SOCIAL WORK ACCOUNT 
Adults Services,Adult Social Care,Older People (Aged 65 or over) including Older Mental Ill,Older People Commissioning,Social Care - Residential Care,08/07/2015,3469718,666.65,BARCHESTER HEALTHCARE 
Adults Services,Adult Social Care,Older People (Aged 65 or over) including Older Mental Ill,Older People Commissioning,Social Care - Nursing Care,08/07/2015,3469719,"4,055.07",BARCHESTER HEALTHCARE 
Adults Services,Adult Social Care,Older People (Aged 65 or over) including Older Mental Ill,Older People Commissioning,Social Care - Nursing Care,08/07/2015,3469720,"-1,065.78",BARCHESTER HEALTHCARE 
Adults Services,Adult Social Care,Older People (Aged 65 or over) including Older Mental Ill,Mental Health Commissioning,Social Care - Supported Accommodation,08/07/2015,3469722,"1,971.30",ANTRIM CARE SERVICES LIMITED 
Adults Services,Adult Social Care,Older People (Aged 65 or over) including Older Mental Ill,Physical Dis Commissioning,Social Care - Homecare,08/07/2015,3469723,500.4,Age UK Tower Hamlets 
Adults Services,Adult Social Care,Older People (Aged 65 or over) including Older Mental Ill,Older People Commissioning,Social Care - Nursing Care,08/07/2015,3469726,"1,930.71",Chadderton Total care Unit Ltd 
Adults Services,Adult Social Care,Older People (Aged 65 or over) including Older Mental Ill,Older People Commissioning,Client Contributions for Social Care - Nursing Care,08/07/2015,3469726,-531.21,Chadderton Total care Unit Ltd 
Adults Services,Adult Social Care,Adults Aged Under 65 with Learning Disabilities,Autism Strategy,Social Care - Prevention & Support - Block,08/07/2015,3469730,"82,029.22",East London NHS Foundation Trust 
Adults Services,Adult Social Care,Older People (Aged 65 or over) including Older Mental Ill,Older People Commissioning,Social Care - Homecare,08/07/2015,3469742,668.25,Mantra Recruitment 
Adults Services,Adult Social Care,Older People (Aged 65 or over) including Older Mental Ill,Learning Dis Commissioning,Social Care - Homecare,08/07/2015,3469756,"1,262.10",Mantra Recruitment 
Adults Services,Adult Social Care,Older People (Aged 65 or over) including Older Mental Ill,Older People Commissioning,Social Care - Homecare,08/07/2015,3469759,542.51,Mantra Recruitment 
Adults Services,Adult Social Care,Older People (Aged 65 or over) including Older Mental Ill,Older People Commissioning,Social Care - Homecare,08/07/2015,3469763,613.58,Mantra Recruitment 
Adults Services,Adult Social Care,Older People (Aged 65 or over) including Older Mental Ill,Physical Dis Commissioning,Social Care - Homecare,08/07/2015,3469790,881.63,Mantra Recruitment 
Adults Services,Adult Social Care,Older People (Aged 65 or over) including Older Mental Ill,Older People Commissioning,Social Care - Homecare,08/07/2015,3469794,561.94,Mantra Recruitment 
Adults Services,Adult Social Care,Older People (Aged 65 or over) including Older Mental Ill,Older People Commissioning,Social Care - Homecare,08/07/2015,3469822,"4,082.40",Mantra Recruitment 
Adults Services,Adult Social Care,Older People (Aged 65 or over) including Older Mental Ill,Older People Commissioning,Social Care - Homecare,08/07/2015,3469852,600.06,ATHLONE CARE LTD 
Adults Services,Adult Social Care,Older People (Aged 65 or over) including Older Mental Ill,Older People Commissioning,Social Care - Homecare,08/07/2015,3469855,922.4,Age UK Tower Hamlets 
Adults Services,Adult Social Care,Older People (Aged 65 or over) including Older Mental Ill,Older People Commissioning,Social Care - Homecare,08/07/2015,3469864,519.13,ATHLONE CARE LTD 
Adults Services,Adult Social Care,Older People (Aged 65 or over) including Older Mental Ill,Physical Dis Commissioning,Social Care - Homecare,08/07/2015,3469868,"1,682.87",ATHLONE CARE LTD 
Adults Services,Adult Social Care,Older People (Aged 65 or over) including Older Mental Ill,Older People Commissioning,Social Care - Homecare,08/07/2015,3469870,775.53,ATHLONE CARE LTD 
Adults Services,Adult Social Care,Older People (Aged 65 or over) including Older Mental Ill,Older People Commissioning,Social Care - Homecare,08/07/2015,3469872,586.57,ATHLONE CARE LTD 
Adults Services,Adult Social Care,Older People (Aged 65 or over) including Older Mental Ill,Older People Commissioning,Social Care - Homecare,08/07/2015,3469892,512.4,ATHLONE CARE LTD 
Adults Services,Adult Social Care,Older People (Aged 65 or over) including Older Mental Ill,Physical Dis Commissioning,Social Care - Homecare,08/07/2015,3469897,"2,934.06",ATHLONE CARE LTD 
Adults Services,Adult Social Care,Older People (Aged 65 or over) including Older Mental Ill,Physical Dis Commissioning,Social Care - Homecare,08/07/2015,3469898,"1,682.87",ATHLONE CARE LTD 
Adults Services,Adult Social Care,Older People (Aged 65 or over) including Older Mental Ill,Older People Commissioning,Social Care - Homecare,08/07/2015,3469905,586.57,ATHLONE CARE LTD 
Adults Services,Adult Social Care,Older People (Aged 65 or over) including Older Mental Ill,Strategic Commissioning,Social Care - MSG Prevention Health & Wellbeing,08/07/2015,3469914,"2,000.00",East London Vision (Waltham Forest Resource Hub (South) 
Adults Services,Adult Social Care,Older People (Aged 65 or over) including Older Mental Ill,Older People Commissioning,Social Care - Residential Care,08/07/2015,3469915,"3,410.00",St Georges Nursing Home 
Adults Services,Adult Social Care,Older People (Aged 65 or over) including Older Mental Ill,Learning Dis Commissioning,Social Care - Residential Care,08/07/2015,3469916,"6,428.70",INDEPENDENCE HOMES LTD 
Adults Services,Adult Social Care,Older People (Aged 65 or over) including Older Mental Ill,Older People Commissioning,Social Care - Homecare,08/07/2015,3469919,652,Age UK Tower Hamlets 
Adults Services,Adult Social Care,Older People (Aged 65 or over) including Older Mental Ill,Older People Commissioning,Social Care - Day Care,08/07/2015,3469932,549.32,St Hilda's East Community Centre 
Adults Services,Adult Social Care,Older People (Aged 65 or over) including Older Mental Ill,Older People Commissioning,Social Care - Day Care,08/07/2015,3469933,831.03,St Hilda's East Community Centre 
Adults Services,Adult Social Care,Older People (Aged 65 or over) including Older Mental Ill,Physical Dis Commissioning,Social Care - Day Care,08/07/2015,3469939,513.9,St Hilda's East Community Centre 
Adults Services,Adult Social Care,Older People (Aged 65 or over) including Older Mental Ill,Older People Commissioning,Social Care - Day Care,08/07/2015,3469940,706.83,St Hilda's East Community Centre 
Adults Services,Adult Social Care,Older People (Aged 65 or over) including Older Mental Ill,Older People Commissioning,Social Care - Residential Care,08/07/2015,3469941,"2,213.32",SUNRISE ASSISTED LIVING 
Adults Services,Adult Social Care,Older People (Aged 65 or over) including Older Mental Ill,Older People Commissioning,Social Care - Residential Care,08/07/2015,3469941,-886.96,SUNRISE ASSISTED LIVING 
Adults Services,Adult Social Care,Older People (Aged 65 or over) including Older Mental Ill,Older People Commissioning,Social Care - Homecare,08/07/2015,3469945,"3,903.24",Excelcare (Home Care Division) LTD 
Adults Services,Adult Social Care,Older People (Aged 65 or over) including Older Mental Ill,Physical Dis Commissioning,Social Care - Homecare,08/07/2015,3469946,"4,750.27",Excelcare (Home Care Division) LTD 
Adults Services,Adult Social Care,Older People (Aged 65 or over) including Older Mental Ill,Learning Dis Commissioning,Social Care - Homecare,08/07/2015,3469947,"2,023.52",Excelcare (Home Care Division) LTD 
Adults Services,Adult Social Care,Older People (Aged 65 or over) including Older Mental Ill,Learning Dis Commissioning,Social Care - Personal Budgets - Non-Trad Service,08/07/2015,3469947,558.6,Excelcare (Home Care Division) LTD 
Adults Services,Adult Social Care,Older People (Aged 65 or over) including Older Mental Ill,Learning Dis Commissioning,Social Care - Homecare,08/07/2015,3469948,"2,195.22",Excelcare (Home Care Division) LTD 
Adults Services,Adult Social Care,Older People (Aged 65 or over) including Older Mental Ill,Learning Dis Commissioning,Social Care - Personal Budgets - Non-Trad Service,08/07/2015,3469948,"1,344.96",Excelcare (Home Care Division) LTD 
Adults Services,Adult Social Care,Older People (Aged 65 or over) including Older Mental Ill,Learning Dis Commissioning,Social Care - Day Care,08/07/2015,3469951,"2,128.00",BANGLADESHI PARENTS & CARERS ASSOCIATION 
Adults Services,Adult Social Care,Older People (Aged 65 or over) including Older Mental Ill,Learning Dis Commissioning,Social Care - Day Care,08/07/2015,3469952,900,BANGLADESHI PARENTS & CARERS ASSOCIATION 
Adults Services,Adult Social Care,Older People (Aged 65 or over) including Older Mental Ill,Learning Dis Commissioning,Social Care - Day Care,08/07/2015,3469953,855,BANGLADESHI PARENTS & CARERS ASSOCIATION 
Adults Services,Adult Social Care,Older People (Aged 65 or over) including Older Mental Ill,Learning Dis Commissioning,Social Care - Day Care,08/07/2015,3469954,945,BANGLADESHI PARENTS & CARERS ASSOCIATION 
Adults Services,Adult Social Care,Older People (Aged 65 or over) including Older Mental Ill,Learning Dis Commissioning,Social Care - Day Care,08/07/2015,3469955,675,BANGLADESHI PARENTS & CARERS ASSOCIATION 
Adults Services,Adult Social Care,Older People (Aged 65 or over) including Older Mental Ill,Learning Dis Commissioning,Social Care - Day Care,08/07/2015,3469956,855,BANGLADESHI PARENTS & CARERS ASSOCIATION 
Adults Services,Adult Social Care,Older People (Aged 65 or over) including Older Mental Ill,Learning Dis Commissioning,Social Care - Day Care,08/07/2015,3469957,945,BANGLADESHI PARENTS & CARERS ASSOCIATION 
Adults Services,Adult Social Care,Older People (Aged 65 or over) including Older Mental Ill,Learning Dis Commissioning,Social Care - Day Care,08/07/2015,3469958,765,BANGLADESHI PARENTS & CARERS ASSOCIATION 
Adults Services,Adult Social Care,Older People (Aged 65 or over) including Older Mental Ill,Learning Dis Commissioning,Social Care - Day Care,08/07/2015,3469959,630,BANGLADESHI PARENTS & CARERS ASSOCIATION 
Adults Services,Adult Social Care,Older People (Aged 65 or over) including Older Mental Ill,Learning Dis Commissioning,Social Care - Day Care,08/07/2015,3469960,"2,352.00",BANGLADESHI PARENTS & CARERS ASSOCIATION 
Adults Services,Adult Social Care,Older People (Aged 65 or over) including Older Mental Ill,Learning Dis Commissioning,Social Care - Day Care,08/07/2015,3469962,945,BANGLADESHI PARENTS & CARERS ASSOCIATION 
Adults Services,Adult Social Care,Older People (Aged 65 or over) including Older Mental Ill,Learning Dis Commissioning,Social Care - Day Care,08/07/2015,3469963,855,BANGLADESHI PARENTS & CARERS ASSOCIATION 
Adults Services,Adult Social Care,Older People (Aged 65 or over) including Older Mental Ill,Learning Dis Commissioning,Social Care - Day Care,08/07/2015,3469964,"2,352.00",BANGLADESHI PARENTS & CARERS ASSOCIATION 
Adults Services,Adult Social Care,Older People (Aged 65 or over) including Older Mental Ill,Learning Dis Commissioning,Social Care - Day Care,08/07/2015,3469965,"1,559.80",BANGLADESHI PARENTS & CARERS ASSOCIATION 
Adults Services,Adult Social Care,Older People (Aged 65 or over) including Older Mental Ill,Learning Dis Commissioning,Social Care - Day Care,08/07/2015,3469966,945,BANGLADESHI PARENTS & CARERS ASSOCIATION 
Adults Services,Adult Social Care,Older People (Aged 65 or over) including Older Mental Ill,Learning Dis Commissioning,Social Care - Day Care,08/07/2015,3469967,855,BANGLADESHI PARENTS & CARERS ASSOCIATION 
Adults Services,Adult Social Care,Older People (Aged 65 or over) including Older Mental Ill,Learning Dis Commissioning,Social Care - Personal Budgets - Non-Trad Service,08/07/2015,3469968,"2,352.00",BANGLADESHI PARENTS & CARERS ASSOCIATION 
Adults Services,Adult Social Care,Older People (Aged 65 or over) including Older Mental Ill,Learning Dis Commissioning,Social Care - Day Care,08/07/2015,3469969,"1,610.25",BANGLADESHI PARENTS & CARERS ASSOCIATION 
Adults Services,Adult Social Care,Older People (Aged 65 or over) including Older Mental Ill,Learning Dis Commissioning,Social Care - Day Care,08/07/2015,3469970,"1,681.60",BANGLADESHI PARENTS & CARERS ASSOCIATION 
Adults Services,Adult Social Care,Older People (Aged 65 or over) including Older Mental Ill,Learning Dis Commissioning,Social Care - Day Care,08/07/2015,3469971,"2,128.00",BANGLADESHI PARENTS & CARERS ASSOCIATION 
Adults Services,Adult Social Care,Older People (Aged 65 or over) including Older Mental Ill,Learning Dis Commissioning,Social Care - Day Care,08/07/2015,3469972,"1,471.40",BANGLADESHI PARENTS & CARERS ASSOCIATION 
Adults Services,Adult Social Care,Older People (Aged 65 or over) including Older Mental Ill,Learning Dis Commissioning,Social Care - Day Care,08/07/2015,3469973,"2,352.00",BANGLADESHI PARENTS & CARERS ASSOCIATION 
Adults Services,Adult Social Care,Older People (Aged 65 or over) including Older Mental Ill,Learning Dis Commissioning,Social Care - Day Care,08/07/2015,3469973,-896,BANGLADESHI PARENTS & CARERS ASSOCIATION 
Adults Services,Adult Social Care,Older People (Aged 65 or over) including Older Mental Ill,Learning Dis Commissioning,Social Care - Day Care,08/07/2015,3469974,"2,128.00",BANGLADESHI PARENTS & CARERS ASSOCIATION 
Adults Services,Adult Social Care,Older People (Aged 65 or over) including Older Mental Ill,Learning Dis Commissioning,Social Care - Day Care,08/07/2015,3469975,855,BANGLADESHI PARENTS & CARERS ASSOCIATION 
Adults Services,Adult Social Care,Older People (Aged 65 or over) including Older Mental Ill,Learning Dis Commissioning,Social Care - Day Care,08/07/2015,3469976,945,BANGLADESHI PARENTS & CARERS ASSOCIATION 
Adults Services,Adult Social Care,Older People (Aged 65 or over) including Older Mental Ill,Learning Dis Commissioning,Social Care - Day Care,08/07/2015,3469977,855,BANGLADESHI PARENTS & CARERS ASSOCIATION 
Adults Services,Adult Social Care,Older People (Aged 65 or over) including Older Mental Ill,Learning Dis Commissioning,Social Care - Day Care,08/07/2015,3469978,924,BANGLADESHI PARENTS & CARERS ASSOCIATION 
Adults Services,Adult Social Care,Older People (Aged 65 or over) including Older Mental Ill,Learning Dis Commissioning,Social Care - Day Care,08/07/2015,3469979,"2,128.00",BANGLADESHI PARENTS & CARERS ASSOCIATION 
Adults Services,Adult Social Care,Older People (Aged 65 or over) including Older Mental Ill,Mental Health Commissioning,Social Care - Day Care,08/07/2015,3469981,810,BANGLADESHI PARENTS & CARERS ASSOCIATION 
Adults Services,Adult Social Care,Older People (Aged 65 or over) including Older Mental Ill,Strategic Commissioning,Social Care - MSG Prevention Health & Wellbeing,08/07/2015,3469984,"10,908.71",Praxis Community Project 
Adults Services,General Fund/Council Fund,Homelessness,Supporting People Services,SP - Block Subsidy - Old People-Supp Needs,08/07/2015,3470010,504.8,One Housing Group 
Adults Services,General Fund/Council Fund,Homelessness,Supporting People Services,SP - Block Subsidy - Old People-Supp Needs,08/07/2015,3470092,504.8,One Housing Group 
Adults Services,General Fund/Council Fund,Homelessness,Supporting People Services,SP - Block Subsidy - Old People-Supp Needs,08/07/2015,3470608,504.8,One Housing Group 
Adults Services,General Fund/Council Fund,Homelessness,Supporting People Services,SP - Block Subsidy - Old People-Supp Needs,08/07/2015,3470609,504.8,One Housing Group 
Adults Services,General Fund/Council Fund,Homelessness,Supporting People Services,SP - Block Subsidy - Old People-Supp Needs,08/07/2015,3470610,504.8,One Housing Group 
Adults Services,General Fund/Council Fund,Homelessness,Supporting People Services,SP - Block Subsidy - Old People-Supp Needs,08/07/2015,3470611,504.8,One Housing Group 
Adults Services,General Fund/Council Fund,Homelessness,Supporting People Services,SP - Block Subsidy - Old People-Supp Needs,08/07/2015,3470612,504.8,One Housing Group 
Adults Services,General Fund/Council Fund,Homelessness,Supporting People Services,SP - Block Subsidy - Old People-Supp Needs,08/07/2015,3470613,504.8,One Housing Group 
Adults Services,General Fund/Council Fund,Homelessness,Supporting People Services,SP - Block Subsidy - Old People-Supp Needs,08/07/2015,3470614,504.8,One Housing Group 
Adults Services,General Fund/Council Fund,Homelessness,Supporting People Services,SP - Block Subsidy - Old People-Supp Needs,08/07/2015,3470615,504.8,One Housing Group 
Adults Services,General Fund/Council Fund,Homelessness,Supporting People Services,SP - Block Subsidy - Old People-Supp Needs,08/07/2015,3470616,504.8,One Housing Group 
Adults Services,General Fund/Council Fund,Homelessness,Supporting People Services,SP - Block Subsidy - Old People-Supp Needs,08/07/2015,3470617,504.8,One Housing Group 
Adults Services,General Fund/Council Fund,Homelessness,Supporting People Services,SP - Block Subsidy - Old People-Supp Needs,08/07/2015,3470618,504.8,One Housing Group 
Adults Services,General Fund/Council Fund,Homelessness,Supporting People Services,SP - Block Subsidy - Old People-Supp Needs,08/07/2015,3470619,504.8,One Housing Group 
Adults Services,General Fund/Council Fund,Homelessness,Supporting People Services,SP - Block Subsidy - Old People-Supp Needs,08/07/2015,3470620,504.8,One Housing Group 
Adults Services,General Fund/Council Fund,Homelessness,Supporting People Services,SP - Block Subsidy - Old People-Supp Needs,08/07/2015,3470621,504.8,One Housing Group 
Adults Services,General Fund/Council Fund,Homelessness,Supporting People Services,SP - Block Subsidy - Old People-Supp Needs,08/07/2015,3470622,504.8,One Housing Group 
Adults Services,General Fund/Council Fund,Homelessness,Supporting People Services,SP - Block Subsidy - Old People-Supp Needs,08/07/2015,3470623,504.8,One Housing Group 
Adults Services,General Fund/Council Fund,Homelessness,Supporting People Services,SP - Block Subsidy - Old People-Supp Needs,08/07/2015,3470624,504.8,One Housing Group 
Adults Services,General Fund/Council Fund,Homelessness,Supporting People Services,SP - Block Subsidy - Old People-Supp Needs,08/07/2015,3470625,504.8,One Housing Group 
Adults Services,General Fund/Council Fund,Homelessness,Supporting People Services,SP - Block Subsidy - Old People-Supp Needs,08/07/2015,3470626,504.8,One Housing Group 
Adults Services,General Fund/Council Fund,Homelessness,Supporting People Services,SP - Block Subsidy - Old People-Supp Needs,08/07/2015,3470627,504.8,One Housing Group 
Adults Services,General Fund/Council Fund,Homelessness,Supporting People Services,SP - Block Subsidy - Old People-Supp Needs,08/07/2015,3470628,504.8,One Housing Group 
Adults Services,Adult Social Care,Older People (Aged 65 or over) including Older Mental Ill,Physical Dis Commissioning,Social Care - Personal Budgets - Cash,08/07/2015,3470714,"1,229.15",DAVID HOWARD LTD CLIENT ACCOUNT 
Adults Services,Adult Social Care,Older People (Aged 65 or over) including Older Mental Ill,Older People Commissioning,Social Care - Residential Care,08/07/2015,3470715,"1,558.29",High View Care Services 
Adults Services,Adult Social Care,Older People (Aged 65 or over) including Older Mental Ill,Older People Commissioning,Social Care - Residential Care,08/07/2015,3470718,"3,535.72",GATEWAY HOUSING ASSOCIATION 
Adults Services,Adult Social Care,Older People (Aged 65 or over) including Older Mental Ill,Older People Commissioning,Social Care - Residential Care,08/07/2015,3470719,"11,360.00",GATEWAY HOUSING ASSOCIATION 
Adults Services,Adult Social Care,Older People (Aged 65 or over) including Older Mental Ill,Older People Commissioning,Social Care - Nursing Care,08/07/2015,3470720,"2,686.67",SANCTUARY CARE LTD 
Adults Services,Adult Social Care,Older People (Aged 65 or over) including Older Mental Ill,Older People Commissioning,Social Care - Nursing Care,08/07/2015,3470721,"1,970.22",SANCTUARY CARE LTD 
Adults Services,Adult Social Care,Older People (Aged 65 or over) including Older Mental Ill,Physical Dis Commissioning,Social Care - Personal Budgets - Cash,08/07/2015,3470722,-996.93,DAVID HOWARD LTD CLIENT ACCOUNT 
Adults Services,Adult Social Care,Older People (Aged 65 or over) including Older Mental Ill,Older People Commissioning,Social Care - Personal Budgets - Cash,08/07/2015,3470727,"1,124.22",D D PAYROLL SERVICES 
Adults Services,Adult Social Care,Older People (Aged 65 or over) including Older Mental Ill,Mental Health Commissioning,Social Care - Day Care,08/07/2015,3470735,"1,404.00",SHANTI HEALTHCARE LTD 
Adults Services,Adult Social Care,Older People (Aged 65 or over) including Older Mental Ill,Older People Commissioning,Social Care - Personal Budgets - Cash,08/07/2015,3470737,"8,485.50",D D PAYROLL SERVICES 
Adults Services,Adult Social Care,Older People (Aged 65 or over) including Older Mental Ill,Learning Dis Commissioning,Social Care - Personal Budgets - Cash,08/07/2015,3470739,"2,706.07",DAVID HOWARD LTD CLIENT ACCOUNT 
Adults Services,Adult Social Care,Older People (Aged 65 or over) including Older Mental Ill,Learning Dis Commissioning,Social Care - Personal Budgets - Cash,08/07/2015,3470740,"2,224.64",DAVID HOWARD LTD CLIENT ACCOUNT 
Adults Services,Adult Social Care,Older People (Aged 65 or over) including Older Mental Ill,Learning Dis Commissioning,Social Care - Personal Budgets - Cash,08/07/2015,3470741,"3,459.52",DAVID HOWARD LTD CLIENT ACCOUNT 
Adults Services,Adult Social Care,Older People (Aged 65 or over) including Older Mental Ill,Older People Commissioning,Social Care - Homecare,08/07/2015,3470749,565.5,SEVACARE UK LTD 
Adults Services,Adult Social Care,Older People (Aged 65 or over) including Older Mental Ill,Learning Dis Commissioning,Social Care - Homecare,08/07/2015,3470751,"4,906.80",Tower Project 
Adults Services,Adult Social Care,Older People (Aged 65 or over) including Older Mental Ill,Learning Dis Commissioning,Social Care - Day Care,08/07/2015,3470752,"5,024.87",Tower Project 
Adults Services,Adult Social Care,Older People (Aged 65 or over) including Older Mental Ill,Learning Dis Commissioning,Social Care - Day Care,08/07/2015,3470753,989.82,Tower Project 
Adults Services,Adult Social Care,Older People (Aged 65 or over) including Older Mental Ill,Learning Dis Commissioning,Social Care - Homecare,08/07/2015,3470754,"1,667.60",Tower Project 
Adults Services,Adult Social Care,Older People (Aged 65 or over) including Older Mental Ill,Learning Dis Commissioning,Social Care - Day Care,08/07/2015,3470755,"1,630.72",Tower Project 
Adults Services,Adult Social Care,Older People (Aged 65 or over) including Older Mental Ill,Learning Dis Commissioning,Social Care - Homecare,08/07/2015,3470756,"4,739.15",Tower Project 
Adults Services,Adult Social Care,Older People (Aged 65 or over) including Older Mental Ill,Learning Dis Commissioning,Social Care - Homecare,08/07/2015,3470757,"1,815.45",Tower Project 
Adults Services,Adult Social Care,Older People (Aged 65 or over) including Older Mental Ill,Learning Dis Commissioning,Social Care - Homecare,08/07/2015,3470758,"4,363.19",Tower Project 
Adults Services,Adult Social Care,Older People (Aged 65 or over) including Older Mental Ill,Learning Dis Commissioning,Social Care - Homecare,08/07/2015,3470759,"2,837.15",Tower Project 
Adults Services,Adult Social Care,Older People (Aged 65 or over) including Older Mental Ill,Older People Commissioning,Social Care - Residential Care,08/07/2015,3470766,"2,739.79",JEWISH CARE 
Adults Services,Adult Social Care,Older People (Aged 65 or over) including Older Mental Ill,Older People Commissioning,Social Care - Residential Care,08/07/2015,3470766,-771.99,JEWISH CARE 
Adults Services,Adult Social Care,Older People (Aged 65 or over) including Older Mental Ill,Older People Commissioning,Social Care - Residential Care,08/07/2015,3470767,"2,190.13",JEWISH CARE 
Adults Services,Adult Social Care,Older People (Aged 65 or over) including Older Mental Ill,Older People Commissioning,Social Care - Residential Care,08/07/2015,3470768,"2,217.51",JEWISH CARE 
Adults Services,Adult Social Care,Older People (Aged 65 or over) including Older Mental Ill,Older People Commissioning,Social Care - Residential Care,08/07/2015,3470769,"2,332.24",JEWISH CARE 
Adults Services,Adult Social Care,Older People (Aged 65 or over) including Older Mental Ill,Older People Commissioning,Social Care - Residential Care,08/07/2015,3470770,"1,777.24",JEWISH CARE 
Adults Services,Adult Social Care,Older People (Aged 65 or over) including Older Mental Ill,Mental Health Commissioning,Social Care - Day Care,08/07/2015,3470772,720,PORTUGAL PRINTS 
Adults Services,Adult Social Care,Older People (Aged 65 or over) including Older Mental Ill,Older People Commissioning,Social Care - Homecare,08/07/2015,3470774,608.68,REDSPOT HOMECARE(CONTRACTS) LTD 
Adults Services,Adult Social Care,Older People (Aged 65 or over) including Older Mental Ill,Mental Health Commissioning,Social Care - Supported Accommodation,08/07/2015,3470777,"1,971.30",ANTRIM CARE SERVICES LIMITED 
Adults Services,Adult Social Care,Older People (Aged 65 or over) including Older Mental Ill,Older People Commissioning,Social Care - Residential Care,08/07/2015,3470778,"2,480.48",Forest Drive Residential Home Ltd 
Adults Services,Adult Social Care,Older People (Aged 65 or over) including Older Mental Ill,Older People Commissioning,Social Care - Residential Care,08/07/2015,3470778,"-1,313.76",Forest Drive Residential Home Ltd 
Adults Services,Adult Social Care,Older People (Aged 65 or over) including Older Mental Ill,Older People Commissioning,Social Care - Day Care,08/07/2015,3470782,625.47,St Hilda's East Community Centre 
Adults Services,Adult Social Care,Older People (Aged 65 or over) including Older Mental Ill,Older People Commissioning,Social Care - Day Care,08/07/2015,3470786,"1,058.51",St Hilda's East Community Centre 
Adults Services,Adult Social Care,Older People (Aged 65 or over) including Older Mental Ill,Older People Commissioning,Social Care - Day Care,08/07/2015,3470794,647.02,St Hilda's East Community Centre 
Adults Services,Adult Social Care,Older People (Aged 65 or over) including Older Mental Ill,Older People Commissioning,Social Care - Day Care,08/07/2015,3470799,"1,147.79",St Hilda's East Community Centre 
Adults Services,Adult Social Care,Older People (Aged 65 or over) including Older Mental Ill,Older People Commissioning,Social Care - Day Care,08/07/2015,3470802,513.9,St Hilda's East Community Centre 
Adults Services,Adult Social Care,Older People (Aged 65 or over) including Older Mental Ill,Older People Commissioning,Social Care - Day Care,08/07/2015,3470804,608.26,St Hilda's East Community Centre 
Adults Services,Adult Social Care,Older People (Aged 65 or over) including Older Mental Ill,Mental Health Commissioning,Social Care - Day Care,08/07/2015,3470810,513.9,St Hilda's East Community Centre 
Adults Services,Adult Social Care,Older People (Aged 65 or over) including Older Mental Ill,Mental Health Commissioning,Social Care - Day Care,08/07/2015,3470812,976.41,St Hilda's East Community Centre 
Adults Services,Adult Social Care,Older People (Aged 65 or over) including Older Mental Ill,Older People Commissioning,Social Care - Day Care,08/07/2015,3470816,886.63,St Hilda's East Community Centre 
Adults Services,Adult Social Care,Older People (Aged 65 or over) including Older Mental Ill,Older People Commissioning,Social Care - Day Care,08/07/2015,3470819,565.29,St Hilda's East Community Centre 
Adults Services,Adult Social Care,Older People (Aged 65 or over) including Older Mental Ill,Older People Commissioning,Social Care - Day Care,08/07/2015,3470820,565.29,St Hilda's East Community Centre 
Adults Services,Adult Social Care,Older People (Aged 65 or over) including Older Mental Ill,Mental Health Commissioning,Social Care - Day Care,08/07/2015,3470824,647.02,St Hilda's East Community Centre 
Adults Services,Adult Social Care,Older People (Aged 65 or over) including Older Mental Ill,Physical Dis Commissioning,Social Care - Day Care,08/07/2015,3470825,742.84,St Hilda's East Community Centre 
Adults Services,Adult Social Care,Older People (Aged 65 or over) including Older Mental Ill,Older People Commissioning,Social Care - Day Care,08/07/2015,3470830,513.9,St Hilda's East Community Centre 
Adults Services,Adult Social Care,Older People (Aged 65 or over) including Older Mental Ill,Older People Commissioning,Social Care - Day Care,08/07/2015,3470834,963.78,St Hilda's East Community Centre 
Adults Services,Adult Social Care,Older People (Aged 65 or over) including Older Mental Ill,Older People Commissioning,Social Care - Day Care,08/07/2015,3470840,556.87,St Hilda's East Community Centre 
Adults Services,Adult Social Care,Older People (Aged 65 or over) including Older Mental Ill,Older People Commissioning,Social Care - Day Care,08/07/2015,3470841,531.11,St Hilda's East Community Centre 
Adults Services,Adult Social Care,Older People (Aged 65 or over) including Older Mental Ill,Mental Health Commissioning,Social Care - Day Care,08/07/2015,3470844,501.27,St Hilda's East Community Centre 
Adults Services,Adult Social Care,Older People (Aged 65 or over) including Older Mental Ill,Older People Commissioning,Social Care - Day Care,08/07/2015,3470847,565.29,St Hilda's East Community Centre 
Adults Services,Adult Social Care,Older People (Aged 65 or over) including Older Mental Ill,Older People Commissioning,Social Care - Day Care,08/07/2015,3470850,"1,178.44",St Hilda's East Community Centre 
Adults Services,Adult Social Care,Older People (Aged 65 or over) including Older Mental Ill,Older People Commissioning,Social Care - Personal Budgets - Non-Trad Service,08/07/2015,3470862,548.26,St Hilda's East Community Centre 
Adults Services,Adult Social Care,Older People (Aged 65 or over) including Older Mental Ill,Older People Commissioning,Social Care - Day Care,08/07/2015,3470869,501.27,St Hilda's East Community Centre 
Adults Services,Adult Social Care,Older People (Aged 65 or over) including Older Mental Ill,Older People Commissioning,Social Care - Day Care,08/07/2015,3470876,652.1,St Hilda's East Community Centre 
Adults Services,Adult Social Care,Older People (Aged 65 or over) including Older Mental Ill,Older People Commissioning,Social Care - Day Care,08/07/2015,3470877,848.18,St Hilda's East Community Centre 
Adults Services,Adult Social Care,Older People (Aged 65 or over) including Older Mental Ill,Older People Commissioning,Social Care - Day Care,08/07/2015,3470884,706.83,St Hilda's East Community Centre 
Adults Services,Adult Social Care,Older People (Aged 65 or over) including Older Mental Ill,Older People Commissioning,Social Care - Day Care,08/07/2015,3470885,"1,319.11",St Hilda's East Community Centre 
Adults Services,Adult Social Care,Older People (Aged 65 or over) including Older Mental Ill,Older People Commissioning,Social Care - Day Care,08/07/2015,3470892,513.9,St Hilda's East Community Centre 
Adults Services,Adult Social Care,Older People (Aged 65 or over) including Older Mental Ill,Older People Commissioning,Social Care - Day Care,08/07/2015,3470896,651.04,St Hilda's East Community Centre 
Adults Services,Adult Social Care,Older People (Aged 65 or over) including Older Mental Ill,Mental Health Commissioning,Social Care - Day Care,08/07/2015,3470899,873.63,St Hilda's East Community Centre 
Adults Services,Adult Social Care,Older People (Aged 65 or over) including Older Mental Ill,Older People Commissioning,Social Care - Day Care,08/07/2015,3470900,749.61,St Hilda's East Community Centre 
Adults Services,Adult Social Care,Older People (Aged 65 or over) including Older Mental Ill,Older People Commissioning,Social Care - Day Care,08/07/2015,3470903,848.18,St Hilda's East Community Centre 
Adults Services,Adult Social Care,Older People (Aged 65 or over) including Older Mental Ill,Older People Commissioning,Social Care - Day Care,08/07/2015,3470904,513.9,St Hilda's East Community Centre 
Adults Services,Adult Social Care,Older People (Aged 65 or over) including Older Mental Ill,Older People Commissioning,Social Care - Day Care,08/07/2015,3470905,513.9,St Hilda's East Community Centre 
Adults Services,Adult Social Care,Older People (Aged 65 or over) including Older Mental Ill,Older People Commissioning,Social Care - Day Care,08/07/2015,3470907,603.86,St Hilda's East Community Centre 
Adults Services,Adult Social Care,Older People (Aged 65 or over) including Older Mental Ill,Mental Health Commissioning,Social Care - Day Care,08/07/2015,3470909,651.23,St Hilda's East Community Centre 
Adults Services,Adult Social Care,Older People (Aged 65 or over) including Older Mental Ill,Physical Dis Commissioning,Social Care - Day Care,08/07/2015,3470910,872.95,St Hilda's East Community Centre 
Adults Services,Adult Social Care,Older People (Aged 65 or over) including Older Mental Ill,Mental Health Commissioning,Social Care - Day Care,08/07/2015,3470911,668.07,St Hilda's East Community Centre 
Adults Services,Adult Social Care,Older People (Aged 65 or over) including Older Mental Ill,Older People Commissioning,Social Care - Day Care,08/07/2015,3470915,616.68,St Hilda's East Community Centre 
Adults Services,Adult Social Care,Older People (Aged 65 or over) including Older Mental Ill,Older People Commissioning,Social Care - Day Care,08/07/2015,3470919,912.39,St Hilda's East Community Centre 
Adults Services,Adult Social Care,Older People (Aged 65 or over) including Older Mental Ill,Older People Commissioning,Social Care - Day Care,08/07/2015,3470925,556.87,St Hilda's East Community Centre 
Adults Services,Adult Social Care,Older People (Aged 65 or over) including Older Mental Ill,Older People Commissioning,Social Care - Day Care,08/07/2015,3470926,548.26,St Hilda's East Community Centre 
Adults Services,Adult Social Care,Older People (Aged 65 or over) including Older Mental Ill,Mental Health Commissioning,Social Care - Day Care,08/07/2015,3470928,505.48,St Hilda's East Community Centre 
Adults Services,Adult Social Care,Older People (Aged 65 or over) including Older Mental Ill,Strategic Commissioning,Social Care - MSG Prevention Health & Wellbeing,08/07/2015,3470934,"21,008.50",COMMUNITY OPTIONS TEAM 
Adults Services,Adult Social Care,Older People (Aged 65 or over) including Older Mental Ill,Strategic Commissioning,Social Care - MSG Prevention Health & Wellbeing,08/07/2015,3470935,"21,008.50",COMMUNITY OPTIONS TEAM 
Adults Services,Adult Social Care,Older People (Aged 65 or over) including Older Mental Ill,Learning Dis Commissioning,Social Care - Residential Care,08/07/2015,3470936,"1,119.05",NEXUS Programme Ltd 
Adults Services,Adult Social Care,Older People (Aged 65 or over) including Older Mental Ill,Learning Dis Commissioning,Social Care - Residential Care,08/07/2015,3470937,"5,651.97",NEXUS Programme Ltd 
Adults Services,Adult Social Care,Older People (Aged 65 or over) including Older Mental Ill,Learning Dis Commissioning,Social Care - Residential Care,08/07/2015,3470938,"6,937.71",NEXUS Programme Ltd 
Adults Services,Adult Social Care,Older People (Aged 65 or over) including Older Mental Ill,Learning Dis Commissioning,Social Care - Day Care,08/07/2015,3470940,727.76,APASENTH 
Adults Services,Adult Social Care,Older People (Aged 65 or over) including Older Mental Ill,Learning Dis Commissioning,Social Care - Day Care,08/07/2015,3470941,694.68,APASENTH 
Adults Services,Adult Social Care,Older People (Aged 65 or over) including Older Mental Ill,Learning Dis Commissioning,Social Care - Day Care,08/07/2015,3470943,"1,022.14",APASENTH 
Adults Services,Adult Social Care,Older People (Aged 65 or over) including Older Mental Ill,Learning Dis Commissioning,Social Care - Day Care,08/07/2015,3470943,985.69,APASENTH 
Adults Services,Adult Social Care,Older People (Aged 65 or over) including Older Mental Ill,Learning Dis Commissioning,Social Care - Day Care,08/07/2015,3470945,727.76,APASENTH 
Adults Services,Adult Social Care,Older People (Aged 65 or over) including Older Mental Ill,Learning Dis Commissioning,Social Care - Day Care,08/07/2015,3470947,628.46,APASENTH 
Adults Services,Adult Social Care,Older People (Aged 65 or over) including Older Mental Ill,Learning Dis Commissioning,Social Care - Day Care,08/07/2015,3470948,595.44,APASENTH 
Adults Services,Adult Social Care,Older People (Aged 65 or over) including Older Mental Ill,Learning Dis Commissioning,Social Care - Day Care,08/07/2015,3470950,987.58,APASENTH 
Adults Services,Adult Social Care,Older People (Aged 65 or over) including Older Mental Ill,Learning Dis Commissioning,Social Care - Day Care,08/07/2015,3470951,727.76,APASENTH 
Adults Services,Adult Social Care,Older People (Aged 65 or over) including Older Mental Ill,Learning Dis Commissioning,Social Care - Day Care,08/07/2015,3470952,987.58,APASENTH 
Adults Services,Adult Social Care,Older People (Aged 65 or over) including Older Mental Ill,Learning Dis Commissioning,Social Care - Day Care,08/07/2015,3470953,987.58,APASENTH 
Adults Services,Adult Social Care,Older People (Aged 65 or over) including Older Mental Ill,Learning Dis Commissioning,Social Care - Day Care,08/07/2015,3470955,987.58,APASENTH 
Adults Services,Adult Social Care,Older People (Aged 65 or over) including Older Mental Ill,Learning Dis Commissioning,Social Care - Day Care,08/07/2015,3470956,"1,836.56",APASENTH 
Adults Services,Adult Social Care,Older People (Aged 65 or over) including Older Mental Ill,Learning Dis Commissioning,Social Care - Day Care,08/07/2015,3470963,987.58,APASENTH 
Adults Services,Adult Social Care,Older People (Aged 65 or over) including Older Mental Ill,Learning Dis Commissioning,Social Care - Day Care,08/07/2015,3470964,727.76,APASENTH 
Adults Services,Adult Social Care,Older People (Aged 65 or over) including Older Mental Ill,Learning Dis Commissioning,Social Care - Day Care,08/07/2015,3470966,"1,836.56",APASENTH 
Adults Services,Adult Social Care,Older People (Aged 65 or over) including Older Mental Ill,Learning Dis Commissioning,Social Care - Day Care,08/07/2015,3470967,"1,094.22",APASENTH 
Adults Services,Adult Social Care,Older People (Aged 65 or over) including Older Mental Ill,Learning Dis Commissioning,Social Care - Day Care,08/07/2015,3470969,"1,499.19",APASENTH 
Adults Services,Adult Social Care,Older People (Aged 65 or over) including Older Mental Ill,Learning Dis Commissioning,Social Care - Personal Budgets - Non-Trad Service,08/07/2015,3470970,583.57,APASENTH 
Adults Services,Adult Social Care,Older People (Aged 65 or over) including Older Mental Ill,Learning Dis Commissioning,Social Care - Day Care,08/07/2015,3470971,727.76,APASENTH 
Adults Services,Adult Social Care,Older People (Aged 65 or over) including Older Mental Ill,Learning Dis Commissioning,Social Care - Day Care,08/07/2015,3470975,987.58,APASENTH 
Adults Services,Adult Social Care,Older People (Aged 65 or over) including Older Mental Ill,Learning Dis Commissioning,Social Care - Day Care,08/07/2015,3470978,727.76,APASENTH 
Adults Services,Adult Social Care,Older People (Aged 65 or over) including Older Mental Ill,Learning Dis Commissioning,Social Care - Day Care,08/07/2015,3470979,727.76,APASENTH 
Adults Services,Adult Social Care,Older People (Aged 65 or over) including Older Mental Ill,Learning Dis Commissioning,Social Care - Day Care,08/07/2015,3470980,987.58,APASENTH 
Adults Services,Adult Social Care,Older People (Aged 65 or over) including Older Mental Ill,Learning Dis Commissioning,Social Care - Day Care,08/07/2015,3470982,628.46,APASENTH 
Adults Services,Adult Social Care,Older People (Aged 65 or over) including Older Mental Ill,Learning Dis Commissioning,Social Care - Day Care,08/07/2015,3470983,694.68,APASENTH 
Adults Services,Adult Social Care,Older People (Aged 65 or over) including Older Mental Ill,Learning Dis Commissioning,Social Care - Day Care,08/07/2015,3470984,727.76,APASENTH 
Adults Services,Adult Social Care,Older People (Aged 65 or over) including Older Mental Ill,Learning Dis Commissioning,Social Care - Day Care,08/07/2015,3470985,727.76,APASENTH 
Adults Services,Adult Social Care,Older People (Aged 65 or over) including Older Mental Ill,Learning Dis Commissioning,Social Care - Day Care,08/07/2015,3470986,987.58,APASENTH 
Adults Services,Adult Social Care,Older People (Aged 65 or over) including Older Mental Ill,Learning Dis Commissioning,Social Care - Day Care,08/07/2015,3470987,942.69,APASENTH 
Adults Services,Adult Social Care,Older People (Aged 65 or over) including Older Mental Ill,Learning Dis Commissioning,Social Care - Day Care,08/07/2015,3470988,"1,001.76",APASENTH 
Adults Services,Adult Social Care,Older People (Aged 65 or over) including Older Mental Ill,Learning Dis Commissioning,Social Care - Day Care,08/07/2015,3470990,628.46,APASENTH 
Adults Services,Adult Social Care,Older People (Aged 65 or over) including Older Mental Ill,Learning Dis Commissioning,Social Care - Day Care,08/07/2015,3470991,"1,574.32",APASENTH 
Adults Services,Adult Social Care,Older People (Aged 65 or over) including Older Mental Ill,Learning Dis Commissioning,Social Care - Day Care,08/07/2015,3470992,667.84,APASENTH 
Adults Services,Adult Social Care,Older People (Aged 65 or over) including Older Mental Ill,Learning Dis Commissioning,Social Care - Day Care,08/07/2015,3470993,885.42,Tower Project 
Adults Services,Adult Social Care,Older People (Aged 65 or over) including Older Mental Ill,Learning Dis Commissioning,Social Care - Day Care,08/07/2015,3470994,"2,079.22",Tower Project 
Adults Services,Adult Social Care,Older People (Aged 65 or over) including Older Mental Ill,Learning Dis Commissioning,Social Care - Personal Budgets - Non-Trad Service,08/07/2015,3470995,"2,079.22",Tower Project 
Adults Services,Adult Social Care,Older People (Aged 65 or over) including Older Mental Ill,Learning Dis Commissioning,Social Care - Day Care,08/07/2015,3470996,"2,079.22",Tower Project 
Adults Services,Adult Social Care,Older People (Aged 65 or over) including Older Mental Ill,Learning Dis Commissioning,Social Care - Day Care,08/07/2015,3470997,"2,079.22",Tower Project 
Adults Services,Adult Social Care,Older People (Aged 65 or over) including Older Mental Ill,Learning Dis Commissioning,Social Care - Day Care,08/07/2015,3470998,"2,079.22",Tower Project 
Adults Services,Adult Social Care,Older People (Aged 65 or over) including Older Mental Ill,Learning Dis Commissioning,Social Care - Day Care,08/07/2015,3470999,"1,466.96",Tower Project 
Adults Services,Adult Social Care,Older People (Aged 65 or over) including Older Mental Ill,Learning Dis Commissioning,Social Care - Day Care,08/07/2015,3471000,"2,079.22",Tower Project 
Adults Services,Adult Social Care,Older People (Aged 65 or over) including Older Mental Ill,Learning Dis Commissioning,Social Care - Day Care,08/07/2015,3471001,"1,466.96",Tower Project 
Adults Services,Adult Social Care,Older People (Aged 65 or over) including Older Mental Ill,Learning Dis Commissioning,Social Care - Day Care,08/07/2015,3471002,"2,079.22",Tower Project 
Adults Services,Adult Social Care,Older People (Aged 65 or over) including Older Mental Ill,Learning Dis Commissioning,Social Care - Day Care,08/07/2015,3471003,"1,466.96",Tower Project 
Adults Services,Adult Social Care,Older People (Aged 65 or over) including Older Mental Ill,Learning Dis Commissioning,Social Care - Day Care,08/07/2015,3471004,533.44,Tower Project 
Adults Services,Adult Social Care,Older People (Aged 65 or over) including Older Mental Ill,Learning Dis Commissioning,Social Care - Day Care,08/07/2015,3471005,866.84,Tower Project 
Adults Services,Adult Social Care,Older People (Aged 65 or over) including Older Mental Ill,Learning Dis Commissioning,Social Care - Day Care,08/07/2015,3471006,"2,079.22",Tower Project 
Adults Services,Adult Social Care,Older People (Aged 65 or over) including Older Mental Ill,Physical Dis Commissioning,Social Care - Day Care,08/07/2015,3471007,566.16,Tower Project 
Adults Services,Adult Social Care,Older People (Aged 65 or over) including Older Mental Ill,Learning Dis Commissioning,Social Care - Day Care,08/07/2015,3471008,"2,079.22",Tower Project 
Adults Services,Adult Social Care,Older People (Aged 65 or over) including Older Mental Ill,Learning Dis Commissioning,Social Care - Day Care,08/07/2015,3471009,"2,079.22",Tower Project 
Adults Services,Adult Social Care,Older People (Aged 65 or over) including Older Mental Ill,Learning Dis Commissioning,Social Care - Day Care,08/07/2015,3471010,"1,466.96",Tower Project 
Adults Services,Adult Social Care,Older People (Aged 65 or over) including Older Mental Ill,Learning Dis Commissioning,Social Care - Day Care,08/07/2015,3471011,"2,079.22",Tower Project 
Adults Services,Adult Social Care,Older People (Aged 65 or over) including Older Mental Ill,Learning Dis Commissioning,Social Care - Day Care,08/07/2015,3471012,"2,079.22",Tower Project 
Adults Services,Adult Social Care,Older People (Aged 65 or over) including Older Mental Ill,Learning Dis Commissioning,Social Care - Day Care,08/07/2015,3471013,"1,466.96",Tower Project 
Adults Services,Adult Social Care,Older People (Aged 65 or over) including Older Mental Ill,Learning Dis Commissioning,Social Care - Day Care,08/07/2015,3471014,"1,466.96",Tower Project 
Adults Services,Adult Social Care,Older People (Aged 65 or over) including Older Mental Ill,Learning Dis Commissioning,Social Care - Day Care,08/07/2015,3471016,"2,079.22",Tower Project 
Adults Services,Adult Social Care,Older People (Aged 65 or over) including Older Mental Ill,Learning Dis Commissioning,Social Care - Day Care,08/07/2015,3471017,"2,079.22",Tower Project 
Adults Services,Adult Social Care,Older People (Aged 65 or over) including Older Mental Ill,Learning Dis Commissioning,Social Care - Day Care,08/07/2015,3471018,"2,079.22",Tower Project 
Adults Services,Adult Social Care,Older People (Aged 65 or over) including Older Mental Ill,Learning Dis Commissioning,Social Care - Day Care,08/07/2015,3471020,"2,079.22",Tower Project 
Adults Services,Adult Social Care,Older People (Aged 65 or over) including Older Mental Ill,Learning Dis Commissioning,Social Care - Day Care,08/07/2015,3471021,"2,398.22",Tower Project 
Adults Services,Adult Social Care,Older People (Aged 65 or over) including Older Mental Ill,Learning Dis Commissioning,Social Care - Day Care,08/07/2015,3471022,"1,466.96",Tower Project 
Adults Services,Adult Social Care,Older People (Aged 65 or over) including Older Mental Ill,Learning Dis Commissioning,Social Care - Day Care,08/07/2015,3471023,866.84,Tower Project 
Adults Services,Adult Social Care,Older People (Aged 65 or over) including Older Mental Ill,Learning Dis Commissioning,Social Care - Personal Budgets - Non-Trad Service,08/07/2015,3471024,866.84,Tower Project 
Adults Services,Adult Social Care,Older People (Aged 65 or over) including Older Mental Ill,Learning Dis Commissioning,Social Care - Day Care,08/07/2015,3471025,"2,079.22",Tower Project 
Adults Services,Adult Social Care,Older People (Aged 65 or over) including Older Mental Ill,Learning Dis Commissioning,Social Care - Day Care,08/07/2015,3471026,"1,134.12",Tower Project 
Adults Services,Adult Social Care,Older People (Aged 65 or over) including Older Mental Ill,Learning Dis Commissioning,Social Care - Day Care,08/07/2015,3471027,"2,079.22",Tower Project 
Adults Services,Adult Social Care,Older People (Aged 65 or over) including Older Mental Ill,Learning Dis Commissioning,Social Care - Day Care,08/07/2015,3471029,566.16,Tower Project 
Adults Services,Adult Social Care,Older People (Aged 65 or over) including Older Mental Ill,Learning Dis Commissioning,Social Care - Day Care,08/07/2015,3471030,"2,079.22",Tower Project 
Adults Services,Adult Social Care,Older People (Aged 65 or over) including Older Mental Ill,Learning Dis Commissioning,Social Care - Day Care,08/07/2015,3471031,"1,466.96",Tower Project 
Adults Services,Adult Social Care,Older People (Aged 65 or over) including Older Mental Ill,Learning Dis Commissioning,Social Care - Day Care,08/07/2015,3471032,"1,037.96",Tower Project 
Adults Services,Adult Social Care,Older People (Aged 65 or over) including Older Mental Ill,Learning Dis Commissioning,Social Care - Day Care,08/07/2015,3471033,"2,079.22",Tower Project 
Adults Services,Adult Social Care,Older People (Aged 65 or over) including Older Mental Ill,Learning Dis Commissioning,Social Care - Day Care,08/07/2015,3471034,"1,037.96",Tower Project 
Adults Services,Adult Social Care,Older People (Aged 65 or over) including Older Mental Ill,Learning Dis Commissioning,Social Care - Residential Care,08/07/2015,3471036,"2,335.71",EXCELCARE HOLDING PLC 
Adults Services,Adult Social Care,Older People (Aged 65 or over) including Older Mental Ill,Learning Dis Commissioning,Social Care - Residential Care,08/07/2015,3471037,"2,413.57",EXCELCARE HOLDING PLC 
Adults Services,Adult Social Care,Older People (Aged 65 or over) including Older Mental Ill,Older People Commissioning,Social Care - Residential Care,08/07/2015,3471038,560,EXCELCARE HOLDING PLC 
Adults Services,Adult Social Care,Older People (Aged 65 or over) including Older Mental Ill,Older People Commissioning,Social Care - Residential Care,08/07/2015,3471039,560,EXCELCARE HOLDING PLC 
Adults Services,Adult Social Care,Older People (Aged 65 or over) including Older Mental Ill,Learning Dis Commissioning,Social Care - Homecare,08/07/2015,3471066,538.84,MiHOMECARE LIMITED 
Adults Services,Adult Social Care,Older People (Aged 65 or over) including Older Mental Ill,Older People Commissioning,Social Care - Homecare,08/07/2015,3471073,531.82,MiHOMECARE LIMITED 
Adults Services,Adult Social Care,Older People (Aged 65 or over) including Older Mental Ill,Older People Commissioning,Social Care - Homecare,08/07/2015,3471079,645.26,MiHOMECARE LIMITED 
Adults Services,Adult Social Care,Older People (Aged 65 or over) including Older Mental Ill,Older People Commissioning,Social Care - Homecare,08/07/2015,3471080,786.99,MiHOMECARE LIMITED 
Adults Services,Adult Social Care,Older People (Aged 65 or over) including Older Mental Ill,Learning Dis Commissioning,Social Care - Personal Budgets - Non-Trad Service,08/07/2015,3471086,"3,300.00",APASENTH 
Adults Services,Adult Social Care,Older People (Aged 65 or over) including Older Mental Ill,Learning Dis Commissioning,Social Care - Residential Care,08/07/2015,3471087,"4,500.00",APASENTH 
Adults Services,Adult Social Care,Older People (Aged 65 or over) including Older Mental Ill,Learning Dis Commissioning,Social Care - Residential Care,08/07/2015,3471088,"4,500.00",APASENTH 
Adults Services,Adult Social Care,Older People (Aged 65 or over) including Older Mental Ill,Learning Dis Commissioning,Social Care - Residential Care,08/07/2015,3471089,"4,950.00",APASENTH 
Adults Services,Adult Social Care,Older People (Aged 65 or over) including Older Mental Ill,Learning Dis Commissioning,Social Care - Residential Care,08/07/2015,3471090,"3,625.20",APASENTH 
Adults Services,Adult Social Care,Older People (Aged 65 or over) including Older Mental Ill,Learning Dis Commissioning,Social Care - Residential Care,08/07/2015,3471091,"3,000.00",APASENTH 
Adults Services,Adult Social Care,Older People (Aged 65 or over) including Older Mental Ill,Learning Dis Commissioning,Social Care - Personal Budgets - Non-Trad Service,08/07/2015,3471092,"2,145.00",APASENTH 
Adults Services,Adult Social Care,Older People (Aged 65 or over) including Older Mental Ill,Older People Commissioning,Social Care - Residential Care,08/07/2015,3471094,"2,059.54",Martin House (Gold Care Homes) 
Adults Services,Adult Social Care,Older People (Aged 65 or over) including Older Mental Ill,Older People Commissioning,Social Care - Residential Care,08/07/2015,3471094,-666.4,Martin House (Gold Care Homes) 
Adults Services,Adult Social Care,Older People (Aged 65 or over) including Older Mental Ill,Older People Commissioning,Social Care - Residential Care,08/07/2015,3471097,622.99,BUPA CARE HOMES LTD 
Adults Services,Adult Social Care,Older People (Aged 65 or over) including Older Mental Ill,Older People Commissioning,Social Care - Prevention & Support,08/07/2015,3471098,"1,245.83",Alma Attic Ltd T/A Glorydale Inn 
Adults Services,Adult Social Care,Older People (Aged 65 or over) including Older Mental Ill,Strategic Commissioning,Social Care - MSG Lunch Clubs,08/07/2015,3471099,"4,222.22",ST PETERS BENGALI ASSOCIATION 
Adults Services,Adult Social Care,Older People (Aged 65 or over) including Older Mental Ill,Strategic Commissioning,Social Care - MSG Prevention Health & Wellbeing,08/07/2015,3471100,"1,875.00",ST PETERS BENGALI ASSOCIATION 
Adults Services,Adult Social Care,Older People (Aged 65 or over) including Older Mental Ill,Strategic Commissioning,Social Care - Prevention & Support - Block,08/07/2015,3471101,"14,000.00",AGE UK EAST LONDON 
Adults Services,Adult Social Care,Older People (Aged 65 or over) including Older Mental Ill,Strategic Commissioning,Social Care - Lunch Clubs,08/07/2015,3471102,"2,333.33",COMMUNITY OF REFUGEES FROM VIETNAM - 
Adults Services,Adult Social Care,Older People (Aged 65 or over) including Older Mental Ill,Older People Commissioning,Social Care - Residential Care,08/07/2015,3471114,-565.29,RUNWOOD HOMES PLC 
Adults Services,Adult Social Care,Older People (Aged 65 or over) including Older Mental Ill,Older People Commissioning,Social Care - Residential Care,08/07/2015,3471114,"1,954.55",RUNWOOD HOMES PLC 
Adults Services,Adult Social Care,Older People (Aged 65 or over) including Older Mental Ill,Older People Commissioning,Social Care - Residential Care,08/07/2015,3471115,"1,925.96",RUNWOOD HOMES PLC 
Adults Services,Adult Social Care,Older People (Aged 65 or over) including Older Mental Ill,Older People Commissioning,Social Care - Residential Care,08/07/2015,3471116,"3,779.61",RUNWOOD HOMES PLC 
Adults Services,Adult Social Care,Older People (Aged 65 or over) including Older Mental Ill,Older People Commissioning,Social Care - Residential Care,08/07/2015,3471116,"-1,475.12",RUNWOOD HOMES PLC 
Adults Services,Adult Social Care,Older People (Aged 65 or over) including Older Mental Ill,Strategic Commissioning,Social Care - MSG Prevention Health & Wellbeing,08/07/2015,3471117,"23,750.00",POhWER 
Adults Services,Adult Social Care,Older People (Aged 65 or over) including Older Mental Ill,Strategic Commissioning,Social Care - MSG Prevention Health & Wellbeing,08/07/2015,3471118,"23,750.00",POhWER 
Adults Services,Adult Social Care,Older People (Aged 65 or over) including Older Mental Ill,Older People Commissioning,Social Care - Homecare,08/07/2015,3471120,"1,112.28",SANCTUARY HOME CARE LIMITED 
Adults Services,Adult Social Care,Older People (Aged 65 or over) including Older Mental Ill,Older People Commissioning,Social Care - Homecare,08/07/2015,3471122,620.34,SANCTUARY HOME CARE LIMITED 
Adults Services,Adult Social Care,Older People (Aged 65 or over) including Older Mental Ill,Older People Commissioning,Social Care - Homecare,08/07/2015,3471124,627.46,SANCTUARY HOME CARE LIMITED 
Adults Services,Adult Social Care,Older People (Aged 65 or over) including Older Mental Ill,Physical Dis Commissioning,Social Care - Homecare,08/07/2015,3471125,698.74,SANCTUARY HOME CARE LIMITED 
Adults Services,Adult Social Care,Older People (Aged 65 or over) including Older Mental Ill,Older People Commissioning,Social Care - Homecare,08/07/2015,3471137,648.84,SANCTUARY HOME CARE LIMITED 
Adults Services,Adult Social Care,Older People (Aged 65 or over) including Older Mental Ill,Older People Commissioning,Social Care - Homecare,08/07/2015,3471138,527.62,SANCTUARY HOME CARE LIMITED 
Adults Services,Adult Social Care,Older People (Aged 65 or over) including Older Mental Ill,Physical Dis Commissioning,Social Care - Homecare,08/07/2015,3471156,"2,092.30",Soma Healthcare Ltd 
Adults Services,Adult Social Care,Older People (Aged 65 or over) including Older Mental Ill,Older People Commissioning,Social Care - Personal Budgets - Non-Trad Service,08/07/2015,3471159,604.89,Soma Healthcare Ltd 
Adults Services,Adult Social Care,Older People (Aged 65 or over) including Older Mental Ill,Older People Commissioning,Social Care - Homecare,08/07/2015,3471160,508.83,Soma Healthcare Ltd 
Adults Services,Adult Social Care,Older People (Aged 65 or over) including Older Mental Ill,Older People Commissioning,Social Care - Homecare,08/07/2015,3471174,722.34,Soma Healthcare Ltd 
Adults Services,Adult Social Care,Older People (Aged 65 or over) including Older Mental Ill,Older People Commissioning,Social Care - Homecare,08/07/2015,3471175,544.46,Soma Healthcare Ltd 
Adults Services,Adult Social Care,Older People (Aged 65 or over) including Older Mental Ill,Older People Commissioning,Social Care - Homecare,08/07/2015,3471179,883.5,Soma Healthcare Ltd 
Adults Services,Adult Social Care,Older People (Aged 65 or over) including Older Mental Ill,Older People Commissioning,Social Care - Personal Budgets - Non-Trad Service,08/07/2015,3471180,528.48,Soma Healthcare Ltd 
Adults Services,Adult Social Care,Older People (Aged 65 or over) including Older Mental Ill,Physical Dis Commissioning,Social Care - Homecare,08/07/2015,3471181,"1,672.66",Soma Healthcare Ltd 
Adults Services,Adult Social Care,Older People (Aged 65 or over) including Older Mental Ill,Older People Commissioning,Social Care - Homecare,08/07/2015,3471183,732.41,Soma Healthcare Ltd 
Adults Services,Adult Social Care,Older People (Aged 65 or over) including Older Mental Ill,Older People Commissioning,Social Care - Homecare,08/07/2015,3471187,624,Soma Healthcare Ltd 
Adults Services,Adult Social Care,Older People (Aged 65 or over) including Older Mental Ill,Older People Commissioning,Social Care - Homecare,08/07/2015,3471190,"1,412.73",Soma Healthcare Ltd 
Adults Services,Adult Social Care,Older People (Aged 65 or over) including Older Mental Ill,Older People Commissioning,Social Care - Homecare,08/07/2015,3471195,526.76,Soma Healthcare Ltd 
Adults Services,Adult Social Care,Older People (Aged 65 or over) including Older Mental Ill,Older People Commissioning,Social Care - Homecare,08/07/2015,3471199,567.55,Soma Healthcare Ltd 
Adults Services,Adult Social Care,Older People (Aged 65 or over) including Older Mental Ill,Older People Commissioning,Social Care - Homecare,08/07/2015,3471206,555.02,Soma Healthcare Ltd 
Adults Services,Adult Social Care,Older People (Aged 65 or over) including Older Mental Ill,Older People Commissioning,Social Care - Homecare,08/07/2015,3471209,619.14,Soma Healthcare Ltd 
Adults Services,Adult Social Care,Older People (Aged 65 or over) including Older Mental Ill,Older People Commissioning,Social Care - Homecare,08/07/2015,3471210,"1,771.92",Soma Healthcare Ltd 
Adults Services,Adult Social Care,Older People (Aged 65 or over) including Older Mental Ill,Physical Dis Commissioning,Social Care - Homecare,08/07/2015,3471213,752.8,Soma Healthcare Ltd 
Adults Services,Adult Social Care,Older People (Aged 65 or over) including Older Mental Ill,Physical Dis Commissioning,Social Care - Homecare,08/07/2015,3471214,"1,879.34",Soma Healthcare Ltd 
Adults Services,Adult Social Care,Older People (Aged 65 or over) including Older Mental Ill,Learning Dis Commissioning,Social Care - Homecare,08/07/2015,3471215,608.34,Soma Healthcare Ltd 
Adults Services,Adult Social Care,Older People (Aged 65 or over) including Older Mental Ill,Older People Commissioning,Social Care - Homecare,08/07/2015,3471217,"1,053.28",Soma Healthcare Ltd 
Adults Services,Adult Social Care,Older People (Aged 65 or over) including Older Mental Ill,Older People Commissioning,Social Care - Homecare,08/07/2015,3471233,"1,104.38",Soma Healthcare Ltd 
Adults Services,Adult Social Care,Older People (Aged 65 or over) including Older Mental Ill,Older People Commissioning,Social Care - Homecare,08/07/2015,3471247,580.08,Soma Healthcare Ltd 
Adults Services,Adult Social Care,Older People (Aged 65 or over) including Older Mental Ill,Physical Dis Commissioning,Social Care - Homecare,08/07/2015,3471256,644.21,Soma Healthcare Ltd 
Adults Services,Adult Social Care,Older People (Aged 65 or over) including Older Mental Ill,Older People Commissioning,Social Care - Homecare,08/07/2015,3471257,544.46,Soma Healthcare Ltd 
Adults Services,Adult Social Care,Older People (Aged 65 or over) including Older Mental Ill,Physical Dis Commissioning,Social Care - Personal Budgets - Non-Trad Service,08/07/2015,3471264,697.27,Soma Healthcare Ltd 
Adults Services,Adult Social Care,Older People (Aged 65 or over) including Older Mental Ill,Carers,Social Care - Bengali Women's Short Breaks,08/07/2015,3471265,"4,800.00",APASENTH 
Adults Services,Adult Social Care,Older People (Aged 65 or over) including Older Mental Ill,Older People Commissioning,Social Care - Homecare,08/07/2015,3471266,521.35,Soma Healthcare Ltd 
Adults Services,Public Health,Miscellaneous Public Health Services,Public Health Team - 3,Third Party Payments - Voluntary Associations,08/07/2015,3471349,"7,000.00",AGE UK EAST LONDON 
Adults Services,No Service Specified,No Division Specified,Capital-Minor Works (SC),Building Works - Main Works,10/07/2015,3452457,765,Colin Toms and Partners LLP 
Adults Services,Adult Social Care,Older People (Aged 65 or over) including Older Mental Ill,Mental Health Commissioning,Social Care - Day Care,10/07/2015,3460177,680,The Bromley by Bow Centre 
Adults Services,Adult Social Care,Older People (Aged 65 or over) including Older Mental Ill,Learning Dis Commissioning,Social Care - Day Care,10/07/2015,3460178,"1,144.00",The Bromley by Bow Centre 
Adults Services,Adult Social Care,Older People (Aged 65 or over) including Older Mental Ill,Learning Dis Commissioning,Social Care - Day Care,10/07/2015,3460179,876,The Bromley by Bow Centre 
Adults Services,Adult Social Care,Older People (Aged 65 or over) including Older Mental Ill,Learning Dis Commissioning,Social Care - Day Care,10/07/2015,3460181,704,The Bromley by Bow Centre 
Adults Services,Adult Social Care,Older People (Aged 65 or over) including Older Mental Ill,Learning Dis Commissioning,Social Care - Day Care,10/07/2015,3460186,"1,174.60",The Bromley by Bow Centre 
Adults Services,Adult Social Care,Older People (Aged 65 or over) including Older Mental Ill,Learning Dis Commissioning,Social Care - Day Care,10/07/2015,3460188,727.52,The Bromley by Bow Centre 
Adults Services,No Service Specified,No Division Specified,Capital-Minor Works (SC),Building Works - Main Works,10/07/2015,3461371,"2,685.70",Tower Hamlets Schools LTD 
Adults Services,No Service Specified,No Division Specified,Capital-Minor Works (SC),Building Works - Main Works,10/07/2015,3461373,"1,230.50",Tower Hamlets Schools LTD 
Adults Services,Adult Social Care,Older People (Aged 65 or over) including Older Mental Ill,Older People Commissioning,Social Care - Nursing Care,10/07/2015,3463051,"3,596.19",Havelock Court (Bupa) 
Adults Services,Adult Social Care,Older People (Aged 65 or over) including Older Mental Ill,Older People Commissioning,Social Care - Day Care,10/07/2015,3463087,636.86,Peabody Trust 
Adults Services,Adult Social Care,Older People (Aged 65 or over) including Older Mental Ill,Older People Commissioning,Social Care - Day Care,10/07/2015,3463089,502.98,Peabody Trust 
Adults Services,Adult Social Care,Older People (Aged 65 or over) including Older Mental Ill,Mental Health Commissioning,Social Care - Day Care,10/07/2015,3463100,884.34,Peabody Trust 
Adults Services,Adult Social Care,Older People (Aged 65 or over) including Older Mental Ill,Older People Commissioning,Social Care - Day Care,10/07/2015,3463109,789.18,Peabody Trust 
Adults Services,Adult Social Care,Older People (Aged 65 or over) including Older Mental Ill,Older People Commissioning,Social Care - Day Care,10/07/2015,3463117,789.18,Peabody Trust 
Adults Services,Adult Social Care,Older People (Aged 65 or over) including Older Mental Ill,Older People Commissioning,Social Care - Day Care,10/07/2015,3463118,638.86,Peabody Trust 
Adults Services,Public Health,Miscellaneous Public Health Services,Public Health - Director,Third Party Payments - Other Local Authorities,10/07/2015,3464273,"2,500.00",London Borough Of Croydon 
Adults Services,Public Health,Children 519 Public Health Programmes,Public Health Team 1,Third Party Payments - Other Establishments,10/07/2015,3464289,"40,000.00",The Whitechapel Dental Centre 
Adults Services,Public Health,Smoking and Tobacco,Public Health Team - 2,Payments to Private Contractors - Other Contractors,10/07/2015,3465267,674.2,BARKANTINE PHARMACY 
Adults Services,Adult Social Care,Older People (Aged 65 or over) including Older Mental Ill,Older People Commissioning,Social Care - Residential Care,10/07/2015,3466469,"2,079.08",MILLARD HOUSE RESIDENTAIL CARE HOME 
Adults Services,Adult Social Care,Older People (Aged 65 or over) including Older Mental Ill,Older People Commissioning,Social Care - Residential Care,10/07/2015,3466469,-562.41,MILLARD HOUSE RESIDENTAIL CARE HOME 
Adults Services,Adult Social Care,Older People (Aged 65 or over) including Older Mental Ill,Mental Health Commissioning,Social Care - Supported Accommodation,10/07/2015,3466987,"2,035.71",NEXT STEP SUPPORT LIMITED 
Adults Services,Public Health,Children 519 Public Health Programmes,Public Health Team 1,Third Party Payments - Other Establishments,10/07/2015,3469069,"2,884.00",Kent Community Health NHS Trust 
Adults Services,Public Health,Smoking and Tobacco,Public Health Team - 2,Payments to Private Contractors - Other Contractors,10/07/2015,3469158,510,Redacted Section 40 FOI Act 
Adults Services,Public Health,Smoking and Tobacco,Public Health Team - 2,Payments to Private Contractors - Other Contractors,10/07/2015,3469159,"1,107.36",Redacted Section 40 FOI Act 
Adults Services,Public Health,Smoking and Tobacco,Public Health Team - 2,Payments to Private Contractors - Other Contractors,10/07/2015,3469163,678.6,FLORIDA PHARMACY 
Adults Services,Public Health,Smoking and Tobacco,Public Health Team - 2,Payments to Private Contractors - Other Contractors,10/07/2015,3469164,809.21,FLORIDA PHARMACY 
Adults Services,Education Services,Services to Young People and Other Community Learners,YCL Small Grants,Third Party Payments - Voluntary Associations,10/07/2015,3471936,518.52,ASSOCIATES OF COMMUNITY TRUST (UK) 
Adults Services,Children's Social Care,Other Children's and Family Services,Vol Sector Grants-C&F,Third Party Payments - Voluntary Associations,10/07/2015,3471940,"2,777.78",DA'WATUL ISLAM UK & EIRE 
Adults Services,Education Services,Services to Young People and Other Community Learners,YCL Small Grants,Third Party Payments - Voluntary Associations,10/07/2015,3471941,833.33,DA'WATUL ISLAM UK & EIRE 
Adults Services,Education Services,Services to Young People and Other Community Learners,YCL Small Grants,Third Party Payments - Voluntary Associations,10/07/2015,3471944,833.33,SHADOW YOUTH ALLIANCE 
Adults Services,Children's Social Care,Other Children's and Family Services,Vol Sector Grants-C&F,Third Party Payments - Voluntary Associations,10/07/2015,3471954,"2,333.33",SHOBUJSHATHI SUPPLEMENTARY 
Adults Services,Public Health,Smoking and Tobacco,Public Health Team - 2,Third Party Payments - Other Establishments,10/07/2015,3471961,"39,649.00",Imperial College Healthcare NHS Trust 
Adults Services,Education Services,Services to Young People and Other Community Learners,YCL Small Grants,Third Party Payments - Voluntary Associations,10/07/2015,3471976,555.56,ISLE OF DOGS BANGLADESHI ASSOCIATION 
Adults Services,Education Services,Services to Young People and Other Community Learners,YCL Small Grants,Third Party Payments - Voluntary Associations,10/07/2015,3471977,518.52,Udichi Shilpi Gosthi 
Adults Services,Children's Social Care,Other Children's and Family Services,Vol Sector Grants-C&F,Third Party Payments - Voluntary Associations,10/07/2015,3471979,"1,000.00",APASENTH 
Adults Services,Education Services,Services to Young People and Other Community Learners,YCL Small Grants,Third Party Payments - Voluntary Associations,10/07/2015,3471985,740.74,BIJOY YOUTH GROUP 
Adults Services,Adult Social Care,Older People (Aged 65 or over) including Older Mental Ill,Older People Commissioning,Social Care - Residential Care,10/07/2015,3472388,"3,085.71",Federation of Jewish Services 
Adults Services,Adult Social Care,Older People (Aged 65 or over) including Older Mental Ill,Learning Dis Commissioning,Social Care - Residential Care,10/07/2015,3472390,"53,453.37",The Camden Society 
Adults Services,Adult Social Care,Older People (Aged 65 or over) including Older Mental Ill,Physical Dis Commissioning,Social Care - Homecare,10/07/2015,3472395,"4,062.88",Excelcare (Home Care Division) LTD 
Adults Services,Adult Social Care,Older People (Aged 65 or over) including Older Mental Ill,Physical Dis Commissioning,Social Care - Homecare,10/07/2015,3472396,735.43,Excelcare (Home Care Division) LTD 
Adults Services,Adult Social Care,Older People (Aged 65 or over) including Older Mental Ill,Older People Commissioning,Social Care - Homecare,10/07/2015,3472401,999.3,Excelcare (Home Care Division) LTD 
Adults Services,Adult Social Care,Older People (Aged 65 or over) including Older Mental Ill,Older People Commissioning,Social Care - Homecare,10/07/2015,3472402,"1,307.22",Excelcare (Home Care Division) LTD 
Adults Services,Adult Social Care,Older People (Aged 65 or over) including Older Mental Ill,Older People Commissioning,Social Care - Personal Budgets - Non-Trad Service,10/07/2015,3472403,966.43,Excelcare (Home Care Division) LTD 
Adults Services,Adult Social Care,Older People (Aged 65 or over) including Older Mental Ill,Older People Commissioning,Social Care - Homecare,10/07/2015,3472405,"1,116.24",Excelcare (Home Care Division) LTD 
Adults Services,Adult Social Care,Older People (Aged 65 or over) including Older Mental Ill,Older People Commissioning,Social Care - Homecare,10/07/2015,3472418,"1,269.74",Excelcare (Home Care Division) LTD 
Adults Services,Adult Social Care,Older People (Aged 65 or over) including Older Mental Ill,Older People Commissioning,Social Care - Homecare,10/07/2015,3472419,578.21,Excelcare (Home Care Division) LTD 
Adults Services,Adult Social Care,Older People (Aged 65 or over) including Older Mental Ill,Older People Commissioning,Social Care - Homecare,10/07/2015,3472423,704.8,Excelcare (Home Care Division) LTD 
Adults Services,Adult Social Care,Older People (Aged 65 or over) including Older Mental Ill,Mental Health Commissioning,Social Care - Homecare,10/07/2015,3472425,790.85,Excelcare (Home Care Division) LTD 
Adults Services,Adult Social Care,Older People (Aged 65 or over) including Older Mental Ill,Older People Commissioning,Social Care - Homecare,10/07/2015,3472428,"1,203.16",Excelcare (Home Care Division) LTD 
Adults Services,Adult Social Care,Older People (Aged 65 or over) including Older Mental Ill,Older People Commissioning,Social Care - Homecare,10/07/2015,3472436,"2,238.65",Excelcare (Home Care Division) LTD 
Adults Services,Adult Social Care,Older People (Aged 65 or over) including Older Mental Ill,Older People Commissioning,Social Care - Homecare,10/07/2015,3472438,586.79,Excelcare (Home Care Division) LTD 
Adults Services,Adult Social Care,Older People (Aged 65 or over) including Older Mental Ill,Older People Commissioning,Social Care - Homecare,10/07/2015,3472453,842.89,Excelcare (Home Care Division) LTD 
Adults Services,Adult Social Care,Older People (Aged 65 or over) including Older Mental Ill,Learning Dis Commissioning,Social Care - Homecare,10/07/2015,3472454,593.18,Excelcare (Home Care Division) LTD 
Adults Services,Adult Social Care,Older People (Aged 65 or over) including Older Mental Ill,Learning Dis Commissioning,Social Care - Homecare,10/07/2015,3472460,"1,559.59",Excelcare (Home Care Division) LTD 
Adults Services,Adult Social Care,Older People (Aged 65 or over) including Older Mental Ill,Older People Commissioning,Social Care - Nursing Care,10/07/2015,3472463,"2,049.23",Bennetts Castlle Care Home 
Adults Services,Adult Social Care,Older People (Aged 65 or over) including Older Mental Ill,Older People Commissioning,Social Care - Nursing Care,10/07/2015,3472464,"1,576.33",Bennetts Castlle Care Home 
Adults Services,Adult Social Care,Older People (Aged 65 or over) including Older Mental Ill,Older People Commissioning,Social Care - Nursing Care,10/07/2015,3472465,"1,576.33",Bennetts Castlle Care Home 
Adults Services,Adult Social Care,Older People (Aged 65 or over) including Older Mental Ill,Physical Dis Commissioning,Social Care - Personal Budgets - Cash,10/07/2015,3472466,884.87,DAVID HOWARD LTD CLIENT ACCOUNT 
Adults Services,Adult Social Care,Older People (Aged 65 or over) including Older Mental Ill,Older People Commissioning,Social Care - Homecare,10/07/2015,3472472,580,SEVACARE UK LTD 
Adults Services,Adult Social Care,Older People (Aged 65 or over) including Older Mental Ill,Older People Commissioning,Social Care - Homecare,10/07/2015,3472475,"1,098.38",SEVACARE UK LTD 
Adults Services,Adult Social Care,Older People (Aged 65 or over) including Older Mental Ill,Older People Commissioning,Social Care - Homecare,10/07/2015,3472491,556.1,FOCUS CARE LINK LTD 
Adults Services,Adult Social Care,Older People (Aged 65 or over) including Older Mental Ill,Physical Dis Commissioning,Social Care - Homecare,10/07/2015,3472504,565.11,FOCUS CARE LINK LTD 
Adults Services,Adult Social Care,Older People (Aged 65 or over) including Older Mental Ill,Physical Dis Commissioning,Social Care - Homecare,10/07/2015,3472513,644.81,FOCUS CARE LINK LTD 
Adults Services,Adult Social Care,Older People (Aged 65 or over) including Older Mental Ill,Older People Commissioning,Social Care - Homecare,10/07/2015,3472514,608.58,FOCUS CARE LINK LTD 
Adults Services,Adult Social Care,Older People (Aged 65 or over) including Older Mental Ill,Older People Commissioning,Social Care - Homecare,10/07/2015,3472526,"1,622.88",FOCUS CARE LINK LTD 
Adults Services,Adult Social Care,Older People (Aged 65 or over) including Older Mental Ill,Older People Commissioning,Social Care - Homecare,10/07/2015,3472527,"1,014.30",FOCUS CARE LINK LTD 
Adults Services,Adult Social Care,Older People (Aged 65 or over) including Older Mental Ill,Physical Dis Commissioning,Social Care - Homecare,10/07/2015,3472532,876.65,FOCUS CARE LINK LTD 
Adults Services,Adult Social Care,Older People (Aged 65 or over) including Older Mental Ill,Older People Commissioning,Social Care - Homecare,10/07/2015,3472536,912.87,FOCUS CARE LINK LTD 
Adults Services,Adult Social Care,Older People (Aged 65 or over) including Older Mental Ill,Older People Commissioning,Social Care - Day Care,10/07/2015,3472546,662.16,St Hilda's East Community Centre 
Adults Services,Adult Social Care,Older People (Aged 65 or over) including Older Mental Ill,Older People Commissioning,Social Care - Day Care,10/07/2015,3472549,"1,147.79",St Hilda's East Community Centre 
Adults Services,Adult Social Care,Older People (Aged 65 or over) including Older Mental Ill,Older People Commissioning,Social Care - Day Care,10/07/2015,3472568,668.07,St Hilda's East Community Centre 
Adults Services,Adult Social Care,Older People (Aged 65 or over) including Older Mental Ill,Older People Commissioning,Social Care - Day Care,10/07/2015,3472569,531.05,St Hilda's East Community Centre 
Adults Services,Adult Social Care,Older People (Aged 65 or over) including Older Mental Ill,Older People Commissioning,Social Care - Day Care,10/07/2015,3472575,849.24,St Hilda's East Community Centre 
Adults Services,Adult Social Care,Older People (Aged 65 or over) including Older Mental Ill,Older People Commissioning,Social Care - Day Care,10/07/2015,3472576,993.62,St Hilda's East Community Centre 
Adults Services,Adult Social Care,Older People (Aged 65 or over) including Older Mental Ill,Older People Commissioning,Social Care - Day Care,10/07/2015,3472582,925.02,St Hilda's East Community Centre 
Adults Services,Adult Social Care,Older People (Aged 65 or over) including Older Mental Ill,Older People Commissioning,Social Care - Day Care,10/07/2015,3472583,"1,250.57",St Hilda's East Community Centre 
Adults Services,Adult Social Care,Older People (Aged 65 or over) including Older Mental Ill,Older People Commissioning,Social Care - Day Care,10/07/2015,3472587,513.9,St Hilda's East Community Centre 
Adults Services,Adult Social Care,Older People (Aged 65 or over) including Older Mental Ill,Older People Commissioning,Social Care - Day Care,10/07/2015,3472596,919.11,St Hilda's East Community Centre 
Adults Services,Adult Social Care,Older People (Aged 65 or over) including Older Mental Ill,Older People Commissioning,Social Care - Day Care,10/07/2015,3472598,668.07,St Hilda's East Community Centre 
Adults Services,Adult Social Care,Older People (Aged 65 or over) including Older Mental Ill,Older People Commissioning,Social Care - Day Care,10/07/2015,3472599,668.07,St Hilda's East Community Centre 
Adults Services,Adult Social Care,Older People (Aged 65 or over) including Older Mental Ill,Older People Commissioning,Social Care - Day Care,10/07/2015,3472607,"1,074.98",St Hilda's East Community Centre 
Adults Services,Adult Social Care,Older People (Aged 65 or over) including Older Mental Ill,Learning Dis Commissioning,Social Care - Homecare,10/07/2015,3472622,737.36,MiHOMECARE LIMITED 
Adults Services,Adult Social Care,Older People (Aged 65 or over) including Older Mental Ill,Older People Commissioning,Social Care - Homecare,10/07/2015,3472626,698.57,MiHOMECARE LIMITED 
Adults Services,Adult Social Care,Older People (Aged 65 or over) including Older Mental Ill,Older People Commissioning,Social Care - Homecare,10/07/2015,3472631,"1,389.78",MiHOMECARE LIMITED 
Adults Services,Adult Social Care,Older People (Aged 65 or over) including Older Mental Ill,Older People Commissioning,Social Care - Homecare,10/07/2015,3472635,503.46,MiHOMECARE LIMITED 
Adults Services,Adult Social Care,Older People (Aged 65 or over) including Older Mental Ill,Older People Commissioning,Social Care - Homecare,10/07/2015,3472648,797.76,MiHOMECARE LIMITED 
Adults Services,Adult Social Care,Older People (Aged 65 or over) including Older Mental Ill,Older People Commissioning,Social Care - Homecare,10/07/2015,3472649,524.66,MiHOMECARE LIMITED 
Adults Services,Adult Social Care,Older People (Aged 65 or over) including Older Mental Ill,Older People Commissioning,Social Care - Homecare,10/07/2015,3472650,796.91,MiHOMECARE LIMITED 
Adults Services,Adult Social Care,Older People (Aged 65 or over) including Older Mental Ill,Physical Dis Commissioning,Social Care - Homecare,10/07/2015,3472666,791.43,SANCTUARY HOME CARE LIMITED 
Adults Services,Adult Social Care,Older People (Aged 65 or over) including Older Mental Ill,Older People Commissioning,Social Care - Homecare,10/07/2015,3472673,887.69,SANCTUARY HOME CARE LIMITED 
Adults Services,Adult Social Care,Older People (Aged 65 or over) including Older Mental Ill,Physical Dis Commissioning,Social Care - Homecare,10/07/2015,3472688,727.26,SANCTUARY HOME CARE LIMITED 
Adults Services,Adult Social Care,Older People (Aged 65 or over) including Older Mental Ill,Older People Commissioning,Social Care - Homecare,10/07/2015,3472693,"3,393.88",SANCTUARY HOME CARE LIMITED 
Adults Services,Adult Social Care,Older People (Aged 65 or over) including Older Mental Ill,Older People Commissioning,Social Care - Homecare,10/07/2015,3472696,"1,197.84",SANCTUARY HOME CARE LIMITED 
Adults Services,Adult Social Care,Older People (Aged 65 or over) including Older Mental Ill,Older People Commissioning,Social Care - Homecare,10/07/2015,3472702,"1,283.40",SANCTUARY HOME CARE LIMITED 
Adults Services,Adult Social Care,Older People (Aged 65 or over) including Older Mental Ill,Older People Commissioning,Social Care - Homecare,10/07/2015,3472710,677.36,SANCTUARY HOME CARE LIMITED 
Adults Services,Adult Social Care,Older People (Aged 65 or over) including Older Mental Ill,Older People Commissioning,Social Care - Homecare,10/07/2015,3472724,"1,069.64",SANCTUARY HOME CARE LIMITED 
Adults Services,Adult Social Care,Older People (Aged 65 or over) including Older Mental Ill,Older People Commissioning,Social Care - Homecare,10/07/2015,3472737,898.38,SANCTUARY HOME CARE LIMITED 
Adults Services,Adult Social Care,Older People (Aged 65 or over) including Older Mental Ill,Older People Commissioning,Social Care - Homecare,10/07/2015,3472756,"1,055.24",SANCTUARY HOME CARE LIMITED 
Adults Services,Adult Social Care,Older People (Aged 65 or over) including Older Mental Ill,Physical Dis Commissioning,Social Care - Homecare,10/07/2015,3472759,541.9,SANCTUARY HOME CARE LIMITED 
Adults Services,Adult Social Care,Older People (Aged 65 or over) including Older Mental Ill,Older People Commissioning,Social Care - Homecare,10/07/2015,3472764,598.94,SANCTUARY HOME CARE LIMITED 
Adults Services,Education Services,Services to Young People and Other Community Learners,YCL Small Grants,Third Party Payments - Voluntary Associations,10/07/2015,3472781,555.56,Ensign Youth Club 
Adults Services,Public Health,Smoking and Tobacco,Public Health Team - 2,Third Party Payments - Other Establishments,13/07/2015,3329042,"78,233.99",Chelsea and Westmeinster Hospital NHS Foundation Trust 
Adults Services,Public Health,Smoking and Tobacco,Public Health Team - 2,Third Party Payments - Other Establishments,13/07/2015,3389529,"85,986.77",Chelsea and Westmeinster Hospital NHS Foundation Trust 
Adults Services,Public Health,Smoking and Tobacco,Public Health Team - 2,Third Party Payments - Other Establishments,13/07/2015,3393154,"92,547.84",Chelsea and Westmeinster Hospital NHS Foundation Trust 
Adults Services,Adult Social Care,Older People (Aged 65 or over) including Older Mental Ill,Older People Commissioning,Social Care - Homecare,13/07/2015,3460268,513,Supporting Care 
Adults Services,Adult Social Care,Older People (Aged 65 or over) including Older Mental Ill,Replacement of EHCM,Computing - Purchase of Software,13/07/2015,3460644,"12,646.00",Agilisys Professional Services 
Adults Services,Public Health,Children 519 Public Health Programmes,Public Health Team 1,Third Party Payments - Other Establishments,13/07/2015,3461400,"4,777.50",West Midlands CSU 
Adults Services,Adult Social Care,Older People (Aged 65 or over) including Older Mental Ill,Learning Dis Commissioning,Social Care - Day Care,13/07/2015,3462214,961.88,HEREWARD CARE SERVICES 
Adults Services,Adult Social Care,Older People (Aged 65 or over) including Older Mental Ill,Older People Commissioning,Social Care - Nursing Care,13/07/2015,3462927,"-1,733.16",H-C ONE LTD - TOWER BRIDGE 
Adults Services,Adult Social Care,Older People (Aged 65 or over) including Older Mental Ill,Older People Commissioning,Social Care - Nursing Care,13/07/2015,3463053,"2,465.87",H-C ONE LTD - TOWER BRIDGE 
Adults Services,Adult Social Care,Older People (Aged 65 or over) including Older Mental Ill,Older People Commissioning,Client Contributions for Social Care - Nursing Care,13/07/2015,3463053,-531.21,H-C ONE LTD - TOWER BRIDGE 
Adults Services,Adult Social Care,Older People (Aged 65 or over) including Older Mental Ill,Older People Commissioning,Social Care - Nursing Care,13/07/2015,3463054,"2,475.94",H-C ONE LTD - TOWER BRIDGE 
Adults Services,Public Health,Smoking and Tobacco,Public Health Team - 2,Third Party Payments - Other Establishments,13/07/2015,3465697,"3,219.96",King's College Hospital NHSFT 
Adults Services,Adult Social Care,Older People (Aged 65 or over) including Older Mental Ill,Learning Dis Commissioning,Social Care - Residential Care,13/07/2015,3471112,"4,376.84",Lifestyles Academy for Independance 
Adults Services,Public Health,Miscellaneous Public Health Services,Public Health Team - 3,Payments to Private Contractors - Other Contractors,15/07/2015,3461723,"74,667.67",Greenwich Leisure LTD 
Adults Services,Adult Social Care,Older People (Aged 65 or over) including Older Mental Ill,Older People Commissioning,Social Care - Residential Care,15/07/2015,3462865,"2,010.90",LUGANO 
Adults Services,Adult Social Care,Older People (Aged 65 or over) including Older Mental Ill,Learning Dis Commissioning,Social Care - Residential Care,15/07/2015,3464693,"5,986.41",THE REGARD PARTNERSHIP 
Adults Services,Adult Social Care,Other Adult Services,Tower Hamlets Care Alarms,Comms - Purchase of Equipment,15/07/2015,3469055,"1,320.00",Fluidata 
Adults Services,Adult Social Care,Older People (Aged 65 or over) including Older Mental Ill,Older People Commissioning,Social Care - Homecare,15/07/2015,3472344,"1,074.94",Allied Healthcare Group LTD 
Adults Services,Adult Social Care,Older People (Aged 65 or over) including Older Mental Ill,Learning Dis Commissioning,Social Care - Homecare,15/07/2015,3472344,691.24,Allied Healthcare Group LTD 
Adults Services,Adult Social Care,Older People (Aged 65 or over) including Older Mental Ill,Mental Health Commissioning,Social Care - Homecare,15/07/2015,3472344,"2,264.35",Allied Healthcare Group LTD 
Adults Services,Adult Social Care,Older People (Aged 65 or over) including Older Mental Ill,Older People Commissioning,Social Care - Homecare,15/07/2015,3472346,"1,102.52",Allied Healthcare Group LTD 
Adults Services,Adult Social Care,Older People (Aged 65 or over) including Older Mental Ill,Learning Dis Commissioning,Social Care - Homecare,15/07/2015,3472346,708.97,Allied Healthcare Group LTD 
Adults Services,Adult Social Care,Older People (Aged 65 or over) including Older Mental Ill,Mental Health Commissioning,Social Care - Homecare,15/07/2015,3472346,"2,322.45",Allied Healthcare Group LTD 
Adults Services,Adult Social Care,Older People (Aged 65 or over) including Older Mental Ill,Older People Commissioning,Social Care - Residential Care,15/07/2015,3472468,-512.87,THE LODGE 
Adults Services,Adult Social Care,Service Strategy,Disability and Health M&A,Training Expenses - Staff External Training (UK Based),15/07/2015,3473270,"1,350.00",Local Government Association 
Adults Services,Public Health,Children 519 Public Health Programmes,Public Health Team 1,Educational/Training Supplies - Resources,15/07/2015,3473677,"6,435.24",Alanic Engineering t/a CTS Dental Supplies 
Adults Services,Public Health,Smoking and Tobacco,Public Health Team - 2,Third Party Payments - Other Establishments,15/07/2015,3474136,"26,251.00",Guy's & St Thomas' NHS Foundation Trust 
Adults Services,Education Services,Services to Young People and Other Community Learners,YCL Small Grants,Third Party Payments - Voluntary Associations,15/07/2015,3474408,"1,111.11",DA'WATUL ISLAM UK & EIRE 
Adults Services,Adult Social Care,Older People (Aged 65 or over) including Older Mental Ill,Learning Dis Commissioning,Social Care - Residential Care,15/07/2015,3474886,"13,691.41",The National Star College 
Adults Services,Adult Social Care,Older People (Aged 65 or over) including Older Mental Ill,Learning Dis Commissioning,Social Care - Learning Disability Development Fund,15/07/2015,3474887,"30,253.25",THE MAP SQUAD 
Adults Services,Adult Social Care,Older People (Aged 65 or over) including Older Mental Ill,Physical Dis Commissioning,Social Care - Homecare,15/07/2015,3474888,"2,082.50",AQUAFLO CARE LTD 
Adults Services,Adult Social Care,Older People (Aged 65 or over) including Older Mental Ill,Mental Health Commissioning,Social Care - Supported Accommodation,15/07/2015,3474889,"1,928.57",HAROLD LODGE 
Adults Services,Adult Social Care,Older People (Aged 65 or over) including Older Mental Ill,Older People Commissioning,Social Care - Residential Care,15/07/2015,3474897,"3,300.00",St Georges Nursing Home 
Adults Services,Adult Social Care,Older People (Aged 65 or over) including Older Mental Ill,Learning Dis Commissioning,Social Care - Personal Budgets - Non-Trad Service,15/07/2015,3474916,698.4,MEARS CARE LTD 
Adults Services,Adult Social Care,Older People (Aged 65 or over) including Older Mental Ill,Learning Dis Commissioning,Social Care - Personal Budgets - Non-Trad Service,15/07/2015,3474917,"1,743.33",MEARS CARE LTD 
Adults Services,Adult Social Care,Older People (Aged 65 or over) including Older Mental Ill,Learning Dis Commissioning,Social Care - Homecare,15/07/2015,3474923,"2,599.80",MEARS CARE LTD 
Adults Services,Adult Social Care,Older People (Aged 65 or over) including Older Mental Ill,Learning Dis Commissioning,Social Care - Personal Budgets - Non-Trad Service,15/07/2015,3474927,698.4,MEARS CARE LTD 
Adults Services,Adult Social Care,Older People (Aged 65 or over) including Older Mental Ill,Learning Dis Commissioning,Social Care - Personal Budgets - Non-Trad Service,15/07/2015,3474928,"1,743.33",MEARS CARE LTD 
Adults Services,Adult Social Care,Older People (Aged 65 or over) including Older Mental Ill,Learning Dis Commissioning,Social Care - Homecare,15/07/2015,3474929,"2,599.80",MEARS CARE LTD 
Adults Services,Adult Social Care,Older People (Aged 65 or over) including Older Mental Ill,Learning Dis Commissioning,Social Care - Personal Budgets - Non-Trad Service,15/07/2015,3474934,698.4,MEARS CARE LTD 
Adults Services,Adult Social Care,Older People (Aged 65 or over) including Older Mental Ill,Learning Dis Commissioning,Social Care - Personal Budgets - Non-Trad Service,15/07/2015,3474935,"1,743.33",MEARS CARE LTD 
Adults Services,Adult Social Care,Older People (Aged 65 or over) including Older Mental Ill,Learning Dis Commissioning,Social Care - Homecare,15/07/2015,3474937,"2,590.20",MEARS CARE LTD 
Adults Services,Adult Social Care,Older People (Aged 65 or over) including Older Mental Ill,Learning Dis Commissioning,Social Care - Personal Budgets - Non-Trad Service,15/07/2015,3474940,"1,377.00",BANGLADESHI PARENTS & CARERS ASSOCIATION 
Adults Services,Adult Social Care,Older People (Aged 65 or over) including Older Mental Ill,Older People Commissioning,Social Care - Residential Care,15/07/2015,3474941,"2,764.29",QUANTUM CARE LTD 
Adults Services,Adult Social Care,Older People (Aged 65 or over) including Older Mental Ill,Mental Health Commissioning,Social Care - Prevention & Support,15/07/2015,3474942,"1,750.00",OLD FRIEND HOTEL 
Adults Services,Adult Social Care,Older People (Aged 65 or over) including Older Mental Ill,Learning Dis Commissioning,Social Care - Personal Budgets - Non-Trad Service,15/07/2015,3474943,"2,464.00",BANGLADESHI PARENTS & CARERS ASSOCIATION 
Adults Services,Adult Social Care,Older People (Aged 65 or over) including Older Mental Ill,Learning Dis Commissioning,Social Care - Personal Budgets - Non-Trad Service,15/07/2015,3474944,"1,514.70",BANGLADESHI PARENTS & CARERS ASSOCIATION 
Adults Services,Adult Social Care,Older People (Aged 65 or over) including Older Mental Ill,Learning Dis Commissioning,Social Care - Personal Budgets - Non-Trad Service,15/07/2015,3474948,"2,352.00",BANGLADESHI PARENTS & CARERS ASSOCIATION 
Adults Services,Adult Social Care,Older People (Aged 65 or over) including Older Mental Ill,Learning Dis Commissioning,Social Care - Personal Budgets - Non-Trad Service,15/07/2015,3474949,"1,695.00",BANGLADESHI PARENTS & CARERS ASSOCIATION 
Adults Services,Adult Social Care,Older People (Aged 65 or over) including Older Mental Ill,Learning Dis Commissioning,Social Care - Day Care,15/07/2015,3474950,"2,352.00",BANGLADESHI PARENTS & CARERS ASSOCIATION 
Adults Services,Adult Social Care,Older People (Aged 65 or over) including Older Mental Ill,Learning Dis Commissioning,Social Care - Day Care,15/07/2015,3474951,"1,724.10",BANGLADESHI PARENTS & CARERS ASSOCIATION 
Adults Services,Adult Social Care,Older People (Aged 65 or over) including Older Mental Ill,Physical Dis Commissioning,Social Care - Personal Budgets - Cash,15/07/2015,3474994,691.67,DAVID HOWARD LTD CLIENT ACCOUNT 
Adults Services,Adult Social Care,Older People (Aged 65 or over) including Older Mental Ill,Learning Dis Commissioning,Social Care - Residential Care,15/07/2015,3475001,"13,766.61",MENCAP 
Adults Services,Adult Social Care,Older People (Aged 65 or over) including Older Mental Ill,Physical Dis Commissioning,Social Care - Personal Budgets - Cash,15/07/2015,3475020,"14,195.28",D D PAYROLL SERVICES 
Adults Services,Adult Social Care,Older People (Aged 65 or over) including Older Mental Ill,Mental Health Commissioning,Social Care - Residential Care,15/07/2015,3475024,"1,142.86",CARMEN LODGE 
Adults Services,Adult Social Care,Older People (Aged 65 or over) including Older Mental Ill,Mental Health Commissioning,Social Care - Residential Care,15/07/2015,3475025,"43,607.15",ST MICHAELS LODGE T/A SHAKTHI HEALTHCARE LIMITED 
Adults Services,Adult Social Care,Older People (Aged 65 or over) including Older Mental Ill,Learning Dis Commissioning,Social Care - Homecare,15/07/2015,3475049,"1,736.18",LONDON COMMUNITY HOMECARE LTD 
Adults Services,Adult Social Care,Older People (Aged 65 or over) including Older Mental Ill,Older People Commissioning,Social Care - Homecare,15/07/2015,3475060,"1,174.64",LONDON COMMUNITY HOMECARE LTD 
Adults Services,Adult Social Care,Older People (Aged 65 or over) including Older Mental Ill,Older People Commissioning,Social Care - Homecare,15/07/2015,3475061,961.99,LONDON COMMUNITY HOMECARE LTD 
Adults Services,Adult Social Care,Older People (Aged 65 or over) including Older Mental Ill,Physical Dis Commissioning,Social Care - Homecare,15/07/2015,3475062,856,LONDON COMMUNITY HOMECARE LTD 
Adults Services,Adult Social Care,Older People (Aged 65 or over) including Older Mental Ill,Older People Commissioning,Social Care - Homecare,15/07/2015,3475067,625.12,LONDON COMMUNITY HOMECARE LTD 
Adults Services,Adult Social Care,Older People (Aged 65 or over) including Older Mental Ill,Older People Commissioning,Social Care - Homecare,15/07/2015,3475068,739.94,LONDON COMMUNITY HOMECARE LTD 
Adults Services,Adult Social Care,Older People (Aged 65 or over) including Older Mental Ill,Physical Dis Commissioning,Social Care - Homecare,15/07/2015,3475069,"1,247.68",LONDON COMMUNITY HOMECARE LTD 
Adults Services,Adult Social Care,Older People (Aged 65 or over) including Older Mental Ill,Older People Commissioning,Social Care - Homecare,15/07/2015,3475070,799.2,LONDON COMMUNITY HOMECARE LTD 
Adults Services,Adult Social Care,Older People (Aged 65 or over) including Older Mental Ill,Older People Commissioning,Social Care - Homecare,15/07/2015,3475075,"2,104.90",LONDON COMMUNITY HOMECARE LTD 
Adults Services,Adult Social Care,Older People (Aged 65 or over) including Older Mental Ill,Older People Commissioning,Social Care - Personal Budgets - Non-Trad Service,15/07/2015,3475075,892.1,LONDON COMMUNITY HOMECARE LTD 
Adults Services,Adult Social Care,Older People (Aged 65 or over) including Older Mental Ill,Physical Dis Commissioning,Social Care - Personal Budgets - Non-Trad Service,15/07/2015,3475077,699.44,LONDON COMMUNITY HOMECARE LTD 
Adults Services,Adult Social Care,Older People (Aged 65 or over) including Older Mental Ill,Older People Commissioning,Social Care - Homecare,15/07/2015,3475080,519.82,LONDON COMMUNITY HOMECARE LTD 
Adults Services,Adult Social Care,Older People (Aged 65 or over) including Older Mental Ill,Older People Commissioning,Social Care - Homecare,15/07/2015,3475083,961.41,LONDON COMMUNITY HOMECARE LTD 
Adults Services,Adult Social Care,Older People (Aged 65 or over) including Older Mental Ill,Older People Commissioning,Social Care - Homecare,15/07/2015,3475090,761.64,LONDON COMMUNITY HOMECARE LTD 
Adults Services,Adult Social Care,Older People (Aged 65 or over) including Older Mental Ill,Older People Commissioning,Social Care - Homecare,15/07/2015,3475091,999,LONDON COMMUNITY HOMECARE LTD 
Adults Services,Adult Social Care,Older People (Aged 65 or over) including Older Mental Ill,Learning Dis Commissioning,Social Care - Homecare,15/07/2015,3475093,834.3,LONDON COMMUNITY HOMECARE LTD 
Adults Services,Adult Social Care,Older People (Aged 65 or over) including Older Mental Ill,Older People Commissioning,Social Care - Homecare,15/07/2015,3475099,899.24,LONDON COMMUNITY HOMECARE LTD 
Adults Services,Adult Social Care,Older People (Aged 65 or over) including Older Mental Ill,Older People Commissioning,Social Care - Homecare,15/07/2015,3475120,514.4,FOCUS CARE LINK LTD 
Adults Services,Adult Social Care,Older People (Aged 65 or over) including Older Mental Ill,Physical Dis Commissioning,Social Care - Homecare,15/07/2015,3475122,528.89,FOCUS CARE LINK LTD 
Adults Services,Adult Social Care,Older People (Aged 65 or over) including Older Mental Ill,Physical Dis Commissioning,Social Care - Homecare,15/07/2015,3475128,"1,398.29",FOCUS CARE LINK LTD 
Adults Services,Adult Social Care,Older People (Aged 65 or over) including Older Mental Ill,Older People Commissioning,Social Care - Homecare,15/07/2015,3475129,536.13,FOCUS CARE LINK LTD 
Adults Services,Adult Social Care,Older People (Aged 65 or over) including Older Mental Ill,Mental Health Commissioning,Social Care - Day Care,15/07/2015,3475135,500.4,St Hilda's East Community Centre 
Adults Services,Adult Social Care,Older People (Aged 65 or over) including Older Mental Ill,Mental Health Commissioning,Social Care - Day Care,15/07/2015,3475139,"1,130.58",St Hilda's East Community Centre 
Adults Services,Adult Social Care,Older People (Aged 65 or over) including Older Mental Ill,Mental Health Commissioning,Social Care - Day Care,15/07/2015,3475141,706.83,St Hilda's East Community Centre 
Adults Services,Adult Social Care,Older People (Aged 65 or over) including Older Mental Ill,Physical Dis Commissioning,Social Care - Day Care,15/07/2015,3475142,742.84,St Hilda's East Community Centre 
Adults Services,Adult Social Care,Older People (Aged 65 or over) including Older Mental Ill,Mental Health Commissioning,Social Care - Day Care,15/07/2015,3475143,565.29,St Hilda's East Community Centre 
Adults Services,Adult Social Care,Older People (Aged 65 or over) including Older Mental Ill,Mental Health Commissioning,Social Care - Day Care,15/07/2015,3475147,719.46,St Hilda's East Community Centre 
Adults Services,Adult Social Care,Older People (Aged 65 or over) including Older Mental Ill,Older People Commissioning,Social Care - Homecare,15/07/2015,3475195,"1,941.80",COMMUNITY CARE CONSORTIUM 
Adults Services,Adult Social Care,Older People (Aged 65 or over) including Older Mental Ill,Older People Commissioning,Social Care - Personal Budgets - Non-Trad Service,15/07/2015,3475196,"1,591.40",COMMUNITY CARE CONSORTIUM 
Adults Services,Adult Social Care,Older People (Aged 65 or over) including Older Mental Ill,Older People Commissioning,Social Care - Homecare,15/07/2015,3475197,"1,581.18",COMMUNITY CARE CONSORTIUM 
Adults Services,Adult Social Care,Older People (Aged 65 or over) including Older Mental Ill,Learning Dis Commissioning,Social Care - Homecare,15/07/2015,3475198,"1,343.20",COMMUNITY CARE CONSORTIUM 
Adults Services,Adult Social Care,Older People (Aged 65 or over) including Older Mental Ill,Mental Health Commissioning,Social Care - Personal Budgets - Non-Trad Service,15/07/2015,3475199,"1,270.20",COMMUNITY CARE CONSORTIUM 
Adults Services,Adult Social Care,Older People (Aged 65 or over) including Older Mental Ill,Learning Dis Commissioning,Social Care - Homecare,15/07/2015,3475200,"1,073.10",COMMUNITY CARE CONSORTIUM 
Adults Services,Adult Social Care,Older People (Aged 65 or over) including Older Mental Ill,Older People Commissioning,Social Care - Homecare,15/07/2015,3475201,938.05,COMMUNITY CARE CONSORTIUM 
Adults Services,Adult Social Care,Older People (Aged 65 or over) including Older Mental Ill,Older People Commissioning,Social Care - Homecare,15/07/2015,3475202,846.8,COMMUNITY CARE CONSORTIUM 
Adults Services,Adult Social Care,Older People (Aged 65 or over) including Older Mental Ill,Older People Commissioning,Social Care - Homecare,15/07/2015,3475203,808.48,COMMUNITY CARE CONSORTIUM 
Adults Services,Adult Social Care,Older People (Aged 65 or over) including Older Mental Ill,Physical Dis Commissioning,Social Care - Homecare,15/07/2015,3475204,764.68,COMMUNITY CARE CONSORTIUM 
Adults Services,Adult Social Care,Older People (Aged 65 or over) including Older Mental Ill,Learning Dis Commissioning,Social Care - Homecare,15/07/2015,3475205,730,COMMUNITY CARE CONSORTIUM 
Adults Services,Adult Social Care,Older People (Aged 65 or over) including Older Mental Ill,Learning Dis Commissioning,Social Care - Homecare,15/07/2015,3475206,635.1,COMMUNITY CARE CONSORTIUM 
Adults Services,Adult Social Care,Older People (Aged 65 or over) including Older Mental Ill,Learning Dis Commissioning,Social Care - Personal Budgets - Non-Trad Service,15/07/2015,3475207,635.1,COMMUNITY CARE CONSORTIUM 
Adults Services,Adult Social Care,Older People (Aged 65 or over) including Older Mental Ill,Learning Dis Commissioning,Social Care - Homecare,15/07/2015,3475208,638.75,COMMUNITY CARE CONSORTIUM 
Adults Services,Adult Social Care,Older People (Aged 65 or over) including Older Mental Ill,Physical Dis Commissioning,Social Care - Homecare,15/07/2015,3475209,628.79,COMMUNITY CARE CONSORTIUM 
Adults Services,Adult Social Care,Older People (Aged 65 or over) including Older Mental Ill,Learning Dis Commissioning,Social Care - Homecare,15/07/2015,3475210,605.9,COMMUNITY CARE CONSORTIUM 
Adults Services,Adult Social Care,Older People (Aged 65 or over) including Older Mental Ill,Learning Dis Commissioning,Social Care - Homecare,15/07/2015,3475211,613.2,COMMUNITY CARE CONSORTIUM 
Adults Services,Adult Social Care,Older People (Aged 65 or over) including Older Mental Ill,Physical Dis Commissioning,Social Care - Homecare,15/07/2015,3475212,600.43,COMMUNITY CARE CONSORTIUM 
Adults Services,Adult Social Care,Older People (Aged 65 or over) including Older Mental Ill,Older People Commissioning,Social Care - Personal Budgets - Non-Trad Service,15/07/2015,3475213,521.95,COMMUNITY CARE CONSORTIUM 
Adults Services,Adult Social Care,Older People (Aged 65 or over) including Older Mental Ill,Older People Commissioning,Social Care - Homecare,15/07/2015,3475215,540.2,COMMUNITY CARE CONSORTIUM 
Adults Services,Adult Social Care,Older People (Aged 65 or over) including Older Mental Ill,Learning Dis Commissioning,Social Care - Homecare,15/07/2015,3475216,540.2,COMMUNITY CARE CONSORTIUM 
Adults Services,Adult Social Care,Older People (Aged 65 or over) including Older Mental Ill,Learning Dis Commissioning,Social Care - Homecare,15/07/2015,3475217,511,COMMUNITY CARE CONSORTIUM 
Adults Services,Adult Social Care,Older People (Aged 65 or over) including Older Mental Ill,Mental Health Commissioning,Social Care - Homecare,15/07/2015,3475279,517.58,MiHOMECARE LIMITED 
Adults Services,Adult Social Care,Older People (Aged 65 or over) including Older Mental Ill,Physical Dis Commissioning,Social Care - Personal Budgets - Non-Trad Service,15/07/2015,3475280,"4,705.44",MiHOMECARE LIMITED 
Adults Services,Adult Social Care,Older People (Aged 65 or over) including Older Mental Ill,Learning Dis Commissioning,Social Care - Homecare,15/07/2015,3475291,751.54,MiHOMECARE LIMITED 
Adults Services,Adult Social Care,Older People (Aged 65 or over) including Older Mental Ill,Older People Commissioning,Social Care - Homecare,15/07/2015,3475295,815.55,MiHOMECARE LIMITED 
Adults Services,Adult Social Care,Older People (Aged 65 or over) including Older Mental Ill,Older People Commissioning,Social Care - Homecare,15/07/2015,3475301,"1,304.70",MiHOMECARE LIMITED 
Adults Services,Adult Social Care,Older People (Aged 65 or over) including Older Mental Ill,Older People Commissioning,Social Care - Homecare,15/07/2015,3475302,517.63,MiHOMECARE LIMITED 
Adults Services,Adult Social Care,Older People (Aged 65 or over) including Older Mental Ill,Older People Commissioning,Social Care - Homecare,15/07/2015,3475321,507.5,CIRCLE SUPPORT CONSORTIUM 
Adults Services,Adult Social Care,Older People (Aged 65 or over) including Older Mental Ill,Older People Commissioning,Social Care - Homecare,15/07/2015,3475323,565.5,CIRCLE SUPPORT CONSORTIUM 
Adults Services,Adult Social Care,Older People (Aged 65 or over) including Older Mental Ill,Older People Commissioning,Social Care - Homecare,15/07/2015,3475327,"1,015.00",CIRCLE SUPPORT CONSORTIUM 
Adults Services,Adult Social Care,Older People (Aged 65 or over) including Older Mental Ill,Physical Dis Commissioning,Social Care - Homecare,15/07/2015,3475332,812,CIRCLE SUPPORT CONSORTIUM 
Adults Services,Adult Social Care,Older People (Aged 65 or over) including Older Mental Ill,Older People Commissioning,Social Care - Homecare,15/07/2015,3475334,507.5,CIRCLE SUPPORT CONSORTIUM 
Adults Services,Adult Social Care,Older People (Aged 65 or over) including Older Mental Ill,Older People Commissioning,Social Care - Homecare,15/07/2015,3475336,"1,624.00",CIRCLE SUPPORT CONSORTIUM 
Adults Services,Adult Social Care,Older People (Aged 65 or over) including Older Mental Ill,Older People Commissioning,Social Care - Homecare,15/07/2015,3475366,565.5,CIRCLE SUPPORT CONSORTIUM 
Adults Services,Adult Social Care,Older People (Aged 65 or over) including Older Mental Ill,Older People Commissioning,Social Care - Homecare,15/07/2015,3475368,928,CIRCLE SUPPORT CONSORTIUM 
Adults Services,Adult Social Care,Older People (Aged 65 or over) including Older Mental Ill,Physical Dis Commissioning,Social Care - Homecare,15/07/2015,3475372,826.5,CIRCLE SUPPORT CONSORTIUM 
Adults Services,Adult Social Care,Older People (Aged 65 or over) including Older Mental Ill,Older People Commissioning,Social Care - Homecare,15/07/2015,3475373,507.5,CIRCLE SUPPORT CONSORTIUM 
Adults Services,Adult Social Care,Older People (Aged 65 or over) including Older Mental Ill,Older People Commissioning,Social Care - Homecare,15/07/2015,3475375,"1,624.00",CIRCLE SUPPORT CONSORTIUM 
Adults Services,Adult Social Care,Older People (Aged 65 or over) including Older Mental Ill,Older People Commissioning,Social Care - Personal Budgets - Non-Trad Service,15/07/2015,3475398,"1,400.00",THE LODGE 
Adults Services,Adult Social Care,Older People (Aged 65 or over) including Older Mental Ill,Strategic Commissioning,Social Care - MSG Prevention Health & Wellbeing,15/07/2015,3475399,"1,173.28",COMMUNITY OF REFUGEES FROM VIETNAM - 
Adults Services,Adult Social Care,Older People (Aged 65 or over) including Older Mental Ill,Strategic Commissioning,Social Care - MSG Prevention Health & Wellbeing,15/07/2015,3475400,"1,875.00",ST PETERS BENGALI ASSOCIATION 
Adults Services,Adult Social Care,Older People (Aged 65 or over) including Older Mental Ill,Strategic Commissioning,Social Care - MSG Prevention Health & Wellbeing,15/07/2015,3475401,"1,875.00",Toynbee Hall 
Adults Services,Adult Social Care,Older People (Aged 65 or over) including Older Mental Ill,Strategic Commissioning,Social Care - MSG Prevention Health & Wellbeing,15/07/2015,3475402,"1,875.00",WAPPING BANGLADESH ASSOCIATION 
Adults Services,Adult Social Care,Older People (Aged 65 or over) including Older Mental Ill,Strategic Commissioning,Social Care - MSG Prevention Health & Wellbeing,15/07/2015,3475403,"2,043.96",Womens Health & Family Services 
Adults Services,Adult Social Care,Older People (Aged 65 or over) including Older Mental Ill,Strategic Commissioning,Social Care - MSG Lunch Clubs,15/07/2015,3475404,"5,925.92",Age UK Tower Hamlets 
Adults Services,Adult Social Care,Older People (Aged 65 or over) including Older Mental Ill,Strategic Commissioning,Social Care - MSG Lunch Clubs,15/07/2015,3475405,"2,592.59",Children Education Group 
Adults Services,Adult Social Care,Older People (Aged 65 or over) including Older Mental Ill,Strategic Commissioning,Social Care - MSG Lunch Clubs,15/07/2015,3475406,"2,275.98",COMMUNITY OF REFUGEES FROM VIETNAM - 
Adults Services,Adult Social Care,Older People (Aged 65 or over) including Older Mental Ill,Strategic Commissioning,Social Care - MSG Prevention Health & Wellbeing,15/07/2015,3475406,-720.42,COMMUNITY OF REFUGEES FROM VIETNAM - 
Adults Services,Adult Social Care,Older People (Aged 65 or over) including Older Mental Ill,Strategic Commissioning,Social Care - MSG Lunch Clubs,15/07/2015,3475407,"2,666.67",Dorset Community Association 
Adults Services,Adult Social Care,Older People (Aged 65 or over) including Older Mental Ill,Strategic Commissioning,Social Care - MSG Lunch Clubs,15/07/2015,3475408,"2,800.87",NEIGHBOURS IN POPLAR 
Adults Services,Adult Social Care,Older People (Aged 65 or over) including Older Mental Ill,Strategic Commissioning,Social Care - MSG Prevention Health & Wellbeing,15/07/2015,3475408,-925.87,NEIGHBOURS IN POPLAR 
Adults Services,Adult Social Care,Older People (Aged 65 or over) including Older Mental Ill,Strategic Commissioning,Social Care - MSG Lunch Clubs,15/07/2015,3475409,"3,555.56",St Hilda's East Community Centre 
Adults Services,Adult Social Care,Older People (Aged 65 or over) including Older Mental Ill,Strategic Commissioning,Social Care - MSG Lunch Clubs,15/07/2015,3475410,"4,268.80",ST PETERS BENGALI ASSOCIATION 
Adults Services,Adult Social Care,Older People (Aged 65 or over) including Older Mental Ill,Strategic Commissioning,Social Care - MSG Prevention Health & Wellbeing,15/07/2015,3475410,"-1,453.99",ST PETERS BENGALI ASSOCIATION 
Adults Services,Adult Social Care,Older People (Aged 65 or over) including Older Mental Ill,Strategic Commissioning,Social Care - MSG Lunch Clubs,15/07/2015,3475411,"3,369.96",WAPPING BANGLADESH ASSOCIATION 
Adults Services,Adult Social Care,Older People (Aged 65 or over) including Older Mental Ill,Strategic Commissioning,Social Care - MSG Lunch Clubs,15/07/2015,3475411,683.43,WAPPING BANGLADESH ASSOCIATION 
Adults Services,Adult Social Care,Older People (Aged 65 or over) including Older Mental Ill,Strategic Commissioning,Social Care - MSG Prevention Health & Wellbeing,15/07/2015,3475411,"-1,831.17",WAPPING BANGLADESH ASSOCIATION 
Adults Services,Adult Social Care,Older People (Aged 65 or over) including Older Mental Ill,Strategic Commissioning,Social Care - MSG Lunch Clubs,15/07/2015,3475412,888.89,Womens Health & Family Services 
Adults Services,Adult Social Care,Older People (Aged 65 or over) including Older Mental Ill,Strategic Commissioning,Social Care - MSG Prevention Health & Wellbeing,15/07/2015,3475413,"8,000.00",COMMUNITY OF REFUGEES FROM VIETNAM - 
Adults Services,Adult Social Care,Older People (Aged 65 or over) including Older Mental Ill,Older People Commissioning,Social Care - Nursing Care,15/07/2015,3475414,"2,270.92",FOUR SEASONS HEALTH CARE 
Adults Services,Adult Social Care,Older People (Aged 65 or over) including Older Mental Ill,Older People Commissioning,Client Contributions for Social Care - Nursing Care,15/07/2015,3475414,-541.29,FOUR SEASONS HEALTH CARE 
Adults Services,Adult Social Care,Older People (Aged 65 or over) including Older Mental Ill,Learning Dis Commissioning,Social Care - Residential Care,15/07/2015,3475416,"5,040.00",ROSELOCK LTD 
Adults Services,Adult Social Care,Older People (Aged 65 or over) including Older Mental Ill,Learning Dis Commissioning,Social Care - Residential Care,15/07/2015,3475428,"4,242.30",Norwood Ravenswood Services LTD 
Adults Services,Adult Social Care,Older People (Aged 65 or over) including Older Mental Ill,Learning Dis Commissioning,Client Contributions for Social Care - Residential Care,15/07/2015,3475428,-548.92,Norwood Ravenswood Services LTD 
Adults Services,Adult Social Care,Older People (Aged 65 or over) including Older Mental Ill,Physical Dis Commissioning,Social Care - Homecare,15/07/2015,3475436,727.26,SANCTUARY HOME CARE LIMITED 
Adults Services,Adult Social Care,Older People (Aged 65 or over) including Older Mental Ill,Older People Commissioning,Social Care - Homecare,15/07/2015,3475438,940.5,Soma Healthcare Ltd 
Adults Services,Adult Social Care,Older People (Aged 65 or over) including Older Mental Ill,Older People Commissioning,Social Care - Homecare,15/07/2015,3475439,"1,474.88",Soma Healthcare Ltd 
Adults Services,Adult Social Care,Older People (Aged 65 or over) including Older Mental Ill,Older People Commissioning,Social Care - Homecare,15/07/2015,3475441,"1,759.40",Soma Healthcare Ltd 
Adults Services,Adult Social Care,Older People (Aged 65 or over) including Older Mental Ill,Older People Commissioning,Social Care - Homecare,15/07/2015,3475444,"1,645.88",Soma Healthcare Ltd 
Adults Services,Adult Social Care,Older People (Aged 65 or over) including Older Mental Ill,Older People Commissioning,Social Care - Homecare,15/07/2015,3475447,"1,624.26",Soma Healthcare Ltd 
Adults Services,Adult Social Care,Older People (Aged 65 or over) including Older Mental Ill,Older People Commissioning,Social Care - Homecare,15/07/2015,3475449,"1,567.50",Soma Healthcare Ltd 
Adults Services,Adult Social Care,Older People (Aged 65 or over) including Older Mental Ill,Older People Commissioning,Social Care - Homecare,15/07/2015,3475452,"1,674.13",Soma Healthcare Ltd 
Adults Services,Adult Social Care,Older People (Aged 65 or over) including Older Mental Ill,Older People Commissioning,Social Care - Homecare,15/07/2015,3475455,553.05,Soma Healthcare Ltd 
Adults Services,Adult Social Care,Older People (Aged 65 or over) including Older Mental Ill,Older People Commissioning,Social Care - Homecare,15/07/2015,3475456,521.35,Soma Healthcare Ltd 
Adults Services,Adult Social Care,Older People (Aged 65 or over) including Older Mental Ill,Older People Commissioning,Social Care - Homecare,15/07/2015,3475491,"1,332.38",Soma Healthcare Ltd 
Adults Services,Adult Social Care,Older People (Aged 65 or over) including Older Mental Ill,Learning Dis Commissioning,Social Care - Homecare,15/07/2015,3475492,798,Soma Healthcare Ltd 
Adults Services,Adult Social Care,Older People (Aged 65 or over) including Older Mental Ill,Older People Commissioning,Social Care - Homecare,15/07/2015,3475494,598.5,Soma Healthcare Ltd 
Adults Services,Adult Social Care,Older People (Aged 65 or over) including Older Mental Ill,Physical Dis Commissioning,Social Care - Homecare,15/07/2015,3475497,612.75,Soma Healthcare Ltd 
Adults Services,Adult Social Care,Older People (Aged 65 or over) including Older Mental Ill,Older People Commissioning,Social Care - Homecare,15/07/2015,3475500,741,Soma Healthcare Ltd 
Adults Services,Adult Social Care,Older People (Aged 65 or over) including Older Mental Ill,Older People Commissioning,Social Care - Personal Budgets - Non-Trad Service,15/07/2015,3475506,869.65,Soma Healthcare Ltd 
Adults Services,Adult Social Care,Older People (Aged 65 or over) including Older Mental Ill,Physical Dis Commissioning,Social Care - Homecare,15/07/2015,3475519,"1,995.00",Soma Healthcare Ltd 
Adults Services,Adult Social Care,Older People (Aged 65 or over) including Older Mental Ill,Older People Commissioning,Social Care - Personal Budgets - Non-Trad Service,15/07/2015,3475522,559.31,Soma Healthcare Ltd 
Adults Services,Adult Social Care,Older People (Aged 65 or over) including Older Mental Ill,Older People Commissioning,Social Care - Homecare,15/07/2015,3475526,"1,645.88",Soma Healthcare Ltd 
Adults Services,Adult Social Care,Older People (Aged 65 or over) including Older Mental Ill,Older People Commissioning,Social Care - Homecare,15/07/2015,3475529,"1,026.00",Soma Healthcare Ltd 
Adults Services,Adult Social Care,Older People (Aged 65 or over) including Older Mental Ill,Older People Commissioning,Social Care - Homecare,15/07/2015,3475536,555.75,Soma Healthcare Ltd 
Adults Services,Adult Social Care,Older People (Aged 65 or over) including Older Mental Ill,Older People Commissioning,Social Care - Homecare,15/07/2015,3475540,698.25,Soma Healthcare Ltd 
Adults Services,Adult Social Care,Older People (Aged 65 or over) including Older Mental Ill,Older People Commissioning,Social Care - Homecare,15/07/2015,3475541,527.25,Soma Healthcare Ltd 
Adults Services,Adult Social Care,Older People (Aged 65 or over) including Older Mental Ill,Older People Commissioning,Social Care - Homecare,15/07/2015,3475543,505.88,Soma Healthcare Ltd 
Adults Services,Adult Social Care,Older People (Aged 65 or over) including Older Mental Ill,Older People Commissioning,Social Care - Homecare,15/07/2015,3475545,912,Soma Healthcare Ltd 
Adults Services,Adult Social Care,Older People (Aged 65 or over) including Older Mental Ill,Physical Dis Commissioning,Social Care - Homecare,15/07/2015,3475547,"1,624.50",Soma Healthcare Ltd 
Adults Services,Adult Social Care,Older People (Aged 65 or over) including Older Mental Ill,Older People Commissioning,Social Care - Homecare,15/07/2015,3475549,"1,346.63",Soma Healthcare Ltd 
Adults Services,Adult Social Care,Older People (Aged 65 or over) including Older Mental Ill,Older People Commissioning,Social Care - Homecare,15/07/2015,3475550,605.63,Soma Healthcare Ltd 
Adults Services,Adult Social Care,Older People (Aged 65 or over) including Older Mental Ill,Older People Commissioning,Social Care - Homecare,15/07/2015,3475554,"1,364.44",Soma Healthcare Ltd 
Adults Services,Adult Social Care,Older People (Aged 65 or over) including Older Mental Ill,Older People Commissioning,Social Care - Homecare,15/07/2015,3475560,541.5,Soma Healthcare Ltd 
Adults Services,Adult Social Care,Older People (Aged 65 or over) including Older Mental Ill,Older People Commissioning,Social Care - Homecare,15/07/2015,3475572,513,Soma Healthcare Ltd 
Adults Services,Adult Social Care,Older People (Aged 65 or over) including Older Mental Ill,Older People Commissioning,Social Care - Homecare,15/07/2015,3475575,527.25,Soma Healthcare Ltd 
Adults Services,Adult Social Care,Older People (Aged 65 or over) including Older Mental Ill,Mental Health Commissioning,Social Care - Personal Budgets - Non-Trad Service,15/07/2015,3475591,541.5,Soma Healthcare Ltd 
Adults Services,No Service Specified,No Division Specified,Community Equipment Store,Stationery,17/07/2015,3461339,508,Office Depot (Catalogue) 
Adults Services,Adult Social Care,Older People (Aged 65 or over) including Older Mental Ill,Older People Commissioning,Social Care - Residential Care,17/07/2015,3463064,"3,633.78",CARE UK COMMUNITY PARTNERSHIPS LTD 
Adults Services,Adult Social Care,Older People (Aged 65 or over) including Older Mental Ill,Older People Commissioning,Social Care - Residential Care,17/07/2015,3463064,-531.21,CARE UK COMMUNITY PARTNERSHIPS LTD 
Adults Services,Adult Social Care,Older People (Aged 65 or over) including Older Mental Ill,Learning Dis Commissioning,Social Care - Homecare,17/07/2015,3463371,765.6,Outward Housing 
Adults Services,Adult Social Care,Older People (Aged 65 or over) including Older Mental Ill,Learning Dis Commissioning,Social Care - Homecare,17/07/2015,3463373,918.72,Outward Housing 
Adults Services,Adult Social Care,Older People (Aged 65 or over) including Older Mental Ill,Learning Dis Commissioning,Social Care - Homecare,17/07/2015,3463374,612.48,Outward Housing 
Adults Services,Adult Social Care,Older People (Aged 65 or over) including Older Mental Ill,Learning Dis Commissioning,Social Care - Homecare,17/07/2015,3463377,"1,033.56",Outward Housing 
Adults Services,Adult Social Care,Older People (Aged 65 or over) including Older Mental Ill,Learning Dis Commissioning,Social Care - Homecare,17/07/2015,3463378,612.48,Outward Housing 
Adults Services,Public Health,Miscellaneous Public Health Services,Public Health - Director,Third Party Payments - Other Local Authorities,17/07/2015,3464270,"22,000.00",London Borough of Haringey 
Adults Services,Adult Social Care,Other Adult Services,First Response Hospital Team,Computing - Purchase of Hardware,17/07/2015,3465802,537,VMS Network Cabling Ltd 
Adults Services,Adult Social Care,Older People (Aged 65 or over) including Older Mental Ill,Learning Dis Commissioning,Social Care - Residential Care,17/07/2015,3466919,"6,504.00",OVERLEY HALL SCHOOL LTD 
Adults Services,Adult Social Care,Older People (Aged 65 or over) including Older Mental Ill,Older People Commissioning,Social Care - Residential Care,17/07/2015,3467095,"3,757.20",Royal Institute for Deaf People 
Adults Services,Public Health,Children 519 Public Health Programmes,Public Health Team 1,Third Party Payments - Voluntary Associations,17/07/2015,3468475,"-80,162.00",Sustrans 
Adults Services,Public Health,Children 519 Public Health Programmes,Public Health Team 1,Third Party Payments - Voluntary Associations,17/07/2015,3471955,"80,162.00",Sustrans 
Adults Services,Adult Social Care,Older People (Aged 65 or over) including Older Mental Ill,Older People Commissioning,Social Care - Homecare,17/07/2015,3476070,"1,838.90",AQUAFLO CARE LTD 
Adults Services,Adult Social Care,Older People (Aged 65 or over) including Older Mental Ill,Older People Commissioning,Social Care - Homecare,17/07/2015,3476071,"1,831.80",AQUAFLO CARE LTD 
Adults Services,Adult Social Care,Older People (Aged 65 or over) including Older Mental Ill,Older People Commissioning,Social Care - Homecare,17/07/2015,3476072,"1,391.60",AQUAFLO CARE LTD 
Adults Services,Adult Social Care,Older People (Aged 65 or over) including Older Mental Ill,Physical Dis Commissioning,Social Care - Homecare,17/07/2015,3476073,738.4,AQUAFLO CARE LTD 
Adults Services,Adult Social Care,Older People (Aged 65 or over) including Older Mental Ill,Physical Dis Commissioning,Social Care - Homecare,17/07/2015,3476084,565.11,FOCUS CARE LINK LTD 
Adults Services,Adult Social Care,Older People (Aged 65 or over) including Older Mental Ill,Physical Dis Commissioning,Social Care - Homecare,17/07/2015,3476092,644.81,FOCUS CARE LINK LTD 
Adults Services,Adult Social Care,Older People (Aged 65 or over) including Older Mental Ill,Older People Commissioning,Social Care - Homecare,17/07/2015,3476093,608.58,FOCUS CARE LINK LTD 
Adults Services,Adult Social Care,Older People (Aged 65 or over) including Older Mental Ill,Physical Dis Commissioning,Social Care - Homecare,17/07/2015,3476094,782.46,FOCUS CARE LINK LTD 
Adults Services,Adult Social Care,Older People (Aged 65 or over) including Older Mental Ill,Older People Commissioning,Social Care - Homecare,17/07/2015,3476104,514.4,FOCUS CARE LINK LTD 
Adults Services,Adult Social Care,Older People (Aged 65 or over) including Older Mental Ill,Older People Commissioning,Social Care - Homecare,17/07/2015,3476123,680.4,Mantra Recruitment 
Adults Services,Adult Social Care,Older People (Aged 65 or over) including Older Mental Ill,Physical Dis Commissioning,Social Care - Homecare,17/07/2015,3476137,"1,362.06",FOCUS CARE LINK LTD 
Adults Services,Adult Social Care,Older People (Aged 65 or over) including Older Mental Ill,Learning Dis Commissioning,Social Care - Homecare,17/07/2015,3476142,"1,227.15",Mantra Recruitment 
Adults Services,Adult Social Care,Older People (Aged 65 or over) including Older Mental Ill,Older People Commissioning,Social Care - Homecare,17/07/2015,3476145,528.53,Mantra Recruitment 
Adults Services,Adult Social Care,Older People (Aged 65 or over) including Older Mental Ill,Older People Commissioning,Social Care - Homecare,17/07/2015,3476148,536.13,FOCUS CARE LINK LTD 
Adults Services,Adult Social Care,Older People (Aged 65 or over) including Older Mental Ill,Older People Commissioning,Social Care - Homecare,17/07/2015,3476150,613.58,Mantra Recruitment 
Adults Services,Adult Social Care,Older People (Aged 65 or over) including Older Mental Ill,Physical Dis Commissioning,Social Care - Homecare,17/07/2015,3476178,938.5,Mantra Recruitment 
Adults Services,Adult Social Care,Older People (Aged 65 or over) including Older Mental Ill,Older People Commissioning,Social Care - Homecare,17/07/2015,3476182,561.94,Mantra Recruitment 
Adults Services,Adult Social Care,Older People (Aged 65 or over) including Older Mental Ill,Older People Commissioning,Social Care - Homecare,17/07/2015,3476211,"4,082.40",Mantra Recruitment 
Adults Services,Adult Social Care,Older People (Aged 65 or over) including Older Mental Ill,Physical Dis Commissioning,Social Care - Homecare,17/07/2015,3476239,"3,090.06",ATHLONE CARE LTD 
Adults Services,Adult Social Care,Older People (Aged 65 or over) including Older Mental Ill,Physical Dis Commissioning,Social Care - Homecare,17/07/2015,3476242,"2,976.94",ATHLONE CARE LTD 
Adults Services,Adult Social Care,Older People (Aged 65 or over) including Older Mental Ill,Physical Dis Commissioning,Social Care - Homecare,17/07/2015,3476257,"2,934.06",ATHLONE CARE LTD 
Adults Services,Adult Social Care,Older People (Aged 65 or over) including Older Mental Ill,Physical Dis Commissioning,Social Care - Homecare,17/07/2015,3476258,"1,682.87",ATHLONE CARE LTD 
Adults Services,Adult Social Care,Older People (Aged 65 or over) including Older Mental Ill,Older People Commissioning,Social Care - Homecare,17/07/2015,3476270,519.26,ATHLONE CARE LTD 
Adults Services,Adult Social Care,Older People (Aged 65 or over) including Older Mental Ill,Mental Health Commissioning,Social Care - Day Care,17/07/2015,3476271,"1,430.00",ST MARYS SECRET GARDEN LTD 
Adults Services,Adult Social Care,Older People (Aged 65 or over) including Older Mental Ill,Physical Dis Commissioning,Social Care - Personal Budgets - Non-Trad Service,17/07/2015,3476278,513,LONDON COMMUNITY HOMECARE LTD 
Adults Services,Adult Social Care,Older People (Aged 65 or over) including Older Mental Ill,Learning Dis Commissioning,Social Care - Homecare,17/07/2015,3476283,"1,690.96",LONDON COMMUNITY HOMECARE LTD 
Adults Services,Adult Social Care,Older People (Aged 65 or over) including Older Mental Ill,Older People Commissioning,Social Care - Homecare,17/07/2015,3476297,"1,107.14",LONDON COMMUNITY HOMECARE LTD 
Adults Services,Adult Social Care,Older People (Aged 65 or over) including Older Mental Ill,Older People Commissioning,Social Care - Homecare,17/07/2015,3476298,931.57,LONDON COMMUNITY HOMECARE LTD 
Adults Services,Adult Social Care,Older People (Aged 65 or over) including Older Mental Ill,Physical Dis Commissioning,Social Care - Homecare,17/07/2015,3476299,796.6,LONDON COMMUNITY HOMECARE LTD 
Adults Services,Adult Social Care,Older People (Aged 65 or over) including Older Mental Ill,Older People Commissioning,Social Care - Homecare,17/07/2015,3476304,587.32,LONDON COMMUNITY HOMECARE LTD 
Adults Services,Adult Social Care,Older People (Aged 65 or over) including Older Mental Ill,Older People Commissioning,Social Care - Homecare,17/07/2015,3476305,702.14,LONDON COMMUNITY HOMECARE LTD 
Adults Services,Adult Social Care,Older People (Aged 65 or over) including Older Mental Ill,Physical Dis Commissioning,Social Care - Homecare,17/07/2015,3476306,"1,174.78",LONDON COMMUNITY HOMECARE LTD 
Adults Services,Adult Social Care,Older People (Aged 65 or over) including Older Mental Ill,Older People Commissioning,Social Care - Homecare,17/07/2015,3476307,756,LONDON COMMUNITY HOMECARE LTD 
Adults Services,Adult Social Care,Older People (Aged 65 or over) including Older Mental Ill,Older People Commissioning,Social Care - Homecare,17/07/2015,3476312,"2,004.75",LONDON COMMUNITY HOMECARE LTD 
Adults Services,Adult Social Care,Older People (Aged 65 or over) including Older Mental Ill,Older People Commissioning,Social Care - Personal Budgets - Non-Trad Service,17/07/2015,3476312,850.5,LONDON COMMUNITY HOMECARE LTD 
Adults Services,Adult Social Care,Older People (Aged 65 or over) including Older Mental Ill,Physical Dis Commissioning,Social Care - Personal Budgets - Non-Trad Service,17/07/2015,3476314,661.64,LONDON COMMUNITY HOMECARE LTD 
Adults Services,Adult Social Care,Older People (Aged 65 or over) including Older Mental Ill,Older People Commissioning,Social Care - Homecare,17/07/2015,3476317,"1,039.64",LONDON COMMUNITY HOMECARE LTD 
Adults Services,Adult Social Care,Older People (Aged 65 or over) including Older Mental Ill,Older People Commissioning,Social Care - Homecare,17/07/2015,3476320,894.58,LONDON COMMUNITY HOMECARE LTD 
Adults Services,Adult Social Care,Older People (Aged 65 or over) including Older Mental Ill,Older People Commissioning,Social Care - Homecare,17/07/2015,3476329,945,LONDON COMMUNITY HOMECARE LTD 
Adults Services,Adult Social Care,Older People (Aged 65 or over) including Older Mental Ill,Learning Dis Commissioning,Social Care - Homecare,17/07/2015,3476332,837,LONDON COMMUNITY HOMECARE LTD 
Adults Services,Adult Social Care,Older People (Aged 65 or over) including Older Mental Ill,Older People Commissioning,Social Care - Homecare,17/07/2015,3476339,843.89,LONDON COMMUNITY HOMECARE LTD 
Adults Services,Adult Social Care,Older People (Aged 65 or over) including Older Mental Ill,Physical Dis Commissioning,Social Care - Personal Budgets - Non-Trad Service,17/07/2015,3476347,"1,217.35",REDSPOT HOMECARE(CONTRACTS) LTD 
Adults Services,Adult Social Care,Older People (Aged 65 or over) including Older Mental Ill,Older People Commissioning,Social Care - Homecare,17/07/2015,3476348,834.58,REDSPOT HOMECARE(CONTRACTS) LTD 
Adults Services,Adult Social Care,Older People (Aged 65 or over) including Older Mental Ill,Older People Commissioning,Social Care - Homecare,17/07/2015,3476349,596.13,REDSPOT HOMECARE(CONTRACTS) LTD 
Adults Services,Adult Social Care,Older People (Aged 65 or over) including Older Mental Ill,Older People Commissioning,Social Care - Homecare,17/07/2015,3476350,502,REDSPOT HOMECARE(CONTRACTS) LTD 
Adults Services,Adult Social Care,Older People (Aged 65 or over) including Older Mental Ill,Older People Commissioning,Social Care - Homecare,17/07/2015,3476352,702.8,REDSPOT HOMECARE(CONTRACTS) LTD 
Adults Services,Adult Social Care,Older People (Aged 65 or over) including Older Mental Ill,Physical Dis Commissioning,Social Care - Personal Budgets - Non-Trad Service,17/07/2015,3476353,"1,217.35",REDSPOT HOMECARE(CONTRACTS) LTD 
Adults Services,Adult Social Care,Older People (Aged 65 or over) including Older Mental Ill,Older People Commissioning,Social Care - Homecare,17/07/2015,3476360,520.83,REDSPOT HOMECARE(CONTRACTS) LTD 
Adults Services,Adult Social Care,Older People (Aged 65 or over) including Older Mental Ill,Older People Commissioning,Social Care - Homecare,17/07/2015,3476368,614.95,REDSPOT HOMECARE(CONTRACTS) LTD 
Adults Services,Adult Social Care,Older People (Aged 65 or over) including Older Mental Ill,Older People Commissioning,Social Care - Homecare,17/07/2015,3476371,"1,016.55",REDSPOT HOMECARE(CONTRACTS) LTD 
Adults Services,Adult Social Care,Older People (Aged 65 or over) including Older Mental Ill,Physical Dis Commissioning,Social Care - Homecare,17/07/2015,3476376,790.65,REDSPOT HOMECARE(CONTRACTS) LTD 
Adults Services,Adult Social Care,Older People (Aged 65 or over) including Older Mental Ill,Older People Commissioning,Social Care - Homecare,17/07/2015,3476389,828.3,REDSPOT HOMECARE(CONTRACTS) LTD 
Adults Services,Adult Social Care,Older People (Aged 65 or over) including Older Mental Ill,Older People Commissioning,Social Care - Homecare,17/07/2015,3476400,574.16,REDSPOT HOMECARE(CONTRACTS) LTD 
Adults Services,Adult Social Care,Older People (Aged 65 or over) including Older Mental Ill,Older People Commissioning,Social Care - Homecare,17/07/2015,3476401,555.34,REDSPOT HOMECARE(CONTRACTS) LTD 
Adults Services,Adult Social Care,Older People (Aged 65 or over) including Older Mental Ill,Older People Commissioning,Social Care - Homecare,17/07/2015,3476410,"1,223.10",MiHOMECARE LIMITED 
Adults Services,Adult Social Care,Older People (Aged 65 or over) including Older Mental Ill,Older People Commissioning,Social Care - Homecare,17/07/2015,3476424,843.85,MiHOMECARE LIMITED 
Adults Services,Adult Social Care,Older People (Aged 65 or over) including Older Mental Ill,Older People Commissioning,Social Care - Homecare,17/07/2015,3476429,"2,370.29",APASENTH 
Adults Services,Adult Social Care,Older People (Aged 65 or over) including Older Mental Ill,Learning Dis Commissioning,Social Care - Homecare,17/07/2015,3476430,"2,304.63",APASENTH 
Adults Services,Adult Social Care,Older People (Aged 65 or over) including Older Mental Ill,Learning Dis Commissioning,Social Care - Homecare,17/07/2015,3476431,"1,519.22",APASENTH 
Adults Services,Adult Social Care,Older People (Aged 65 or over) including Older Mental Ill,Learning Dis Commissioning,Social Care - Homecare,17/07/2015,3476432,"1,378.31",APASENTH 
Adults Services,Adult Social Care,Older People (Aged 65 or over) including Older Mental Ill,Learning Dis Commissioning,Social Care - Homecare,17/07/2015,3476433,"1,195.98",APASENTH 
Adults Services,Adult Social Care,Older People (Aged 65 or over) including Older Mental Ill,Learning Dis Commissioning,Social Care - Homecare,17/07/2015,3476434,"1,154.86",APASENTH 
Adults Services,Adult Social Care,Older People (Aged 65 or over) including Older Mental Ill,Older People Commissioning,Social Care - Homecare,17/07/2015,3476435,886.15,APASENTH 
Adults Services,Adult Social Care,Older People (Aged 65 or over) including Older Mental Ill,Learning Dis Commissioning,Social Care - Homecare,17/07/2015,3476436,883.61,APASENTH 
Adults Services,Adult Social Care,Older People (Aged 65 or over) including Older Mental Ill,Learning Dis Commissioning,Social Care - Homecare,17/07/2015,3476437,882.32,APASENTH 
Adults Services,Adult Social Care,Older People (Aged 65 or over) including Older Mental Ill,Older People Commissioning,Social Care - Homecare,17/07/2015,3476438,754.2,APASENTH 
Adults Services,Adult Social Care,Older People (Aged 65 or over) including Older Mental Ill,Learning Dis Commissioning,Social Care - Homecare,17/07/2015,3476439,750.99,APASENTH 
Adults Services,Adult Social Care,Older People (Aged 65 or over) including Older Mental Ill,Learning Dis Commissioning,Social Care - Homecare,17/07/2015,3476440,618.4,APASENTH 
Adults Services,Adult Social Care,Older People (Aged 65 or over) including Older Mental Ill,Learning Dis Commissioning,Social Care - Homecare,17/07/2015,3476441,617.44,APASENTH 
Adults Services,Adult Social Care,Older People (Aged 65 or over) including Older Mental Ill,Learning Dis Commissioning,Social Care - Homecare,17/07/2015,3476442,604.04,APASENTH 
Adults Services,Adult Social Care,Older People (Aged 65 or over) including Older Mental Ill,Learning Dis Commissioning,Social Care - Homecare,17/07/2015,3476443,579.82,APASENTH 
Adults Services,Adult Social Care,Older People (Aged 65 or over) including Older Mental Ill,Learning Dis Commissioning,Social Care - Homecare,17/07/2015,3476444,546.99,APASENTH 
Adults Services,Adult Social Care,Older People (Aged 65 or over) including Older Mental Ill,Learning Dis Commissioning,Social Care - Homecare,17/07/2015,3476445,525.32,APASENTH 
Adults Services,Adult Social Care,Older People (Aged 65 or over) including Older Mental Ill,Learning Dis Commissioning,Social Care - Homecare,17/07/2015,3476446,517.66,APASENTH 
